Workbook

Sheet CONTROL (hidden)
H3: Month for division | I3: 25
H5: Month of FY | I5: 1

Sheet Index
A2: Management Information showing interim monthly business volumes and trends for first instance criminal cases calling at Scottish courts during the Coronavirus pandemic. Official Statistics with full commentary are published quarterly.
A4: Table | B4: Charts | C4: Description | E4: Geography
A6: 1a | B6: 1b | C6: Time series of business volumes | E6: National data
A8: 2a | B8: 2b | C8: Time series of business trends | E8: National data
A11: Worksheet
A12: 2 | C12: Flowcharts showing how criminal cases move through Scotland's courts | E12: N/A
A14: 3 | C14: Glossary: Explanation of Scottish court terminology | E14: N/A
A15: 4 | C15: Notes on data and definitions | E15: N/A

Sheet 1a
F1: Back to Index
B3: National overview of criminal court cases in Scotland | D3: 2020-04-01 | E3: 2020-05-01 | F3: 2020-06-01 | G3: 2020-07-01 | H3: 2020-08-01 | I3: 2020-09-01 | J3: 2020-10-01 | K3: 2020-11-01 | L3: 2020-12-01 | M3: 2021-01-01 | N3: 2021-02-01 | O3: 2021-03-01 | P3: 2021-04-01 | Q3: 2021-05-01 | R3: 2021-06-01 | S3: 2021-07-01 | T3: 2021-08-01 | U3: 2021-09-01 | V3: 2021-10-01 | W3: 2021-11-01 | X3: 2021-12-01 | Y3: 2022-01-01 | Z3: 2022-02-01 | AA3: 2022-03-01 | AB3: 2022-04-01 | AC3: 2022/23 YTD | AE3: 2019/20 | AF3: 2019/20 monthly average
B4: All Criminal courts | C4: National total of cases registered (not including petitions) | D4: =IF(SUM(D17,D31,D44,D57)=0,"",(SUM(D17,D31,D44,D57))) -> 5306 | E4: 4561 | F4: 5720 | G4: 8558 | H4: 7643 | I4: 7333 | J4: 6903 | K4: 6050 | L4: 5858 | M4: 5703 | N4: 5465 | O4: 7560 | P4: 7505 | Q4: 6909 | R4: 7136 | S4: 6743 | T4: 7214 | U4: 7124 | V4: 7166 | W4: 7399 | X4: 7235 | Y4: 6894 | Z4: 6233 | AA4: 8009 | AB4: =IF(SUM(AB17,AB31,AB44,AB57)=0,"",(SUM(AB17,AB31,AB44,AB57))) -> 6814 | AC4: =SUM(AB4) -> 6814 | AE4: =SUM(AE17,AE31,AE44,AE57) -> 105548 | AF4: =AE4/12 -> 8795.666667
C5: National total of cases that called at a first hearing | D5: =IF(SUM(D18,D32,D45,D58)=0,"",(SUM(D18,D32,D45,D58))) -> 3401 | E5: 3843 | F5: 3864 | G5: 8401 | H5: 7799 | I5: 7040 | J5: 6641 | K5: 5861 | L5: 6020 | M5: 6013 | N5: 4012 | O5: 6596 | P5: 6058 | Q5: 5829 | R5: 6663 | S5: 7111 | T5: 6837 | U5: 6856 | V5: 7018 | W5: 7141 | X5: 7151 | Y5: 6998 | Z5: 5441 | AA5: 7885 | AB5: =IF(SUM(AB18,AB32,AB45,AB58)=0,"",(SUM(AB18,AB32,AB45,AB58))) -> 6937 | AC5: =SUM(AB5) -> 6937 | AE5: =SUM(AE18,AE32,AE45,AE58) -> 100922 | AF5: =AE5/12 -> 8410.166667
C6: National total of cases that called at a continued first hearing | D6: =IF(SUM(D19,D33,D46,D59)=0,"",(SUM(D19,D33,D46,D59))) -> 2023 | E6: 2320 | F6: 2724 | G6: 3896 | H6: 7105 | I6: 8751 | J6: 7686 | K6: 6799 | L6: 6372 | M6: 5434 | N6: 2421 | O6: 4453 | P6: 4541 | Q6: 6260 | R6: 7980 | S6: 8583 | T6: 6724 | U6: 5455 | V6: 4575 | W6: 4610 | X6: 4377 | Y6: 4252 | Z6: 4621 | AA6: 4249 | AB6: =IF(SUM(AB19,AB33,AB46,AB59)=0,"",(SUM(AB19,AB33,AB46,AB59))) -> 4570 | AC6: 4570 | AE6: =SUM(AE19,AE33,AE46,AE59) -> 36514 | AF6: =AE6/12 -> 3042.833333
C7: National total of Section 76 (Solemn business only) | D7: =IF(SUM(D20,D34)=0,"",(SUM(D20,D34))) -> 55 | E7: 60 | F7: 77 | G7: 99 | H7: 108 | I7: 128 | J7: 98 | K7: 92 | L7: 82 | M7: 65 | N7: 84 | O7: 81 | P7: 88 | Q7: 108 | R7: 120 | S7: 101 | T7: 105 | U7: 93 | V7: 74 | W7: 97 | X7: 98 | Y7: 79 | Z7: 113 | AA7: 109 | AB7: =IF(SUM(AB20,AB34)=0,"",(SUM(AB20,AB34))) -> 102 | AC7: 102 | AE7: =SUM(AE20,AE34) -> 1142 | AF7: =AE7/12 -> 95.16666667
C8: National total of intermediate diets called (Summary business only) | D8: =IF(SUM(D47,D60)=0,"",(SUM(D47,D60))) -> 3402 | E8: 2356 | F8: 827 | G8: 2706 | H8: 8717 | I8: 9188 | J8: 9359 | K8: 8003 | L8: 7740 | M8: 9143 | N8: 6708 | O8: 7397 | P8: 6982 | Q8: 7182 | R8: 7983 | S8: 8482 | T8: 10084 | U8: 10501 | V8: 6398 | W8: 10059 | X8: 8927 | Y8: 10866 | Z8: 10420 | AA8: =IF(SUM(AA47,AA60)=0,"",(SUM(AA47,AA60))) -> 11243 | AB8: 9742 | AC8: 9742 | AE8: =SUM(AE47,AE60) -> 89847 | AF8: 7487.25
C9: National total of trials called | D9: =IF(SUM(D21,D35,D48,D61)=0,"",SUM(D21,D35,D48,D61)) -> 1019 | E9: 476 | F9: 192 | G9: 355 | H9: 2811 | I9: 3950 | J9: 3980 | K9: 4386 | L9: 3868 | M9: 4882 | N9: 1200 | O9: 3101 | P9: 3167 | Q9: 3649 | R9: 4577 | S9: 5062 | T9: 5917 | U9: 6778 | V9: 5449 | W9: 4420 | X9: 5882 | Y9: 5648 | Z9: 6472 | AA9: 8276 | AB9: =IF(SUM(AB21,AB35,AB48,AB61)=0,"",SUM(AB21,AB35,AB48,AB61)) -> 6556 | AC9: 6556 | AE9: =SUM(AE21,AE35,AE48,AE61) -> 54744 | AF9: 4562
C10: National total of trials called where evidence was led | D10: =IF(SUM(D22,D36,D49,D62)=0,"",SUM(D22,D36,D49,D62)) -> 5 | E10: 9 | F10: 24 | G10: 84 | H10: 320 | I10: 526 | J10: 575 | K10: 627 | L10: 512 | M10: 276 | N10: 186 | O10: 401 | P10: 470 | Q10: 558 | R10: 622 | S10: 583 | T10: 664 | U10: 775 | V10: 626 | W10: 541 | X10: 549 | Y10: 536 | Z10: 754 | AA10: 827 | AB10: =IF(SUM(AB22,AB36,AB49,AB62)=0,"",SUM(AB22,AB36,AB49,AB62)) -> 691 | AC10: 691 | AE10: =SUM(AE22,AE36,AE49,AE62) -> 10121 | AF10: 843.4166667
C11: National total of trials adjourned due to lack of court time | D11: =SUM(D23,D37,D50,D63) -> 0 | E11: =SUM(E23,E37,E50,E63) -> 0 | F11: =SUM(F23,F37,F50,F63) -> 0 | G11: =SUM(G23,G37,G50,G63) -> 8 | H11: =SUM(H23,H37,H50,H63) -> 24 | I11: =IF(SUM(I23,I37,I50,I63)=0,"",SUM(I23,I37,I50,I63)) -> 50 | J11: 65 | K11: 63 | L11: 103 | M11: 15 | N11: 10 | O11: 33 | P11: 75 | Q11: 92 | R11: 116 | S11: 96 | T11: 130 | U11: 123 | V11: 140 | W11: 94 | X11: 100 | Y11: 71 | Z11: 121 | AA11: 101 | AB11: =IF(SUM(AB23,AB37,AB50,AB63)=0,"",SUM(AB23,AB37,AB50,AB63)) -> 129 | AC11: =SUM(AB11) -> 129 | AE11: =SUM(AE23,AE37,AE50,AE63) -> 1574 | AF11: 131.1666667
C12: Percentage of trials adjourned due to lack of court time | D12: =IFERROR(SUM(D11/D9),"") -> 0 | E12: =IFERROR(SUM(E11/E9),"") -> 0 | F12: 0 | G12: 0.02253521127 | H12: =IFERROR(SUM(H11/H9),"") -> 0.008537886873 | I12: =IFERROR(SUM(I11/I9),"") -> 0.01265822785 | J12: =IFERROR(SUM(J11/J9),"") -> 0.01633165829 | K12: =IFERROR(SUM(K11/K9),"") -> 0.01436388509 | L12: =IFERROR(SUM(L11/L9),"") -> 0.02662874871 | M12: =IFERROR(SUM(M11/M9),"") -> 0.003072511266 | N12: 0.008333333333 | O12: 0.01064172847 | P12: =IFERROR(SUM(P11/P9),0) -> 0.02368171771 | Q12: 0.02521238696 | R12: =IFERROR(SUM(R11/R9),0) -> 0.02534411186 | S12: =IFERROR(SUM(S11/S9),0) -> 0.01896483603 | T12: 0.02197059321 | U12: =IFERROR(SUM(U11/U9),0) -> 0.018146946 | V12: 0.02569278767 | W12: 0.02126696833 | X12: 0.01700102006 | Y12: 0.01257082153 | Z12: =IFERROR(SUM(Z11/Z9),0) -> 0.01869592089 | AA12: =IFERROR(SUM(AA11/AA9),0) -> 0.01220396327 | AB12: =IFERROR(SUM(AB11/AB9),0) -> 0.01967663209 | AC12: =IFERROR(SUM(AC11/AC9),0) -> 0.01967663209 | AE12: =SUM(AE11/AE9) -> 0.02875200935 | AF12: =SUM(AF11/AF9) -> 0.02875200935
C13: National total of cases concluded | D13: =IF(SUM(D25,D39,D52,D65)=0,"",SUM(D25,D39,D52,D65)) -> 586 | E13: 930 | F13: 1519 | G13: 2892 | H13: 5792 | I13: 6959 | J13: 6407 | K13: 6257 | L13: 5922 | M13: 3070 | N13: 2226 | O13: 3599 | P13: 4188 | Q13: 4996 | R13: 7085 | S13: 7989 | T13: 7978 | U13: 8185 | V13: 6594 | W13: 6579 | X13: 6610 | Y13: 6041 | Z13: 7220 | AA13: 8682 | AB13: =IF(SUM(AB25,AB39,AB52,AB65)=0,"",SUM(AB25,AB39,AB52,AB65)) -> 7621 | AC13: =SUM(AB13) -> 7621 | AE13: =SUM(AE25,AE39,AE52,AE65) -> 93903 | AF13: =AE13/12 -> 7825.25
C14: National total of trials scheduled at end of period | D14: =IF(SUM(D27,D41,D54,D67)=0,"",SUM(D27,D41,D54,D67)) -> 18074 | E14: 20236 | F14: 22437 | G14: 25900 | H14: 28351 | I14: 30956 | J14: 32427 | K14: 33590 | L14: 34283 | M14: 35067 | N14: 36037 | O14: 37801 | P14: 39488 | Q14: 40882 | R14: 42451 | S14: 43341 | T14: 43526 | U14: 42554 | V14: 42796 | W14: 43597 | X14: 43016 | Y14: 43606 | Z14: 42503 | AA14: 40923 | AB14: =IF(SUM(AB27,AB41,AB54,AB67)=0,"",SUM(AB27,AB41,AB54,AB67)) -> 39958 | AC14: =IF(SUM(AC27,AC41,AC54,AC67)=0,"",SUM(AC27,AC41,AC54,AC67)) -> 39958 | AE14: =SUM(AE27,AE41,AE54,AE67) -> 18355 | AF14: 18355
C15: National Forecast Scheduled Trials as at end of period3 | D15: =IF(SUM(D28,D42,D55,D68)=0,"",SUM(D28,D42,D55,D68)) -> 20942.42 | E15: 23435.71 | F15: 26586.52 | G15: 31070.46 | H15: 34091.43 | I15: 36273.24 | J15: 37857.42 | K15: 38816.79 | L15: 39973.1 | M15: 41720.51 | N15: 43642.12 | O15: 45935.26 | P15: 47211.58 | Q15: 47705.02 | R15: 47567.41 | S15: 47018.86 | T15: 46078.61 | U15: 44530.52 | V15: 44335.41 | W15: 45105.82 | X15: 44518.2 | Y15: 45111.81 | Z15: 44090.01 | AA15: 42382.38 | AB15: =IF(SUM(AB28,AB42,AB55,AB68)=0,"",SUM(AB28,AB42,AB55,AB68)) -> 41382.44
B17: High Court | C17: Indictments registered | D17: 77 | E17: 85 | F17: 69 | G17: 63 | H17: 46 | I17: 68 | J17: 60 | K17: 32 | L17: 48 | M17: 65 | N17: 64 | O17: 90 | P17: 55 | Q17: 43 | R17: 57 | S17: 66 | T17: 37 | U17: 57 | V17: 69 | W17: 54 | X17: 69 | Y17: 68 | Z17: 90 | AA17: 80 | AB17: 77 | AC17: =SUM(AB17) -> 77 | AE17: =SUMIFS('High Court Raw Data'!$E:$E,'High Court Raw Data'!$A:$A,"2019/20") -> 1024 | AF17: =AE17/12 -> 85.33333333
C18: Indictments called at Preliminary Hearing | D18: 12 | E18: 2 | F18: 78 | G18: 172 | H18: 77 | I18: 65 | J18: 60 | K18: 52 | L18: 38 | M18: 47 | N18: 56 | O18: 66 | P18: 69 | Q18: 49 | R18: 55 | S18: 35 | T18: 40 | U18: 37 | V18: 59 | W18: 29 | X18: 47 | Y18: 64 | Z18: 60 | AA18: 94 | AB18: 99 | AC18: =SUM(AB18) -> 99 | AE18: =SUMIFS('High Court Raw Data'!$F:$F,'High Court Raw Data'!$A:$A,"2019/20") -> 981 | AF18: =AE18/12 -> 81.75
C19: Indictments called at Continued Preliminary Hearing | D19: 5 | E19: 5 | F19: 30 | G19: 76 | H19: 98 | I19: 115 | J19: 97 | K19: 78 | L19: 72 | M19: 87 | N19: 66 | O19: 62 | P19: 62 | Q19: 57 | R19: 66 | S19: 57 | T19: 89 | U19: 82 | V19: 63 | W19: 57 | X19: 49 | Y19: 49 | Z19: 36 | AA19: 49 | AB19: 48 | AC19: 48 | AE19: =SUMIFS('High Court Raw Data'!$G:$G,'High Court Raw Data'!$A:$A,"2019/20") -> 437 | AF19: =AE19/12 -> 36.41666667
C20: Section 76 Indictments | D20: 6 | E20: 6 | F20: 5 | G20: 6 | H20: 5 | I20: 15 | J20: 6 | K20: 9 | L20: 3 | M20: 7 | N20: 11 | O20: 5 | P20: 5 | Q20: 4 | R20: 10 | S20: 6 | T20: 7 | U20: 7 | V20: 4 | W20: 7 | X20: 6 | Y20: 5 | Z20: 8 | AA20: 9 | AB20: 7 | AC20: 7 | AE20: =SUMIFS('High Court Raw Data'!$H:$H,'High Court Raw Data'!$A:$A,"2019/20") -> 94 | AF20: 7.833333333
C21: Trials called | D21: 0 | E21: 0 | F21: 0 | G21: 4 | H21: 14 | I21: 26 | J21: 42 | K21: 58 | L21: 47 | M21: 56 | N21: 67 | O21: 66 | P21: 46 | Q21: 60 | R21: 67 | S21: 58 | T21: 74 | U21: 64 | V21: 65 | W21: 81 | X21: 38 | Y21: 62 | Z21: 64 | AA21: 73 | AB21: 73 | AC21: 73 | AE21: =SUMIFS('High Court Raw Data'!$I:$I,'High Court Raw Data'!$A:$A,"2019/20") -> 812 | AF21: 67.66666667
C22: Trials called where evidence was led | D22: 0 | E22: 0 | F22: 0 | G22: 4 | H22: 14 | I22: 18 | J22: 28 | K22: 49 | L22: 29 | M22: 43 | N22: 42 | O22: 51 | P22: 34 | Q22: 43 | R22: 47 | S22: 48 | T22: 55 | U22: 47 | V22: 54 | W22: 63 | X22: 30 | Y22: 47 | Z22: 54 | AA22: 55 | AB22: 50 | AC22: 50 | AE22: =SUMIFS('High Court Raw Data'!$J:$J,'High Court Raw Data'!$A:$A,"2019/20") -> 498 | AF22: 41.5
C23: Trials adjourned due to lack of court time | D23: 0 | E23: 0 | F23: 0 | G23: 0 | H23: 0 | I23: 0 | J23: 2 | K23: 1 | L23: 9 | M23: 0 | N23: 0 | O23: 0 | P23: 3 | Q23: 5 | R23: 3 | S23: 2 | T23: 2 | U23: 1 | V23: 0 | W23: 0 | X23: 0 | Y23: 0 | Z23: 0 | AA23: 4 | AB23: 6 | AC23: 6 | AE23: =SUMIFS('High Court Raw Data'!$K:$K,'High Court Raw Data'!$A:$A,"2019/20") -> 49 | AF23: =AE23/12 -> 4.083333333
C24: Percentage of trials adjourned due to lack of court time | D24: =IFERROR(SUM(D23/D21),0) -> 0 | E24: =IFERROR(SUM(E23/E21),0) -> 0 | F24: 0 | G24: 0 | H24: 0 | I24: 0 | J24: 0.04761904762 | K24: =IFERROR(SUM(K23/K21),0) -> 0.01724137931 | L24: =IFERROR(SUM(L23/L21),0) -> 0.1914893617 | M24: =IFERROR(SUM(M23/M21),0) -> 0 | N24: =IFERROR(SUM(N23/N21),0) -> 0 | O24: =IFERROR(SUM(O23/O21),0) -> 0 | P24: =IFERROR(SUM(P23/P21),0) -> 0.0652173913 | Q24: =IFERROR(SUM(Q23/Q21),0) -> 0.08333333333 | R24: =IFERROR(SUM(R23/R21),0) -> 0.0447761194 | S24: 0.03448275862 | T24: 0.02702702703 | U24: 0.015625 | V24: 0 | W24: 0 | X24: 0 | Y24: =IFERROR(SUM(Y23/Y21),0) -> 0 | Z24: 0 | AA24: 0.05479452055 | AB24: =IFERROR(SUM(AB23/AB21),0) -> 0.08219178082 | AC24: =IFERROR(SUM(AC23/AC21),0) -> 0.08219178082 | AE24: =SUM(AE23/AE21) -> 0.06034482759 | AF24: =SUM(AF23/AF21) -> 0.06034482759
C25: Indictments concluded | D25: 7 | E25: 9 | F25: 14 | G25: 32 | H25: 35 | I25: 20 | J25: 39 | K25: 54 | L25: 54 | M25: 55 | N25: 72 | O25: 64 | P25: 53 | Q25: 58 | R25: 62 | S25: 58 | T25: 76 | U25: 62 | V25: 70 | W25: 82 | X25: 56 | Y25: 45 | Z25: 57 | AA25: 77 | AB25: 66 | AC25: 66 | AE25: =SUMIFS('High Court Raw Data'!$M:$M,'High Court Raw Data'!$A:$A,'High Court Raw Data'!$S$3) -> 806 | AF25: =AE25/12 -> 67.16666667
C26: Average time between pleading diet and evidence led trial, where evidence led trial occurred in the period shown (weeks) | D26: 20 | E26: N/A | F26: N/A | G26: 21 | H26: 34 | I26: 35 | J26: 50 | K26: 52 | L26: 54 | M26: 52 | N26: 54 | O26: 66 | P26: 58 | Q26: 51 | R26: 50 | S26: 55 | T26: 51 | U26: 54 | V26: 50 | W26: 50.9933333 | X26: 57 | Y26: 62 | Z26: 48 | AA26: 48 | AB26: 49 | AC26: =AB26 -> 49 | AF26: 22.1
C27: Trials scheduled at end of period | D27: 390 | E27: 390 | F27: 390 | G27: 386 | H27: 375 | I27: 360 | J27: 335 | K27: 291 | L27: 250 | M27: 215 | N27: 247 | O27: 267 | P27: 292 | Q27: 304 | R27: 313 | S27: 325 | T27: 432 | U27: 389 | V27: 444 | W27: 476 | X27: 516 | Y27: 534 | Z27: 535 | AA27: 560 | AB27: 609 | AC27: =AB27 -> 609 | AE27: =SUMIFS('High Court Raw Data'!$L:$L,'High Court Raw Data'!$A:$A,'High Court Raw Data'!$S$3,'High Court Raw Data'!B:B,'High Court Raw Data'!$T$3) -> 390 | AF27: 390
C28: Forecast Scheduled Trials as at end of period3 | D28: =390+(0.8*D17)-'Internal analytics'!F9 -> 451.6 | E28: =D28+(0.8*E17)-'Internal analytics'!G9 -> 519.6 | F28: =E28+(0.8*F17)-'Internal analytics'!H9 -> 574.8 | G28: =F28+(0.8*G17)-'Internal analytics'!I9 -> 621.2 | H28: =G28+(0.8*H17)-'Internal analytics'!J9 -> 647 | I28: =H28+(0.8*I17)-'Internal analytics'!K9 -> 686.4 | J28: =I28+(0.8*J17)-'Internal analytics'!L9 -> 709.4 | K28: 715 | L28: 724 | M28: =L28+(0.8*M17)-'Internal analytics'!O9 -> 741 | N28: =M28+(0.8*N17)-'Internal analytics'!P9 -> 745.2 | O28: =N28+(0.8*O17)-'Internal analytics'!Q9 -> 773.2 | P28: =O28+(0.8*P17)-'Internal analytics'!R9 -> 781.2 | Q28: =P28+(0.8*Q17)-'Internal analytics'!S9 -> 785.6 | R28: =Q28+(0.8*R17)-'Internal analytics'!T9 -> 784.2 | S28: =R28+(0.8*S17)-'Internal analytics'!U9 -> 787 | T28: =S28+(0.8*T17)-'Internal analytics'!V9 -> 763.6 | U28: =T28+(0.8*U17)-'Internal analytics'!W9 -> 762.2 | V28: =U28+(0.8*V17)-'Internal analytics'!X9 -> 760.4 | W28: =V28+(0.8*W17)-'Internal analytics'!Y9 -> 750.6 | X28: =W28+(0.8*X17)-'Internal analytics'!Z9 -> 759.8 | Y28: =X28+(0.8*Y17)-'Internal analytics'!AA9 -> 780.2 | Z28: =Y28+(0.8*Z17)-'Internal analytics'!AB9 -> 802.2 | AA28: =Z28+(0.8*AA17)-'Internal analytics'!AC9 -> 802.2 | AB28: =AA28+(0.8*AB17)-'Internal analytics'!AD9 -> 815.8
B30: Sheriff Court - Solemn business | C30: Petitions registered | D30: 641 | E30: 844 | F30: 1032 | G30: 1068 | H30: 1081 | I30: 1061 | J30: 935 | K30: 890 | L30: 786 | M30: 771 | N30: 896 | O30: 1071 | P30: 1011 | Q30: 945 | R30: 953 | S30: 989 | T30: 1059 | U30: 944 | V30: 897 | W30: 1090 | X30: 848 | Y30: 1025 | Z30: 942 | AA30: 1066 | AB30: 952 | AC30: =SUM(AB30) -> 952 | AE30: =SUMIFS('JP SC Raw Data'!$G:$G,'JP SC Raw Data'!$F:$F,"S",'JP SC Raw Data'!$B:$B,"2019/20",'JP SC Raw Data'!$E:$E,"National") -> 9780 | AF30: =AE30/12 -> 815
C31: Indictments registered | D31: 219 | E31: 319 | F31: 355 | G31: 467 | H31: 496 | I31: 494 | J31: 492 | K31: 414 | L31: 428 | M31: 379 | N31: 378 | O31: 410 | P31: 441 | Q31: 532 | R31: 471 | S31: 520 | T31: 447 | U31: 481 | V31: 479 | W31: 541 | X31: 450 | Y31: 425 | Z31: 525 | AA31: 447 | AB31: 421 | AC31: =SUM(AB31) -> 421 | AE31: =SUMIFS('JP SC Raw Data'!$H:$H,'JP SC Raw Data'!$F:$F,"S",'JP SC Raw Data'!$B:$B,"2019/20",'JP SC Raw Data'!$E:$E,"National") -> 5452 | AF31: 454.3333333
C32: Indictments called at First Diet | D32: 311 | E32: 234 | F32: 222 | G32: 322 | H32: 341 | I32: 538 | J32: 467 | K32: 424 | L32: 433 | M32: 464 | N32: 370 | O32: 469 | P32: 432 | Q32: 443 | R32: 496 | S32: 468 | T32: 485 | U32: 419 | V32: 450 | W32: 487 | X32: 428 | Y32: 481 | Z32: 430 | AA32: 614 | AB32: 450 | AC32: 450 | AE32: =SUMIFS('JP SC Raw Data'!$I:$I,'JP SC Raw Data'!$F:$F,"S",'JP SC Raw Data'!$B:$B,"2019/20",'JP SC Raw Data'!$E:$E,"National") -> 5114 | AF32: 426.1666667
C33: Indictments called at Continued First Diet | D33: 125 | E33: 127 | F33: 119 | G33: 464 | H33: 486 | I33: 539 | J33: 525 | K33: 724 | L33: 828 | M33: 844 | N33: 868 | O33: 1017 | P33: 907 | Q33: 869 | R33: 898 | S33: 866 | T33: 771 | U33: 730 | V33: 681 | W33: 791 | X33: 564 | Y33: 573 | Z33: 630 | AA33: 687 | AB33: 628 | AC33: 628 | AE33: =SUMIFS('JP SC Raw Data'!$J:$J,'JP SC Raw Data'!$F:$F,"S",'JP SC Raw Data'!$B:$B,"2019/20",'JP SC Raw Data'!$E:$E,"National") -> 2963 | AF33: 246.9166667
C34: Section 76 indictments | D34: 49 | E34: 54 | F34: 72 | G34: 93 | H34: 103 | I34: 113 | J34: 92 | K34: 83 | L34: 79 | M34: 58 | N34: 73 | O34: 76 | P34: 83 | Q34: 104 | R34: 110 | S34: 95 | T34: 98 | U34: 86 | V34: 70 | W34: 90 | X34: 92 | Y34: 74 | Z34: 105 | AA34: 100 | AB34: 95 | AC34: 95 | AE34: =SUMIFS('JP SC Raw Data'!$K:$K,'JP SC Raw Data'!$F:$F,"S",'JP SC Raw Data'!$B:$B,"2019/20",'JP SC Raw Data'!$E:$E,"National") -> 1048 | AF34: 87.33333333
C35: Trials called | D35: 91 | E35: 33 | F35: 31 | G35: 37 | H35: 146 | I35: 119 | J35: 73 | K35: 147 | L35: 78 | M35: 161 | N35: 285 | O35: 388 | P35: 362 | Q35: 368 | R35: 383 | S35: 340 | T35: 392 | U35: 396 | V35: 393 | W35: 273 | X35: 263 | Y35: 368 | Z35: 433 | AA35: 488 | AB35: 425 | AC35: 425 | AE35: =SUMIFS('JP SC Raw Data'!$L:$L,'JP SC Raw Data'!$F:$F,"S",'JP SC Raw Data'!$B:$B,"2019/20",'JP SC Raw Data'!$E:$E,"National") -> 3142 | AF35: 261.8333333
C36: Trials called where evidence was led | D36: 0 | E36: 0 | F36: 0 | G36: 0 | H36: 0 | I36: 0 | J36: 0 | K36: 0 | L36: 11 | M36: 30 | N36: 56 | O36: 100 | P36: 84 | Q36: 82 | R36: 88 | S36: 76 | T36: 83 | U36: 95 | V36: 70 | W36: 48 | X36: 52 | Y36: 56 | Z36: 78 | AA36: 95 | AB36: 75 | AC36: 75 | AE36: =SUMIFS('JP SC Raw Data'!$M:$M,'JP SC Raw Data'!$F:$F,"S",'JP SC Raw Data'!$B:$B,"2019/20",'JP SC Raw Data'!$E:$E,"National") -> 1134 | AF36: 94.5
C37: Trials adjourned due to lack of court time | D37: 0 | E37: 0 | F37: 0 | G37: 0 | H37: 0 | I37: 0 | J37: 0 | K37: 0 | L37: 0 | M37: 4 | N37: 9 | O37: 22 | P37: 29 | Q37: 30 | R37: 17 | S37: 25 | T37: 23 | U37: 21 | V37: 34 | W37: 18 | X37: 28 | Y37: 13 | Z37: 24 | AA37: 31 | AB37: 37 | AC37: 37 | AE37: =SUMIFS('JP SC Raw Data'!$N:$N,'JP SC Raw Data'!$F:$F,"S",'JP SC Raw Data'!$B:$B,"2019/20",'JP SC Raw Data'!$E:$E,"National") -> 57 | AF37: 4.75
C38: Percentage of trials adjourned due to lack of court time | D38: =IFERROR(SUM(D37/D35),0) -> 0 | E38: =IFERROR(SUM(E37/E35),0) -> 0 | F38: 0 | G38: 0 | H38: 0 | I38: 0 | J38: 0 | K38: 0 | L38: 0 | M38: =IFERROR(SUM(M37/M35),0) -> 0.0248447205 | N38: =IFERROR(SUM(N37/N35),0) -> 0.03157894737 | O38: =IFERROR(SUM(O37/O35),0) -> 0.05670103093 | P38: =IFERROR(SUM(P37/P35),0) -> 0.08011049724 | Q38: =IFERROR(SUM(Q37/Q35),0) -> 0.08152173913 | R38: =IFERROR(SUM(R37/R35),0) -> 0.04438642298 | S38: =IFERROR(SUM(S37/S35),0) -> 0.07352941176 | T38: 0.05867346939 | U38: 0.05303030303 | V38: 0.08651399491 | W38: 0.06593406593 | X38: =IFERROR(SUM(X37/X35),0) -> 0.1064638783 | Y38: 0.03532608696 | Z38: 0.05542725173 | AA38: 0.06352459016 | AB38: 0.08705882353 | AC38: 0.08705882353 | AE38: =SUM(AE37/AE35) -> 0.01814131127 | AF38: 0.01814131127
C39: Indictments concluded | D39: 140 | E39: 127 | F39: 166 | G39: 174 | H39: 284 | I39: 358 | J39: 322 | K39: 276 | L39: 300 | M39: 317 | N39: 354 | O39: 468 | P39: 463 | Q39: 442 | R39: 459 | S39: 453 | T39: 451 | U39: 439 | V39: 403 | W39: 414 | X39: 363 | Y39: 357 | Z39: 427 | AA39: 461 | AB39: 475 | AC39: 475 | AE39: =SUMIFS('JP SC Raw Data'!$P:$P,'JP SC Raw Data'!$F:$F,"S",'JP SC Raw Data'!$B:$B,"2019/20",'JP SC Raw Data'!$E:$E,"National") -> 5155 | AF39: =AE39/12 -> 429.5833333
C40: Average time between pleading diet and evidence led trial, where evidence led trial occurred in the period shown (weeks) | D40: N/A | E40: N/A | F40: N/A | G40: N/A | H40: N/A | I40: N/A | J40: N/A | K40: N/A | L40: 29.97545455 | M40: 32.183 | N40: 35.68375 | O40: 37 | P40: 38.31130952 | Q40: 43.99939024 | R40: 41.65818182 | S40: 41.36118421 | T40: 44.76650602 | U40: 42.94894737 | V40: 41.78485714 | W40: 48.34291667 | X40: 41 | Y40: 40.66160714 | Z40: 44.06321 | AA40: 45.25136842 | AB40: 40.51427 | AC40: =AB40 -> 40.51427 | AF40: 11
C41: Trials scheduled at end of period | D41: 497 | E41: 497 | F41: 497 | G41: 497 | H41: 553 | I41: 613 | J41: 648 | K41: 738 | L41: 939 | M41: 1091 | N41: 1211 | O41: 1329 | P41: 1398 | Q41: 1479 | R41: 1595 | S41: 1684 | T41: 1781 | U41: 1842 | V41: 1923 | W41: 2053 | X41: 2170 | Y41: 2212 | Z41: 2196 | AA41: 2274 | AB41: 2267 | AC41: =AB41 -> 2267 | AE41: =SUMIFS('JP SC Raw Data'!$O:$O,'JP SC Raw Data'!$B:$B,'JP SC Raw Data'!$AD$2,'JP SC Raw Data'!$C:$C,'JP SC Raw Data'!$AE$2,'JP SC Raw Data'!$D:$D,"0") -> 497 | AF41: 497
C42: Forecast Scheduled Trials as at end of period3 | D42: =497+(0.71*(D31-D34))-'Internal analytics'!F19 -> 588.7 | E42: =D42+(0.71*(E31-E34))-'Internal analytics'!G19 -> 764.85 | F42: =E42+(0.71*(F31-F34))-'Internal analytics'!H19 -> 957.78 | G42: =F42+(0.71*(G31-G34))-'Internal analytics'!I19 -> 1216.32 | H42: =G42+(0.71*(H31-H34))-'Internal analytics'!J19 -> 1479.35 | I42: =H42+(0.71*(I31-I34))-'Internal analytics'!K19 -> 1736.86 | J42: =I42+(0.71*(J31-J34))-'Internal analytics'!L19 -> 2000.86 | K42: =J42+(0.71*(K31-K34))-'Internal analytics'!M19 -> 2211.87 | L42: =K42+(0.71*(L31-L34))-'Internal analytics'!N19 -> 2435.66 | M42: =L42+(0.71*(M31-M34))-'Internal analytics'!O19 -> 2591.57 | N42: =M42+(0.71*(N31-N34))-'Internal analytics'!P19 -> 2644.12 | O42: =N42+(0.71*(O31-O34))-'Internal analytics'!Q19 -> 2669.26 | P42: =O42+(0.71*(P31-P34))-'Internal analytics'!R19 -> 2720.44 | Q42: =P42+(0.71*(Q31-Q34))-'Internal analytics'!S19 -> 2830.32 | R42: =Q42+(0.71*(R31-R34))-'Internal analytics'!T19 -> 2869.63 | S42: =R42+(0.71*(S31-S34))-'Internal analytics'!U19 -> 2974.38 | T42: =S42+(0.71*(T31-T34))-'Internal analytics'!V19 -> 3008.17 | U42: =T42+(0.71*(U31-U34))-'Internal analytics'!W19 -> 3057.62 | V42: =U42+(0.71*(V31-V34))-'Internal analytics'!X19 -> 3146.01 | W42: =V42+(0.71*(W31-W34))-'Internal analytics'!Y19 -> 3287.22 | X42: =W42+(0.71*(X31-X34))-'Internal analytics'!Z19 -> 3428.4 | Y42: =X42+(0.71*(Y31-Y34))-'Internal analytics'!AA19 -> 3471.61 | Z42: =Y42+(0.71*(Z31-Z34))-'Internal analytics'!AB19 -> 3515.81 | AA42: =Z42+(0.71*(AA31-AA34))-'Internal analytics'!AC19 -> 3491.18 | AB42: =AA42+(0.71*(AB31-AB34))-'Internal analytics'!AD19 -> 3484.64
B44: Sheriff Court -Summary business | C44: Complaints registered | D44: 3016 | E44: 3247 | F44: 4309 | G44: 6205 | H44: 6037 | I44: 5855 | J44: 4634 | K44: 4383 | L44: 3956 | M44: 3790 | N44: 3678 | O44: 5000 | P44: 5017 | Q44: 4603 | R44: 4544 | S44: 4440 | T44: 4718 | U44: 4453 | V44: 4510 | W44: 4770 | X44: 4860 | Y44: 4614 | Z44: 4007 | AA44: 4970 | AB44: 4423 | AC44: =SUM(AB44) -> 4423 | AE44: =SUMIFS('JP SC Raw Data'!$Q:$Q,'JP SC Raw Data'!$F:$F,"S",'JP SC Raw Data'!$B:$B,"2019/20",'JP SC Raw Data'!$E:$E,"National") -> 65490 | AF44: =AE44/12 -> 5457.5
C45: Complaints called for first time | D45: 1896 | E45: 2835 | F45: 3026 | G45: 6173 | H45: 5983 | I45: 5665 | J45: 4629 | K45: 4128 | L45: 3985 | M45: 3662 | N45: 3001 | O45: 4525 | P45: 4502 | Q45: 4565 | R45: 4455 | S45: 4549 | T45: 4383 | U45: 4362 | V45: 4366 | W45: 4477 | X45: 4744 | Y45: 4610 | Z45: 3690 | AA45: 4654 | AB45: 4253 | AC45: =SUM(AB45) -> 4253 | AE45: =SUMIFS('JP SC Raw Data'!$R:$R,'JP SC Raw Data'!$F:$F,"S",'JP SC Raw Data'!$B:$B,"2019/20",'JP SC Raw Data'!$E:$E,"National") -> 61761 | AF45: 5146.75
C46: Complaints called for 'Continued Without Plea' hearing | D46: 899 | E46: 1252 | F46: 1675 | G46: 2216 | H46: 3243 | I46: 4258 | J46: 4078 | K46: 3231 | L46: 2951 | M46: 2376 | N46: 861 | O46: 1892 | P46: 2520 | Q46: 3591 | R46: 3495 | S46: 2534 | T46: 2020 | U46: 1860 | V46: 1693 | W46: 1702 | X46: 1770 | Y46: 1932 | Z46: 2142 | AA46: 1906 | AB46: 1982 | AC46: 1982 | AE46: =SUMIFS('JP SC Raw Data'!$S:$S,'JP SC Raw Data'!$F:$F,"S",'JP SC Raw Data'!$B:$B,"2019/20",'JP SC Raw Data'!$E:$E,"National") -> 14851 | AF46: 1237.583333
C47: Complaints called in Intermediate Diet court | D47: 2702 | E47: 1910 | F47: 721 | G47: 2341 | H47: 7152 | I47: 7350 | J47: 7563 | K47: 6499 | L47: 6293 | M47: 7369 | N47: 5777 | O47: 6550 | P47: 6324 | Q47: 6499 | R47: 6697 | S47: 7002 | T47: 8286 | U47: 8495 | V47: 5130 | W47: 8376 | X47: 7274 | Y47: 8940 | Z47: 8563 | AA47: 9132 | AB47: 7868 | AC47: 7868 | AE47: =SUMIFS('JP SC Raw Data'!$T:$T,'JP SC Raw Data'!$F:$F,"S",'JP SC Raw Data'!$B:$B,"2019/20",'JP SC Raw Data'!$E:$E,"National") -> 70652 | AF47: =AE47/12 -> 5887.666667
C48: Trials called | D48: 802 | E48: 372 | F48: 154 | G48: 291 | H48: 2343 | I48: 3107 | J48: 3207 | K48: 3443 | L48: 3090 | M48: 3805 | N48: 737 | O48: 2371 | P48: 2657 | Q48: 3171 | R48: 3887 | S48: 4169 | T48: 4499 | U48: 5443 | V48: 4266 | W48: 3428 | X48: 4703 | Y48: 4537 | Z48: 5093 | AA48: 6599 | AB48: 5094 | AC48: 5094 | AE48: =SUMIFS('JP SC Raw Data'!$U:$U,'JP SC Raw Data'!$F:$F,"S",'JP SC Raw Data'!$B:$B,"2019/20",'JP SC Raw Data'!$E:$E,"National") -> 40729 | AF48: 3394.083333
C49: Trials called where evidence was led | D49: 5 | E49: 9 | F49: 24 | G49: 79 | H49: 283 | I49: 440 | J49: 479 | K49: 491 | L49: 399 | M49: 176 | N49: 86 | O49: 250 | P49: 352 | Q49: 433 | R49: 471 | S49: 408 | T49: 459 | U49: 551 | V49: 439 | W49: 385 | X49: 422 | Y49: 427 | Z49: 552 | AA49: 604 | AB49: 505 | AC49: 505 | AE49: =SUMIFS('JP SC Raw Data'!$V:$V,'JP SC Raw Data'!$F:$F,"S",'JP SC Raw Data'!$B:$B,"2019/20",'JP SC Raw Data'!$E:$E,"National") -> 6946 | AF49: 578.8333333
C50: Trials adjourned due to lack of court time | D50: 0 | E50: 0 | F50: 0 | G50: 8 | H50: 21 | I50: 40 | J50: 50 | K50: 57 | L50: 90 | M50: 9 | N50: 1 | O50: 11 | P50: 43 | Q50: 57 | R50: 96 | S50: 67 | T50: 91 | U50: 94 | V50: 101 | W50: 68 | X50: 64 | Y50: 58 | Z50: 88 | AA50: 56 | AB50: 76 | AC50: 76 | AE50: =SUMIFS('JP SC Raw Data'!$W:$W,'JP SC Raw Data'!$F:$F,"S",'JP SC Raw Data'!$B:$B,"2019/20",'JP SC Raw Data'!$E:$E,"National") -> 1230 | AF50: 102.5
C51: Percentage of trials adjourned due to lack of court time | D51: =IFERROR(SUM(D50/D48),0) -> 0 | E51: =IFERROR(SUM(E50/E48),0) -> 0 | F51: 0 | G51: 0.02749140893 | H51: 0.008962868118 | I51: 0.01287415513 | J51: 0.01559089492 | K51: =IFERROR(SUM(K50/K48),0) -> 0.01655532965 | L51: =IFERROR(SUM(L50/L48),0) -> 0.02912621359 | M51: =IFERROR(SUM(M50/M48),0) -> 0.002365308804 | N51: =IFERROR(SUM(N50/N48),0) -> 0.001356852103 | O51: 0.004639392661 | P51: 0.01618366579 | Q51: 0.01797540208 | R51: =IFERROR(SUM(R50/R48),0) -> 0.02469771032 | S51: 0.01607100024 | T51: 0.02022671705 | U51: 0.01726988793 | V51: 0.02367557431 | W51: 0.01983663944 | X51: =IFERROR(SUM(X50/X48),0) -> 0.01360833511 | Y51: 0.01278377783 | Z51: 0.01727861771 | AA51: 0.008486134263 | AB51: 0.01491951315 | AC51: 0.01491951315 | AE51: =SUM(AE50/AE48) -> 0.03019961207 | AF51: 0.03019961207
C52: Complaints concluded | D52: 429 | E52: 744 | F52: 1146 | G52: 2227 | H52: 4084 | I52: 4759 | J52: 4395 | K52: 4244 | L52: 3944 | M52: 2071 | N52: 1665 | O52: 2735 | P52: 3466 | Q52: 4181 | R52: 4547 | S52: 4446 | T52: 4654 | U52: 5186 | V52: 4099 | W52: 4162 | X52: 4410 | Y52: 4126 | Z52: 4995 | AA52: 5929 | AB52: 4987 | AC52: =SUM(AB52) -> 4987 | AE52: =SUMIFS('JP SC Raw Data'!$Y:$Y,'JP SC Raw Data'!$F:$F,"S",'JP SC Raw Data'!$B:$B,"2019/20",'JP SC Raw Data'!$E:$E,"National") -> 57256 | AF52: =AE52/12 -> 4771.333333
C53: Average time between pleading diet and evidence led trial, where evidence led trial occurred in the period shown (weeks) | D53: 7.084 | E53: 3.843333333 | F53: 11.475 | G53: 21.38050633 | H53: 34.06579505 | I53: 37.83834091 | J53: 35.17250522 | K53: 33.83321792 | L53: 34.1124812 | M53: 36.05914773 | N53: 35.49627907 | O53: 34.8928 | P53: 34.80360795 | Q53: 36.66076212 | R53: 41.73518047 | S53: 44.97041667 | T53: 45.60104575 | U53: 48.23023593 | V53: 47.25947608 | W53: 45.5703 | X53: 46.9661 | Y53: 49.67328 | Z53: 52.49364 | AA53: 50.4565894 | AB53: 52.718 | AC53: =AB53 -> 52.718 | AF53: 23
C54: Trials scheduled at end of period | D54: 13967 | E54: 15854 | F54: 17818 | G54: 20929 | H54: 22932 | I54: 25146 | J54: 26370 | K54: 27372 | L54: 27723 | M54: 28548 | N54: 29324 | O54: 30645 | P54: 31799 | Q54: 32778 | R54: 33598 | S54: 33602 | T54: 33369 | U54: 32433 | V54: 32488 | W54: 33015 | X54: 32394 | Y54: 32759 | Z54: 31904 | AA54: 30520 | AB54: 29793 | AC54: =AB54 -> 29793 | AE54: =SUMIFS('JP SC Raw Data'!$X:$X,'JP SC Raw Data'!$B:$B,'JP SC Raw Data'!$AD$2,'JP SC Raw Data'!$C:$C,'JP SC Raw Data'!$AE$2,'JP SC Raw Data'!$D:$D,"0") -> 13971 | AF54: 13971
C55: Forecast Scheduled Trials as at end of period3 | D55: =13971+(0.62*D44)-'Internal analytics'!F29 -> 15807.92 | E55: =D55+(0.62*E44)-'Internal analytics'!G29 -> 17787.06 | F55: =E55+(0.62*F44)-'Internal analytics'!H29 -> 20396.64 | G55: =F55+(0.62*G44)-'Internal analytics'!I29 -> 24039.74 | H55: =G55+(0.62*H44)-'Internal analytics'!J29 -> 26583.68 | I55: =H55+(0.62*I44)-'Internal analytics'!K29 -> 28556.78 | J55: =I55+(0.62*J44)-'Internal analytics'!L29 -> 29687.86 | K55: =J55+(0.62*K44)-'Internal analytics'!M29 -> 30471.32 | L55: =K55+(0.62*L44)-'Internal analytics'!N29 -> 31313.04 | M55: =L55+(0.62*M44)-SUM('Internal analytics'!O29+'Internal analytics'!O32) -> 32618.84 | N55: =M55+(0.62*N44)-SUM('Internal analytics'!P29+'Internal analytics'!P32) -> 34119.2 | O55: =N55+(0.62*O44)-SUM('Internal analytics'!Q29+'Internal analytics'!Q32) -> 35751.2 | P55: =O55+(0.62*P44)-SUM('Internal analytics'!R29,'Internal analytics'!R32,'Internal analytics'!R33) -> 36406.74 | Q55: =P55+(0.62*Q44)-SUM('Internal analytics'!S29,'Internal analytics'!S32,'Internal analytics'!S33) -> 36309.6 | R55: =Q55+(0.62*R44)-SUM('Internal analytics'!T29,'Internal analytics'!T32,'Internal analytics'!T33) -> 35790.88 | S55: =R55+(0.62*S44)-SUM('Internal analytics'!U29,'Internal analytics'!U32,'Internal analytics'!U33) -> 35144.68 | T55: =S55+(0.62*T44)-SUM('Internal analytics'!V29,'Internal analytics'!V32,'Internal analytics'!V33) -> 34362.84 | U55: =T55+(0.62*U44)-SUM('Internal analytics'!W29,'Internal analytics'!W32,'Internal analytics'!W33) -> 32820.7 | V55: =V54 -> 32488 | W55: 33015 | X55: 32394 | Y55: 32759 | Z55: 31904 | AA55: 30520 | AB55: =AB54 -> 29793
B57: Justice of the Peace Court | C57: Complaints registered during period | D57: 1994 | E57: 910 | F57: 987 | G57: 1823 | H57: 1064 | I57: 916 | J57: 1717 | K57: 1221 | L57: 1426 | M57: 1469 | N57: 1345 | O57: 2060 | P57: 1992 | Q57: 1731 | R57: 2064 | S57: 1717 | T57: 2012 | U57: 2133 | V57: 2108 | W57: 2034 | X57: 1856 | Y57: 1787 | Z57: 1611 | AA57: 2512 | AB57: 1893 | AC57: =SUM(AB57) -> 1893 | AE57: =SUMIFS('JP SC Raw Data'!$Q:$Q,'JP SC Raw Data'!$F:$F,"J",'JP SC Raw Data'!$B:$B,"2019/20",'JP SC Raw Data'!$E:$E,"National") -> 33582 | AF57: =AE57/12 -> 2798.5
C58: Complaints called for first time | D58: 1182 | E58: 772 | F58: 538 | G58: 1734 | H58: 1398 | I58: 772 | J58: 1485 | K58: 1257 | L58: 1564 | M58: 1840 | N58: 585 | O58: 1536 | P58: 1055 | Q58: 772 | R58: 1657 | S58: 2059 | T58: 1929 | U58: 2038 | V58: 2143 | W58: 2148 | X58: 1932 | Y58: 1843 | Z58: 1261 | AA58: 2523 | AB58: 2135 | AC58: =SUM(AB58) -> 2135 | AE58: =SUMIFS('JP SC Raw Data'!$R:$R,'JP SC Raw Data'!$F:$F,"J",'JP SC Raw Data'!$B:$B,"2019/20",'JP SC Raw Data'!$E:$E,"National") -> 33066 | AF58: =AE58/12 -> 2755.5
C59: Complaints called for 'Continued Without Plea' hearing | D59: 994 | E59: 936 | F59: 900 | G59: 1140 | H59: 3278 | I59: 3839 | J59: 2986 | K59: 2766 | L59: 2521 | M59: 2127 | N59: 626 | O59: 1482 | P59: 1052 | Q59: 1743 | R59: 3521 | S59: 5126 | T59: 3844 | U59: 2783 | V59: 2138 | W59: 2060 | X59: 1994 | Y59: 1698 | Z59: 1813 | AA59: 1607 | AB59: 1912 | AC59: 1912 | AE59: =SUMIFS('JP SC Raw Data'!$S:$S,'JP SC Raw Data'!$F:$F,"J",'JP SC Raw Data'!$B:$B,"2019/20",'JP SC Raw Data'!$E:$E,"National") -> 18263 | AF59: 1521.916667
C60: Complaints called in Intermediate Diet court | D60: 700 | E60: 446 | F60: 106 | G60: 365 | H60: 1565 | I60: 1838 | J60: 1796 | K60: 1504 | L60: 1447 | M60: 1774 | N60: 931 | O60: 847 | P60: 658 | Q60: 683 | R60: 1286 | S60: 1480 | T60: 1798 | U60: 2006 | V60: 1268 | W60: 1683 | X60: 1653 | Y60: 1926 | Z60: 1857 | AA60: 2111 | AB60: 1874 | AC60: 1874 | AE60: =SUMIFS('JP SC Raw Data'!$T:$T,'JP SC Raw Data'!$F:$F,"J",'JP SC Raw Data'!$B:$B,"2019/20",'JP SC Raw Data'!$E:$E,"National") -> 19195 | AF60: =AE60/12 -> 1599.583333
C61: Trials called | D61: 126 | E61: 71 | F61: 7 | G61: 23 | H61: 308 | I61: 698 | J61: 658 | K61: 738 | L61: 653 | M61: 860 | N61: 111 | O61: 276 | P61: 102 | Q61: 50 | R61: 240 | S61: 495 | T61: 952 | U61: 875 | V61: 725 | W61: 638 | X61: 878 | Y61: 681 | Z61: 882 | AA61: 1116 | AB61: 964 | AC61: 964 | AE61: =SUMIFS('JP SC Raw Data'!$U:$U,'JP SC Raw Data'!$F:$F,"J",'JP SC Raw Data'!$B:$B,"2019/20",'JP SC Raw Data'!$E:$E,"National") -> 10061 | AF61: 838.4166667
C62: Trials called where evidence was led | D62: 0 | E62: 0 | F62: 0 | G62: 1 | H62: 23 | I62: 68 | J62: 68 | K62: 87 | L62: 73 | M62: 27 | N62: 2 | O62: 0 | P62: 0 | Q62: 0 | R62: 16 | S62: 51 | T62: 67 | U62: 82 | V62: 63 | W62: 45 | X62: 45 | Y62: 6 | Z62: 70 | AA62: 73 | AB62: 61 | AC62: 61 | AE62: =SUMIFS('JP SC Raw Data'!$V:$V,'JP SC Raw Data'!$F:$F,"J",'JP SC Raw Data'!$B:$B,"2019/20",'JP SC Raw Data'!$E:$E,"National") -> 1543 | AF62: 128.5833333
C63: Trials adjourned due to lack of court time | D63: 0 | E63: 0 | F63: 0 | G63: 0 | H63: 3 | I63: 10 | J63: 13 | K63: 5 | L63: 4 | M63: 2 | N63: 0 | O63: 0 | P63: 0 | Q63: 0 | R63: 0 | S63: 2 | T63: 14 | U63: 7 | V63: 5 | W63: 8 | X63: 8 | Y63: 0 | Z63: 9 | AA63: 10 | AB63: 10 | AC63: 10 | AE63: =SUMIFS('JP SC Raw Data'!$W:$W,'JP SC Raw Data'!$F:$F,"J",'JP SC Raw Data'!$B:$B,"2019/20",'JP SC Raw Data'!$E:$E,"National") -> 238 | AF63: 19.83333333
C64: Percentage of trials adjourned due to lack of court time | D64: =IFERROR(SUM(D63/D61),0) -> 0 | E64: =IFERROR(SUM(E63/E61),0) -> 0 | F64: 0 | G64: 0 | H64: 0.00974025974 | I64: =IFERROR(SUM(I63/I61),"") -> 0.01432664756 | J64: =IFERROR(SUM(J63/J61),"") -> 0.01975683891 | K64: =IFERROR(SUM(K63/K61),"") -> 0.006775067751 | L64: 0.006125574273 | M64: =IFERROR(SUM(M63/M61),"") -> 0.002325581395 | N64: =IFERROR(SUM(N63/N61),"") -> 0 | O64: 0 | P64: 0 | Q64: =IFERROR(SUM(Q63/Q61),"") -> 0 | R64: 0 | S64: 0.00404040404 | T64: =IFERROR(SUM(T63/T61),"") -> 0.01470588235 | U64: 0.008 | V64: 0.006896551724 | W64: 0.01253918495 | X64: 0.009111617312 | Y64: =IFERROR(SUM(Y63/Y61),"") -> 0 | Z64: 0.01020408163 | AA64: =IFERROR(SUM(AA63/AA61),"") -> 0.008960573477 | AB64: =IFERROR(SUM(AB63/AB61),"") -> 0.01037344398 | AC64: =IFERROR(SUM(AC63/AC61),"") -> 0.01037344398 | AE64: =SUM(AE63/AE61) -> 0.02365570023 | AF64: 0.02365570023
C65: Complaints concluded | D65: 10 | E65: 50 | F65: 193 | G65: 459 | H65: 1389 | I65: 1822 | J65: 1651 | K65: 1683 | L65: 1624 | M65: 627 | N65: 135 | O65: 332 | P65: 206 | Q65: 315 | R65: 2017 | S65: 3032 | T65: 2797 | U65: 2498 | V65: 2022 | W65: 1921 | X65: 1781 | Y65: 1513 | Z65: 1741 | AA65: 2215 | AB65: 2093 | AC65: =SUM(AB65) -> 2093 | AE65: =SUMIFS('JP SC Raw Data'!$Y:$Y,'JP SC Raw Data'!$F:$F,"J",'JP SC Raw Data'!$B:$B,"2019/20",'JP SC Raw Data'!$E:$E,"National") -> 30686 | AF65: =AE65/12 -> 2557.166667
C66: Average time between pleading diet and evidence led trial, where evidence led trial occurred in the period shown (weeks) | D66: N/A | E66: N/A | F66: N/A | G66: 36.29 | H66: 34.07695652 | I66: 37.38691176 | J66: 36.72235294 | K66: 41.48229885 | L66: 37.75534247 | M66: 37.10444444 | N66: 54.93 | O66: N/A | P66: N/A | Q66: N/A | R66: 58.12625 | S66: 58.44862745 | T66: 58.65716418 | U66: 55.04036585 | V66: 59.37920635 | W66: 59.829 | X66: 58.7836 | Y66: 59.025 | Z66: 56.40343 | AA66: 54.18301 | AB66: 53.93754 | AC66: =AB66 -> 53.93754 | AF66: 22
C67: Trials scheduled at end of period | D67: 3220 | E67: 3495 | F67: 3732 | G67: 4088 | H67: 4491 | I67: 4837 | J67: 5074 | K67: 5189 | L67: 5371 | M67: 5213 | N67: 5255 | O67: 5560 | P67: 5999 | Q67: 6321 | R67: 6945 | S67: 7730 | T67: 7944 | U67: 7890 | V67: 7941 | W67: 8053 | X67: 7936 | Y67: 8101 | Z67: 7868 | AA67: 7569 | AB67: 7289 | AC67: =AB67 -> 7289 | AE67: =SUMIFS('JP SC Raw Data'!$X:$X,'JP SC Raw Data'!$B:$B,'JP SC Raw Data'!$AD$2,'JP SC Raw Data'!$C:$C,'JP SC Raw Data'!$AE$2,'JP SC Raw Data'!$D:$D,"1") -> 3497 | AF67: 3497
C68: Forecast Scheduled Trials as at end of period3 | D68: =3497+(0.3*D57)-'Internal analytics'!F41 -> 4094.2 | E68: =D68+(0.3*E57)-'Internal analytics'!G41 -> 4364.2 | F68: =E68+(0.3*F57)-'Internal analytics'!H41 -> 4657.3 | G68: =F68+(0.3*G57)-'Internal analytics'!I41 -> 5193.2 | H68: =G68+(0.3*H57)-'Internal analytics'!J41 -> 5381.4 | I68: =H68+(0.3*I57)-'Internal analytics'!K41 -> 5293.2 | J68: =I68+(0.3*J57)-'Internal analytics'!L41 -> 5459.3 | K68: =J68+(0.3*K57)-'Internal analytics'!M41 -> 5418.6 | L68: =K68+(0.3*L57)-'Internal analytics'!N41 -> 5500.4 | M68: =L68+(0.3*M57)-SUM('Internal analytics'!O41,'Internal analytics'!O44) -> 5769.1 | N68: =M68+(0.3*N57)-SUM('Internal analytics'!P41,'Internal analytics'!P44) -> 6133.6 | O68: =N68+(0.3*O57)-SUM('Internal analytics'!Q41,'Internal analytics'!Q44) -> 6741.6 | P68: =O68+(0.3*P57)-SUM('Internal analytics'!R41,'Internal analytics'!R44,'Internal analytics'!R45) -> 7303.2 | Q68: =P68+(0.3*Q57)-SUM('Internal analytics'!S41,'Internal analytics'!S44,'Internal analytics'!S45) -> 7779.5 | R68: =Q68+(0.3*R57)-SUM('Internal analytics'!T41,'Internal analytics'!T44,'Internal analytics'!T45) -> 8122.7 | S68: =R68+(0.3*S57)-SUM('Internal analytics'!U41,'Internal analytics'!U44,'Internal analytics'!U45) -> 8112.8 | T68: =T67 -> 7944 | U68: =U67 -> 7890 | V68: 7941 | W68: 8053 | X68: 7936 | Y68: =Y67 -> 8101 | Z68: =Z67 -> 7868 | AA68: =AA67 -> 7569 | AB68: =AB67 -> 7289
B69: Notes 1. These figures provide interim management information during the Coronavirus pandemic. Official Statistics with full commentary will be published by SCTS each quarter as normal. 2. All figures for 2019/20 are monthly averages except for the rows showing Trials Scheduled, Forecast Scheduled Trials and Average time between pleading diet and evidence led trial where figures are as at the end of the period shown. 3. Forecast Scheduled Trials is provided as a guide to show not just the cases with future trial diets (Scheduled Trials), but to also include cases in the system that are likley to have a trial diet fixed at some point. This is calculated by taking Trials Scheduled at the end of March 2020 then adding a percentage of the cases registered that are likely to have a trial diet fixed (use Trials Called as a percentage of registered cases) then deduct any cases that have concluded at trial.

Sheet National Overview Chart Data (hidden)
A1: National overview chart data
A3: Cases Registered | B3: ='1a'!D3 -> 2020-04-01 | C3: ='1a'!E3 -> 2020-05-01 | D3: ='1a'!F3 -> 2020-06-01 | E3: ='1a'!G3 -> 2020-07-01 | F3: ='1a'!H3 -> 2020-08-01 | G3: ='1a'!I3 -> 2020-09-01 | H3: ='1a'!J3 -> 2020-10-01 | I3: ='1a'!K3 -> 2020-11-01 | J3: ='1a'!L3 -> 2020-12-01 | K3: ='1a'!M3 -> 2021-01-01 | L3: ='1a'!N3 -> 2021-02-01 | M3: ='1a'!O3 -> 2021-03-01 | N3: ='1a'!P3 -> 2021-04-01 | O3: ='1a'!Q3 -> 2021-05-01 | P3: ='1a'!R3 -> 2021-06-01 | Q3: ='1a'!S3 -> 2021-07-01 | R3: ='1a'!T3 -> 2021-08-01 | S3: ='1a'!U3 -> 2021-09-01 | T3: ='1a'!V3 -> 2021-10-01 | U3: ='1a'!W3 -> 2021-11-01 | V3: ='1a'!X3 -> 2021-12-01 | W3: ='1a'!Y3 -> 2022-01-01 | X3: ='1a'!Z3 -> 2022-02-01 | Y3: ='1a'!AA3 -> 2022-03-01 | Z3: ='1a'!AB3 -> 2022-04-01 | AA3: 2019/20 monthly average | AB3: 2020/21 YTD
A4: National | B4: ='1a'!D4 -> 5306 | C4: ='1a'!E4 -> 4561 | D4: ='1a'!F4 -> 5720 | E4: ='1a'!G4 -> 8558 | F4: ='1a'!H4 -> 7643 | G4: ='1a'!I4 -> 7333 | H4: ='1a'!J4 -> 6903 | I4: ='1a'!K4 -> 6050 | J4: ='1a'!L4 -> 5858 | K4: ='1a'!M4 -> 5703 | L4: ='1a'!N4 -> 5465 | M4: ='1a'!O4 -> 7560 | N4: ='1a'!P4 -> 7505 | O4: ='1a'!Q4 -> 6909 | P4: ='1a'!R4 -> 7136 | Q4: ='1a'!S4 -> 6743 | R4: ='1a'!T4 -> 7214 | S4: ='1a'!U4 -> 7124 | T4: ='1a'!V4 -> 7166 | U4: ='1a'!W4 -> 7399 | V4: ='1a'!X4 -> 7235 | W4: ='1a'!Y4 -> 6894 | X4: ='1a'!Z4 -> 6233 | Y4: ='1a'!AA4 -> 8009 | Z4: ='1a'!AB4 -> 6814 | AA4: ='1a'!AF4 -> 8795.666667
A5: High Court | B5: ='1a'!D17 -> 77 | C5: ='1a'!E17 -> 85 | D5: ='1a'!F17 -> 69 | E5: ='1a'!G17 -> 63 | F5: ='1a'!H17 -> 46 | G5: ='1a'!I17 -> 68 | H5: ='1a'!J17 -> 60 | I5: ='1a'!K17 -> 32 | J5: ='1a'!L17 -> 48 | K5: ='1a'!M17 -> 65 | L5: ='1a'!N17 -> 64 | M5: ='1a'!O17 -> 90 | N5: ='1a'!P17 -> 55 | O5: ='1a'!Q17 -> 43 | P5: ='1a'!R17 -> 57 | Q5: ='1a'!S17 -> 66 | R5: ='1a'!T17 -> 37 | S5: ='1a'!U17 -> 57 | T5: ='1a'!V17 -> 69 | U5: ='1a'!W17 -> 54 | V5: ='1a'!X17 -> 69 | W5: ='1a'!Y17 -> 68 | X5: ='1a'!Z17 -> 90 | Y5: ='1a'!AA17 -> 80 | Z5: ='1a'!AB17 -> 77 | AA5: ='1a'!AF17 -> 85.33333333
A6: Sheriff Court - Solemn | B6: ='1a'!D31 -> 219 | C6: ='1a'!E31 -> 319 | D6: ='1a'!F31 -> 355 | E6: ='1a'!G31 -> 467 | F6: ='1a'!H31 -> 496 | G6: ='1a'!I31 -> 494 | H6: ='1a'!J31 -> 492 | I6: ='1a'!K31 -> 414 | J6: ='1a'!L31 -> 428 | K6: ='1a'!M31 -> 379 | L6: ='1a'!N31 -> 378 | M6: ='1a'!O31 -> 410 | N6: ='1a'!P31 -> 441 | O6: ='1a'!Q31 -> 532 | P6: ='1a'!R31 -> 471 | Q6: ='1a'!S31 -> 520 | R6: ='1a'!T31 -> 447 | S6: ='1a'!U31 -> 481 | T6: ='1a'!V31 -> 479 | U6: ='1a'!W31 -> 541 | V6: ='1a'!X31 -> 450 | W6: ='1a'!Y31 -> 425 | X6: ='1a'!Z31 -> 525 | Y6: ='1a'!AA31 -> 447 | Z6: ='1a'!AB31 -> 421 | AA6: ='1a'!AF30 -> 815
A7: Sheriff Court - Summary | B7: ='1a'!D44 -> 3016 | C7: ='1a'!E44 -> 3247 | D7: ='1a'!F44 -> 4309 | E7: ='1a'!G44 -> 6205 | F7: ='1a'!H44 -> 6037 | G7: ='1a'!I44 -> 5855 | H7: ='1a'!J44 -> 4634 | I7: ='1a'!K44 -> 4383 | J7: ='1a'!L44 -> 3956 | K7: ='1a'!M44 -> 3790 | L7: ='1a'!N44 -> 3678 | M7: ='1a'!O44 -> 5000 | N7: ='1a'!P44 -> 5017 | O7: ='1a'!Q44 -> 4603 | P7: ='1a'!R44 -> 4544 | Q7: ='1a'!S44 -> 4440 | R7: ='1a'!T44 -> 4718 | S7: ='1a'!U44 -> 4453 | T7: ='1a'!V44 -> 4510 | U7: ='1a'!W44 -> 4770 | V7: ='1a'!X44 -> 4860 | W7: ='1a'!Y44 -> 4614 | X7: ='1a'!Z44 -> 4007 | Y7: ='1a'!AA44 -> 4970 | Z7: ='1a'!AB44 -> 4423 | AA7: ='1a'!AF44 -> 5457.5
A8: Justice of the Peace Court - Summary | B8: ='1a'!D57 -> 1994 | C8: ='1a'!E57 -> 910 | D8: ='1a'!F57 -> 987 | E8: ='1a'!G57 -> 1823 | F8: ='1a'!H57 -> 1064 | G8: ='1a'!I57 -> 916 | H8: ='1a'!J57 -> 1717 | I8: ='1a'!K57 -> 1221 | J8: ='1a'!L57 -> 1426 | K8: ='1a'!M57 -> 1469 | L8: ='1a'!N57 -> 1345 | M8: ='1a'!O57 -> 2060 | N8: ='1a'!P57 -> 1992 | O8: ='1a'!Q57 -> 1731 | P8: ='1a'!R57 -> 2064 | Q8: ='1a'!S57 -> 1717 | R8: ='1a'!T57 -> 2012 | S8: ='1a'!U57 -> 2133 | T8: ='1a'!V57 -> 2108 | U8: ='1a'!W57 -> 2034 | V8: ='1a'!X57 -> 1856 | W8: ='1a'!Y57 -> 1787 | X8: ='1a'!Z57 -> 1611 | Y8: ='1a'!AA57 -> 2512 | Z8: ='1a'!AB57 -> 1893 | AA8: ='1a'!AF57 -> 2798.5
A11: Trials Called | B11: ='1a'!D3 -> 2020-04-01 | C11: ='1a'!E3 -> 2020-05-01 | D11: ='1a'!F3 -> 2020-06-01 | E11: ='1a'!G3 -> 2020-07-01 | F11: ='1a'!H3 -> 2020-08-01 | G11: ='1a'!I3 -> 2020-09-01 | H11: ='1a'!J3 -> 2020-10-01 | I11: ='1a'!K3 -> 2020-11-01 | J11: ='1a'!L3 -> 2020-12-01 | K11: ='1a'!M3 -> 2021-01-01 | L11: =L3 -> 2021-02-01 | M11: 2021-03-01 | N11: 2021-04-01 | O11: 2021-05-01 | P11: 2021-06-01 | Q11: 2021-07-01 | R11: =R3 -> 2021-08-01 | S11: 2021-09-01 | T11: =T3 -> 2021-10-01 | U11: 2021-11-01 | V11: =V3 -> 2021-12-01 | W11: 2022-01-01 | X11: =X3 -> 2022-02-01 | Y11: 2022-03-01 | Z11: =Z3 -> 2022-04-01 | AA11: 2019/20 monthly average | AB11: 2020/21 YTD
A12: National | B12: ='1a'!D9 -> 1019 | C12: ='1a'!E9 -> 476 | D12: ='1a'!F9 -> 192 | E12: ='1a'!G9 -> 355 | F12: ='1a'!H9 -> 2811 | G12: ='1a'!I9 -> 3950 | H12: ='1a'!J9 -> 3980 | I12: ='1a'!K9 -> 4386 | J12: ='1a'!L9 -> 3868 | K12: ='1a'!M9 -> 4882 | L12: ='1a'!N9 -> 1200 | M12: ='1a'!O9 -> 3101 | N12: ='1a'!P9 -> 3167 | O12: ='1a'!Q9 -> 3649 | P12: ='1a'!R9 -> 4577 | Q12: ='1a'!S9 -> 5062 | R12: ='1a'!T9 -> 5917 | S12: ='1a'!U9 -> 6778 | T12: ='1a'!V9 -> 5449 | U12: ='1a'!W9 -> 4420 | V12: ='1a'!X9 -> 5882 | W12: ='1a'!Y9 -> 5648 | X12: ='1a'!Z9 -> 6472 | Y12: ='1a'!AA9 -> 8276 | Z12: ='1a'!AB9 -> 6556 | AA12: ='1a'!AF9 -> 4562
A13: High Court | B13: ='1a'!D21 -> 0 | C13: ='1a'!E21 -> 0 | D13: ='1a'!F21 -> 0 | E13: ='1a'!G21 -> 4 | F13: ='1a'!H21 -> 14 | G13: ='1a'!I21 -> 26 | H13: ='1a'!J21 -> 42 | I13: ='1a'!K21 -> 58 | J13: ='1a'!L21 -> 47 | K13: ='1a'!M21 -> 56 | L13: ='1a'!N21 -> 67 | M13: ='1a'!O21 -> 66 | N13: ='1a'!P21 -> 46 | O13: ='1a'!Q21 -> 60 | P13: ='1a'!R21 -> 67 | Q13: ='1a'!S21 -> 58 | R13: ='1a'!T21 -> 74 | S13: ='1a'!U21 -> 64 | T13: ='1a'!V21 -> 65 | U13: ='1a'!W21 -> 81 | V13: ='1a'!X21 -> 38 | W13: ='1a'!Y21 -> 62 | X13: ='1a'!Z21 -> 64 | Y13: ='1a'!AA21 -> 73 | Z13: ='1a'!AB21 -> 73 | AA13: ='1a'!AF21 -> 67.66666667
A14: Sheriff Court - Solemn | B14: ='1a'!D35 -> 91 | C14: ='1a'!E35 -> 33 | D14: ='1a'!F35 -> 31 | E14: ='1a'!G35 -> 37 | F14: ='1a'!H35 -> 146 | G14: ='1a'!I35 -> 119 | H14: ='1a'!J35 -> 73 | I14: ='1a'!K35 -> 147 | J14: ='1a'!L35 -> 78 | K14: ='1a'!M35 -> 161 | L14: ='1a'!N35 -> 285 | M14: ='1a'!O35 -> 388 | N14: ='1a'!P35 -> 362 | O14: ='1a'!Q35 -> 368 | P14: ='1a'!R35 -> 383 | Q14: ='1a'!S35 -> 340 | R14: ='1a'!T35 -> 392 | S14: ='1a'!U35 -> 396 | T14: ='1a'!V35 -> 393 | U14: ='1a'!W35 -> 273 | V14: ='1a'!X35 -> 263 | W14: ='1a'!Y35 -> 368 | X14: ='1a'!Z35 -> 433 | Y14: ='1a'!AA35 -> 488 | Z14: ='1a'!AB35 -> 425 | AA14: ='1a'!AF35 -> 261.8333333
A15: Sheriff Court - Summary | B15: ='1a'!D48 -> 802 | C15: ='1a'!E48 -> 372 | D15: ='1a'!F48 -> 154 | E15: ='1a'!G48 -> 291 | F15: ='1a'!H48 -> 2343 | G15: ='1a'!I48 -> 3107 | H15: ='1a'!J48 -> 3207 | I15: ='1a'!K48 -> 3443 | J15: ='1a'!L48 -> 3090 | K15: ='1a'!M48 -> 3805 | L15: ='1a'!N48 -> 737 | M15: ='1a'!O48 -> 2371 | N15: ='1a'!P48 -> 2657 | O15: ='1a'!Q48 -> 3171 | P15: ='1a'!R48 -> 3887 | Q15: ='1a'!S48 -> 4169 | R15: ='1a'!T48 -> 4499 | S15: ='1a'!U48 -> 5443 | T15: ='1a'!V48 -> 4266 | U15: ='1a'!W48 -> 3428 | V15: ='1a'!X48 -> 4703 | W15: ='1a'!Y48 -> 4537 | X15: ='1a'!Z48 -> 5093 | Y15: ='1a'!AA48 -> 6599 | Z15: ='1a'!AB48 -> 5094 | AA15: ='1a'!AF48 -> 3394.083333
A16: Justice of the Peace Court - Summary | B16: ='1a'!D61 -> 126 | C16: ='1a'!E61 -> 71 | D16: ='1a'!F61 -> 7 | E16: ='1a'!G61 -> 23 | F16: ='1a'!H61 -> 308 | G16: ='1a'!I61 -> 698 | H16: ='1a'!J61 -> 658 | I16: ='1a'!K61 -> 738 | J16: ='1a'!L61 -> 653 | K16: ='1a'!M61 -> 860 | L16: ='1a'!N61 -> 111 | M16: ='1a'!O61 -> 276 | N16: ='1a'!P61 -> 102 | O16: ='1a'!Q61 -> 50 | P16: ='1a'!R61 -> 240 | Q16: ='1a'!S61 -> 495 | R16: ='1a'!T61 -> 952 | S16: ='1a'!U61 -> 875 | T16: ='1a'!V61 -> 725 | U16: ='1a'!W61 -> 638 | V16: ='1a'!X61 -> 878 | W16: ='1a'!Y61 -> 681 | X16: ='1a'!Z61 -> 882 | Y16: ='1a'!AA61 -> 1116 | Z16: ='1a'!AB61 -> 964 | AA16: ='1a'!AF61 -> 838.4166667
A19: Trials called where evidence was led | B19: 2020-04-01 | C19: 2020-05-01 | D19: 2020-06-01 | E19: 2020-07-01 | F19: 2020-08-01 | G19: 2020-09-01 | H19: 2020-10-01 | I19: 2020-11-01 | J19: 2020-12-01 | K19: 2021-01-01 | L19: =L3 -> 2021-02-01 | M19: 2021-03-01 | N19: 2021-04-01 | O19: 2021-05-01 | P19: 2021-06-01 | Q19: 2021-07-01 | R19: =R3 -> 2021-08-01 | S19: 2021-09-01 | T19: =T3 -> 2021-10-01 | U19: 2021-11-01 | V19: =V3 -> 2021-12-01 | W19: 2022-01-01 | X19: =X3 -> 2022-02-01 | Y19: 2022-03-01 | Z19: =Z3 -> 2022-04-01 | AA19: 2019/20 monthly average | AB19: 2020/21 YTD
A20: National | B20: ='1a'!D10 -> 5 | C20: ='1a'!E10 -> 9 | D20: ='1a'!F10 -> 24 | E20: ='1a'!G10 -> 84 | F20: ='1a'!H10 -> 320 | G20: ='1a'!I10 -> 526 | H20: ='1a'!J10 -> 575 | I20: ='1a'!K10 -> 627 | J20: ='1a'!L10 -> 512 | K20: ='1a'!M10 -> 276 | L20: ='1a'!N10 -> 186 | M20: ='1a'!O10 -> 401 | N20: ='1a'!P10 -> 470 | O20: ='1a'!Q10 -> 558 | P20: ='1a'!R10 -> 622 | Q20: ='1a'!S10 -> 583 | R20: ='1a'!T10 -> 664 | S20: ='1a'!U10 -> 775 | T20: ='1a'!V10 -> 626 | U20: ='1a'!W10 -> 541 | V20: ='1a'!X10 -> 549 | W20: ='1a'!Y10 -> 536 | X20: ='1a'!Z10 -> 754 | Y20: ='1a'!AA10 -> 827 | Z20: ='1a'!AB10 -> 691 | AA20: ='1a'!AF10 -> 843.4166667
A21: High Court | B21: ='1a'!D22 -> 0 | C21: ='1a'!E22 -> 0 | D21: ='1a'!F22 -> 0 | E21: ='1a'!G22 -> 4 | F21: ='1a'!H22 -> 14 | G21: ='1a'!I22 -> 18 | H21: ='1a'!J22 -> 28 | I21: ='1a'!K22 -> 49 | J21: ='1a'!L22 -> 29 | K21: ='1a'!M22 -> 43 | L21: ='1a'!N22 -> 42 | M21: ='1a'!O22 -> 51 | N21: ='1a'!P22 -> 34 | O21: ='1a'!Q22 -> 43 | P21: ='1a'!R22 -> 47 | Q21: ='1a'!S22 -> 48 | R21: ='1a'!T22 -> 55 | S21: ='1a'!U22 -> 47 | T21: ='1a'!V22 -> 54 | U21: ='1a'!W22 -> 63 | V21: ='1a'!X22 -> 30 | W21: ='1a'!Y22 -> 47 | X21: ='1a'!Z22 -> 54 | Y21: ='1a'!AA22 -> 55 | Z21: ='1a'!AB22 -> 50 | AA21: ='1a'!AF22 -> 41.5
A22: Sheriff Court - Solemn | B22: ='1a'!D36 -> 0 | C22: ='1a'!E36 -> 0 | D22: ='1a'!F36 -> 0 | E22: ='1a'!G36 -> 0 | F22: ='1a'!H36 -> 0 | G22: ='1a'!I36 -> 0 | H22: ='1a'!J36 -> 0 | I22: ='1a'!K36 -> 0 | J22: ='1a'!L36 -> 11 | K22: ='1a'!M36 -> 30 | L22: ='1a'!N36 -> 56 | M22: ='1a'!O36 -> 100 | N22: ='1a'!P36 -> 84 | O22: ='1a'!Q36 -> 82 | P22: ='1a'!R36 -> 88 | Q22: ='1a'!S36 -> 76 | R22: ='1a'!T36 -> 83 | S22: ='1a'!U36 -> 95 | T22: ='1a'!V36 -> 70 | U22: ='1a'!W36 -> 48 | V22: ='1a'!X36 -> 52 | W22: ='1a'!Y36 -> 56 | X22: ='1a'!Z36 -> 78 | Y22: ='1a'!AA36 -> 95 | Z22: ='1a'!AB36 -> 75 | AA22: ='1a'!AF36 -> 94.5
A23: Sheriff Court - Summary | B23: ='1a'!D49 -> 5 | C23: ='1a'!E49 -> 9 | D23: ='1a'!F49 -> 24 | E23: ='1a'!G49 -> 79 | F23: ='1a'!H49 -> 283 | G23: ='1a'!I49 -> 440 | H23: ='1a'!J49 -> 479 | I23: ='1a'!K49 -> 491 | J23: ='1a'!L49 -> 399 | K23: ='1a'!M49 -> 176 | L23: ='1a'!N49 -> 86 | M23: ='1a'!O49 -> 250 | N23: ='1a'!P49 -> 352 | O23: ='1a'!Q49 -> 433 | P23: ='1a'!R49 -> 471 | Q23: ='1a'!S49 -> 408 | R23: ='1a'!T49 -> 459 | S23: ='1a'!U49 -> 551 | T23: ='1a'!V49 -> 439 | U23: ='1a'!W49 -> 385 | V23: ='1a'!X49 -> 422 | W23: ='1a'!Y49 -> 427 | X23: ='1a'!Z49 -> 552 | Y23: ='1a'!AA49 -> 604 | Z23: ='1a'!AB49 -> 505 | AA23: ='1a'!AF49 -> 578.8333333
A24: Justice of the Peace Court - Summary | B24: ='1a'!D62 -> 0 | C24: ='1a'!E62 -> 0 | D24: ='1a'!F62 -> 0 | E24: ='1a'!G62 -> 1 | F24: ='1a'!H62 -> 23 | G24: ='1a'!I62 -> 68 | H24: ='1a'!J62 -> 68 | I24: ='1a'!K62 -> 87 | J24: ='1a'!L62 -> 73 | K24: ='1a'!M62 -> 27 | L24: ='1a'!N62 -> 2 | M24: ='1a'!O62 -> 0 | N24: ='1a'!P62 -> 0 | O24: ='1a'!Q62 -> 0 | P24: ='1a'!R62 -> 16 | Q24: ='1a'!S62 -> 51 | R24: ='1a'!T62 -> 67 | S24: ='1a'!U62 -> 82 | T24: ='1a'!V62 -> 63 | U24: ='1a'!W62 -> 45 | V24: ='1a'!X62 -> 45 | W24: ='1a'!Y62 -> 6 | X24: ='1a'!Z62 -> 70 | Y24: ='1a'!AA62 -> 73 | Z24: ='1a'!AB62 -> 61 | AA24: ='1a'!AF62 -> 128.5833333
A27: Cases concluded | B27: 2020-04-01 | C27: 2020-05-01 | D27: 2020-06-01 | E27: 2020-07-01 | F27: 2020-08-01 | G27: 2020-09-01 | H27: 2020-10-01 | I27: 2020-11-01 | J27: 2020-12-01 | K27: 2021-01-01 | L27: =L3 -> 2021-02-01 | M27: 2021-03-01 | N27: 2021-04-01 | O27: 2021-05-01 | P27: 2021-06-01 | Q27: 2021-07-01 | R27: =R3 -> 2021-08-01 | S27: 2021-09-01 | T27: =T3 -> 2021-10-01 | U27: 2021-11-01 | V27: =V3 -> 2021-12-01 | W27: 2022-01-01 | X27: =X3 -> 2022-02-01 | Y27: 2022-03-01 | Z27: =Z3 -> 2022-04-01 | AA27: 2019/20 monthly average | AB27: 2020/21 YTD
A28: National | B28: ='1a'!D13 -> 586 | C28: ='1a'!E13 -> 930 | D28: ='1a'!F13 -> 1519 | E28: ='1a'!G13 -> 2892 | F28: ='1a'!H13 -> 5792 | G28: ='1a'!I13 -> 6959 | H28: ='1a'!J13 -> 6407 | I28: ='1a'!K13 -> 6257 | J28: ='1a'!L13 -> 5922 | K28: ='1a'!M13 -> 3070 | L28: ='1a'!N13 -> 2226 | M28: ='1a'!O13 -> 3599 | N28: ='1a'!P13 -> 4188 | O28: ='1a'!Q13 -> 4996 | P28: ='1a'!R13 -> 7085 | Q28: ='1a'!S13 -> 7989 | R28: ='1a'!T13 -> 7978 | S28: ='1a'!U13 -> 8185 | T28: ='1a'!V13 -> 6594 | U28: ='1a'!W13 -> 6579 | V28: ='1a'!X13 -> 6610 | W28: ='1a'!Y13 -> 6041 | X28: ='1a'!Z13 -> 7220 | Y28: ='1a'!AA13 -> 8682 | Z28: ='1a'!AB13 -> 7621 | AA28: ='1a'!AF13 -> 7825.25
A29: High Court | B29: ='1a'!D25 -> 7 | C29: ='1a'!E25 -> 9 | D29: ='1a'!F25 -> 14 | E29: ='1a'!G25 -> 32 | F29: ='1a'!H25 -> 35 | G29: ='1a'!I25 -> 20 | H29: ='1a'!J25 -> 39 | I29: ='1a'!K25 -> 54 | J29: ='1a'!L25 -> 54 | K29: ='1a'!M25 -> 55 | L29: ='1a'!N25 -> 72 | M29: ='1a'!O25 -> 64 | N29: ='1a'!P25 -> 53 | O29: ='1a'!Q25 -> 58 | P29: ='1a'!R25 -> 62 | Q29: ='1a'!S25 -> 58 | R29: ='1a'!T25 -> 76 | S29: ='1a'!U25 -> 62 | T29: ='1a'!V25 -> 70 | U29: ='1a'!W25 -> 82 | V29: ='1a'!X25 -> 56 | W29: ='1a'!Y25 -> 45 | X29: ='1a'!Z25 -> 57 | Y29: ='1a'!AA25 -> 77 | Z29: ='1a'!AB25 -> 66 | AA29: ='1a'!AF25 -> 67.16666667
A30: Sheriff Court - Solemn | B30: ='1a'!D39 -> 140 | C30: ='1a'!E39 -> 127 | D30: ='1a'!F39 -> 166 | E30: ='1a'!G39 -> 174 | F30: ='1a'!H39 -> 284 | G30: ='1a'!I39 -> 358 | H30: ='1a'!J39 -> 322 | I30: ='1a'!K39 -> 276 | J30: ='1a'!L39 -> 300 | K30: ='1a'!M39 -> 317 | L30: ='1a'!N39 -> 354 | M30: ='1a'!O39 -> 468 | N30: ='1a'!P39 -> 463 | O30: ='1a'!Q39 -> 442 | P30: ='1a'!R39 -> 459 | Q30: ='1a'!S39 -> 453 | R30: ='1a'!T39 -> 451 | S30: ='1a'!U39 -> 439 | T30: ='1a'!V39 -> 403 | U30: ='1a'!W39 -> 414 | V30: ='1a'!X39 -> 363 | W30: ='1a'!Y39 -> 357 | X30: ='1a'!Z39 -> 427 | Y30: ='1a'!AA39 -> 461 | Z30: ='1a'!AB39 -> 475 | AA30: ='1a'!AF39 -> 429.5833333
A31: Sheriff Court - Summary | B31: ='1a'!D52 -> 429 | C31: ='1a'!E52 -> 744 | D31: ='1a'!F52 -> 1146 | E31: ='1a'!G52 -> 2227 | F31: ='1a'!H52 -> 4084 | G31: ='1a'!I52 -> 4759 | H31: ='1a'!J52 -> 4395 | I31: ='1a'!K52 -> 4244 | J31: ='1a'!L52 -> 3944 | K31: ='1a'!M52 -> 2071 | L31: ='1a'!N52 -> 1665 | M31: ='1a'!O52 -> 2735 | N31: ='1a'!P52 -> 3466 | O31: ='1a'!Q52 -> 4181 | P31: ='1a'!R52 -> 4547 | Q31: ='1a'!S52 -> 4446 | R31: ='1a'!T52 -> 4654 | S31: ='1a'!U52 -> 5186 | T31: ='1a'!V52 -> 4099 | U31: ='1a'!W52 -> 4162 | V31: ='1a'!X52 -> 4410 | W31: ='1a'!Y52 -> 4126 | X31: ='1a'!Z52 -> 4995 | Y31: ='1a'!AA52 -> 5929 | Z31: ='1a'!AB52 -> 4987 | AA31: ='1a'!AF52 -> 4771.333333
A32: Justice of the Peace Court - Summary | B32: ='1a'!D65 -> 10 | C32: ='1a'!E65 -> 50 | D32: ='1a'!F65 -> 193 | E32: ='1a'!G65 -> 459 | F32: ='1a'!H65 -> 1389 | G32: ='1a'!I65 -> 1822 | H32: ='1a'!J65 -> 1651 | I32: ='1a'!K65 -> 1683 | J32: ='1a'!L65 -> 1624 | K32: ='1a'!M65 -> 627 | L32: ='1a'!N65 -> 135 | M32: ='1a'!O65 -> 332 | N32: ='1a'!P65 -> 206 | O32: ='1a'!Q65 -> 315 | P32: ='1a'!R65 -> 2017 | Q32: ='1a'!S65 -> 3032 | R32: ='1a'!T65 -> 2797 | S32: ='1a'!U65 -> 2498 | T32: ='1a'!V65 -> 2022 | U32: ='1a'!W65 -> 1921 | V32: ='1a'!X65 -> 1781 | W32: ='1a'!Y65 -> 1513 | X32: ='1a'!Z65 -> 1741 | Y32: ='1a'!AA65 -> 2215 | Z32: ='1a'!AB65 -> 2093 | AA32: ='1a'!AF65 -> 2557.166667
A35: Trial delay - average time between pleading diet and evidence led trial, where evidence led trial occurred in the period shown (weeks) | B35: 2020-04-01 | C35: 2020-05-01 | D35: 2020-06-01 | E35: 2020-07-01 | F35: 2020-08-01 | G35: 2020-09-01 | H35: 2020-10-01 | I35: 2020-11-01 | J35: 2020-12-01 | K35: 2021-01-01 | L35: 2021-02-01 | M35: 2021-03-01 | N35: 2021-04-01 | O35: 2021-05-01 | P35: 2021-06-01 | Q35: 2021-07-01 | R35: 2021-08-01 | S35: 2021-09-01 | T35: 2021-10-01 | U35: 2021-11-01 | V35: 2021-12-01 | W35: 2022-01-01 | X35: 2022-02-01 | Y35: 2022-03-01 | Z35: 2022-04-01
A36: High Court | B36: ='1a'!D26 -> 20 | C36: ='1a'!E26 -> N/A | D36: ='1a'!F26 -> N/A | E36: ='1a'!G26 -> 21 | F36: ='1a'!H26 -> 34 | G36: ='1a'!I26 -> 35 | H36: ='1a'!J26 -> 50 | I36: ='1a'!K26 -> 52 | J36: ='1a'!L26 -> 54 | K36: ='1a'!M26 -> 52 | L36: ='1a'!N26 -> 54 | M36: ='1a'!O26 -> 66 | N36: ='1a'!P26 -> 58 | O36: ='1a'!Q26 -> 51 | P36: ='1a'!R26 -> 50 | Q36: ='1a'!S26 -> 55 | R36: ='1a'!T26 -> 51 | S36: ='1a'!U26 -> 54 | T36: ='1a'!V26 -> 50 | U36: ='1a'!W26 -> 50.9933333 | V36: ='1a'!X26 -> 57 | W36: ='1a'!Y26 -> 62 | X36: ='1a'!Z26 -> 48 | Y36: ='1a'!AA26 -> 48 | Z36: ='1a'!AB26 -> 49
A37: Sheriff Court - Solemn | B37: ='1a'!D40 -> N/A | C37: ='1a'!E40 -> N/A | D37: ='1a'!F40 -> N/A | E37: ='1a'!G40 -> N/A | F37: ='1a'!H40 -> N/A | G37: ='1a'!I40 -> N/A | H37: ='1a'!J40 -> N/A | I37: ='1a'!K40 -> N/A | J37: ='1a'!L40 -> 29.97545455 | K37: ='1a'!M40 -> 32.183 | L37: ='1a'!N40 -> 35.68375 | M37: ='1a'!O40 -> 37 | N37: ='1a'!P40 -> 38.31130952 | O37: ='1a'!Q40 -> 43.99939024 | P37: ='1a'!R40 -> 41.65818182 | Q37: ='1a'!S40 -> 41.36118421 | R37: ='1a'!T40 -> 44.76650602 | S37: ='1a'!U40 -> 42.94894737 | T37: ='1a'!V40 -> 41.78485714 | U37: ='1a'!W40 -> 48.34291667 | V37: ='1a'!X40 -> 41 | W37: ='1a'!Y40 -> 40.66160714 | X37: ='1a'!Z40 -> 44.06321 | Y37: ='1a'!AA40 -> 45.25136842 | Z37: ='1a'!AB40 -> 40.51427
A38: Sheriff Court - Summary | B38: ='1a'!D53 -> 7.084 | C38: ='1a'!E53 -> 3.843333333 | D38: ='1a'!F53 -> 11.475 | E38: ='1a'!G53 -> 21.38050633 | F38: ='1a'!H53 -> 34.06579505 | G38: ='1a'!I53 -> 37.83834091 | H38: ='1a'!J53 -> 35.17250522 | I38: ='1a'!K53 -> 33.83321792 | J38: ='1a'!L53 -> 34.1124812 | K38: ='1a'!M53 -> 36.05914773 | L38: ='1a'!N53 -> 35.49627907 | M38: ='1a'!O53 -> 34.8928 | N38: ='1a'!P53 -> 34.80360795 | O38: ='1a'!Q53 -> 36.66076212 | P38: ='1a'!R53 -> 41.73518047 | Q38: ='1a'!S53 -> 44.97041667 | R38: ='1a'!T53 -> 45.60104575 | S38: ='1a'!U53 -> 48.23023593 | T38: ='1a'!V53 -> 47.25947608 | U38: ='1a'!W53 -> 45.5703 | V38: ='1a'!X53 -> 46.9661 | W38: ='1a'!Y53 -> 49.67328 | X38: ='1a'!Z53 -> 52.49364 | Y38: ='1a'!AA53 -> 50.4565894 | Z38: ='1a'!AB53 -> 52.718
A39: Justice of the Peace Court - Summary | B39: ='1a'!D66 -> N/A | C39: ='1a'!E66 -> N/A | D39: ='1a'!F66 -> N/A | E39: ='1a'!G66 -> 36.29 | F39: ='1a'!H66 -> 34.07695652 | G39: ='1a'!I66 -> 37.38691176 | H39: ='1a'!J66 -> 36.72235294 | I39: ='1a'!K66 -> 41.48229885 | J39: ='1a'!L66 -> 37.75534247 | K39: ='1a'!M66 -> 37.10444444 | L39: ='1a'!N66 -> 54.93 | M39: ='1a'!O66 -> N/A | N39: ='1a'!P66 -> N/A | O39: ='1a'!Q66 -> N/A | P39: ='1a'!R66 -> 58.12625 | Q39: ='1a'!S66 -> 58.44862745 | R39: ='1a'!T66 -> 58.65716418 | S39: ='1a'!U66 -> 55.04036585 | T39: ='1a'!V66 -> 59.37920635 | U39: ='1a'!W66 -> 59.829 | V39: ='1a'!X66 -> 58.7836 | W39: ='1a'!Y66 -> 59.025 | X39: ='1a'!Z66 -> 56.40343 | Y39: ='1a'!AA66 -> 54.18301 | Z39: ='1a'!AB66 -> 53.93754
A40: High Court (as at end of 2019/20) | B40: ='1a'!$AF$26 -> 22.1 | C40: ='1a'!$AF$26 -> 22.1 | D40: ='1a'!$AF$26 -> 22.1 | E40: ='1a'!$AF$26 -> 22.1 | F40: ='1a'!$AF$26 -> 22.1 | G40: ='1a'!$AF$26 -> 22.1 | H40: ='1a'!$AF$26 -> 22.1 | I40: ='1a'!$AF$26 -> 22.1 | J40: ='1a'!$AF$26 -> 22.1 | K40: ='1a'!$AF$26 -> 22.1 | L40: ='1a'!$AF$26 -> 22.1 | M40: ='1a'!$AF$26 -> 22.1 | N40: ='1a'!$AF$26 -> 22.1 | O40: ='1a'!$AF$26 -> 22.1 | P40: ='1a'!$AF$26 -> 22.1 | Q40: ='1a'!$AF$26 -> 22.1 | R40: ='1a'!$AF$26 -> 22.1 | S40: ='1a'!$AF$26 -> 22.1 | T40: ='1a'!$AF$26 -> 22.1 | U40: ='1a'!$AF$26 -> 22.1 | V40: ='1a'!$AF$26 -> 22.1 | W40: ='1a'!$AF$26 -> 22.1 | X40: ='1a'!$AF$26 -> 22.1 | Y40: ='1a'!$AF$26 -> 22.1 | Z40: ='1a'!$AF$26 -> 22.1
A41: Sheriff Court - Solemn (as at end of 2019/20) | B41: ='1a'!$AF$40 -> 11 | C41: ='1a'!$AF$40 -> 11 | D41: ='1a'!$AF$40 -> 11 | E41: ='1a'!$AF$40 -> 11 | F41: ='1a'!$AF$40 -> 11 | G41: ='1a'!$AF$40 -> 11 | H41: ='1a'!$AF$40 -> 11 | I41: ='1a'!$AF$40 -> 11 | J41: ='1a'!$AF$40 -> 11 | K41: ='1a'!$AF$40 -> 11 | L41: ='1a'!$AF$40 -> 11 | M41: ='1a'!$AF$40 -> 11 | N41: ='1a'!$AF$40 -> 11 | O41: ='1a'!$AF$40 -> 11 | P41: ='1a'!$AF$40 -> 11 | Q41: ='1a'!$AF$40 -> 11 | R41: ='1a'!$AF$40 -> 11 | S41: ='1a'!$AF$40 -> 11 | T41: ='1a'!$AF$40 -> 11 | U41: ='1a'!$AF$40 -> 11 | V41: ='1a'!$AF$40 -> 11 | W41: ='1a'!$AF$40 -> 11 | X41: ='1a'!$AF$40 -> 11 | Y41: ='1a'!$AF$40 -> 11 | Z41: ='1a'!$AF$40 -> 11
A42: Sheriff Court - Summary (as at end of 2019/20) | B42: ='1a'!$AF$53 -> 23 | C42: ='1a'!$AF$53 -> 23 | D42: ='1a'!$AF$53 -> 23 | E42: ='1a'!$AF$53 -> 23 | F42: ='1a'!$AF$53 -> 23 | G42: ='1a'!$AF$53 -> 23 | H42: ='1a'!$AF$53 -> 23 | I42: ='1a'!$AF$53 -> 23 | J42: ='1a'!$AF$53 -> 23 | K42: ='1a'!$AF$53 -> 23 | L42: ='1a'!$AF$53 -> 23 | M42: ='1a'!$AF$53 -> 23 | N42: ='1a'!$AF$53 -> 23 | O42: ='1a'!$AF$53 -> 23 | P42: ='1a'!$AF$53 -> 23 | Q42: ='1a'!$AF$53 -> 23 | R42: ='1a'!$AF$53 -> 23 | S42: ='1a'!$AF$53 -> 23 | T42: ='1a'!$AF$53 -> 23 | U42: ='1a'!$AF$53 -> 23 | V42: ='1a'!$AF$53 -> 23 | W42: ='1a'!$AF$53 -> 23 | X42: ='1a'!$AF$53 -> 23 | Y42: ='1a'!$AF$53 -> 23 | Z42: ='1a'!$AF$53 -> 23
A43: Justice of the Peace Court - Summary (as at end of 2019/20) | B43: ='1a'!$AF$66 -> 22 | C43: ='1a'!$AF$66 -> 22 | D43: ='1a'!$AF$66 -> 22 | E43: ='1a'!$AF$66 -> 22 | F43: ='1a'!$AF$66 -> 22 | G43: ='1a'!$AF$66 -> 22 | H43: ='1a'!$AF$66 -> 22 | I43: ='1a'!$AF$66 -> 22 | J43: ='1a'!$AF$66 -> 22 | K43: ='1a'!$AF$66 -> 22 | L43: ='1a'!$AF$66 -> 22 | M43: ='1a'!$AF$66 -> 22 | N43: ='1a'!$AF$66 -> 22 | O43: ='1a'!$AF$66 -> 22 | P43: ='1a'!$AF$66 -> 22 | Q43: ='1a'!$AF$66 -> 22 | R43: ='1a'!$AF$66 -> 22 | S43: ='1a'!$AF$66 -> 22 | T43: ='1a'!$AF$66 -> 22 | U43: ='1a'!$AF$66 -> 22 | V43: ='1a'!$AF$66 -> 22 | W43: ='1a'!$AF$66 -> 22 | X43: ='1a'!$AF$66 -> 22 | Y43: ='1a'!$AF$66 -> 22 | Z43: ='1a'!$AF$66 -> 22
A47: Scheduled trials | B47: as at end of 2019/20 | C47: 2020-04-01 | D47: 2020-05-01 | E47: 2020-06-01 | F47: 2020-07-01 | G47: 2020-08-01 | H47: 2020-09-01 | I47: 2020-10-01 | J47: 2020-11-01 | K47: 2020-12-01 | L47: =K27 -> 2021-01-01 | M47: =L27 -> 2021-02-01 | N47: =M27 -> 2021-03-01 | O47: =N3 -> 2021-04-01 | P47: 2021-05-01 | Q47: 2021-06-01 | R47: 2021-07-01 | S47: 2021-08-01 | T47: =S3 -> 2021-09-01 | U47: 2021-10-01 | V47: 2021-11-01 | W47: 2021-12-01 | X47: 2022-01-01 | Y47: =X3 -> 2022-02-01 | Z47: =Y3 -> 2022-03-01 | AA47: =Z3 -> 2022-04-01 | AB47: 2020/21 YTD
A48: National | B48: ='1a'!AF14 -> 18355 | C48: ='1a'!D14 -> 18074 | D48: ='1a'!E14 -> 20236 | E48: ='1a'!F14 -> 22437 | F48: ='1a'!G14 -> 25900 | G48: ='1a'!H14 -> 28351 | H48: ='1a'!I14 -> 30956 | I48: ='1a'!J14 -> 32427 | J48: ='1a'!K14 -> 33590 | K48: ='1a'!L14 -> 34283 | L48: ='1a'!M14 -> 35067 | M48: ='1a'!N14 -> 36037 | N48: ='1a'!O14 -> 37801 | O48: ='1a'!P14 -> 39488 | P48: ='1a'!Q14 -> 40882 | Q48: ='1a'!R14 -> 42451 | R48: ='1a'!S14 -> 43341 | S48: ='1a'!T14 -> 43526 | T48: ='1a'!U14 -> 42554 | U48: ='1a'!V14 -> 42796 | V48: ='1a'!W14 -> 43597 | W48: ='1a'!X14 -> 43016 | X48: ='1a'!Y14 -> 43606 | Y48: ='1a'!Z14 -> 42503 | Z48: ='1a'!AA14 -> 40923 | AA48: ='1a'!AB14 -> 39958
A49: National forecast | C49: ='1a'!D15 -> 20942.42 | D49: ='1a'!E15 -> 23435.71 | E49: ='1a'!F15 -> 26586.52 | F49: ='1a'!G15 -> 31070.46 | G49: ='1a'!H15 -> 34091.43 | H49: ='1a'!I15 -> 36273.24 | I49: ='1a'!J15 -> 37857.42 | J49: ='1a'!K15 -> 38816.79 | K49: ='1a'!L15 -> 39973.1 | L49: ='1a'!M15 -> 41720.51 | M49: ='1a'!N15 -> 43642.12 | N49: ='1a'!O15 -> 45935.26 | O49: ='1a'!P15 -> 47211.58 | P49: ='1a'!Q15 -> 47705.02 | Q49: ='1a'!R15 -> 47567.41 | R49: ='1a'!S15 -> 47018.86 | S49: ='1a'!T15 -> 46078.61 | T49: ='1a'!U15 -> 44530.52 | U49: ='1a'!V15 -> 44335.41 | V49: ='1a'!W15 -> 45105.82 | W49: ='1a'!X15 -> 44518.2 | X49: ='1a'!Y15 -> 45111.81 | Y49: ='1a'!Z15 -> 44090.01 | Z49: ='1a'!AA15 -> 42382.38 | AA49: ='1a'!AB15 -> 41382.44
A50: High Court | B50: ='1a'!AF27 -> 390 | C50: ='1a'!D27 -> 390 | D50: ='1a'!E27 -> 390 | E50: ='1a'!F27 -> 390 | F50: ='1a'!G27 -> 386 | G50: ='1a'!H27 -> 375 | H50: ='1a'!I27 -> 360 | I50: ='1a'!J27 -> 335 | J50: ='1a'!K27 -> 291 | K50: ='1a'!L27 -> 250 | L50: ='1a'!M27 -> 215 | M50: ='1a'!N27 -> 247 | N50: ='1a'!O27 -> 267 | O50: ='1a'!P27 -> 292 | P50: ='1a'!Q27 -> 304 | Q50: ='1a'!R27 -> 313 | R50: ='1a'!S27 -> 325 | S50: ='1a'!T27 -> 432 | T50: ='1a'!U27 -> 389 | U50: ='1a'!V27 -> 444 | V50: ='1a'!W27 -> 476 | W50: ='1a'!X27 -> 516 | X50: ='1a'!Y27 -> 534 | Y50: ='1a'!Z27 -> 535 | Z50: ='1a'!AA27 -> 560 | AA50: ='1a'!AB27 -> 609
A51: High Court forecast | C51: ='1a'!D28 -> 451.6 | D51: ='1a'!E28 -> 519.6 | E51: ='1a'!F28 -> 574.8 | F51: ='1a'!G28 -> 621.2 | G51: ='1a'!H28 -> 647 | H51: ='1a'!I28 -> 686.4 | I51: ='1a'!J28 -> 709.4 | J51: ='1a'!K28 -> 715 | K51: ='1a'!L28 -> 724 | L51: ='1a'!M28 -> 741 | M51: ='1a'!N28 -> 745.2 | N51: ='1a'!O28 -> 773.2 | O51: ='1a'!P28 -> 781.2 | P51: ='1a'!Q28 -> 785.6 | Q51: ='1a'!R28 -> 784.2 | R51: ='1a'!S28 -> 787 | S51: ='1a'!T28 -> 763.6 | T51: ='1a'!U28 -> 762.2 | U51: ='1a'!V28 -> 760.4 | V51: ='1a'!W28 -> 750.6 | W51: ='1a'!X28 -> 759.8 | X51: ='1a'!Y28 -> 780.2 | Y51: ='1a'!Z28 -> 802.2 | Z51: ='1a'!AA28 -> 802.2 | AA51: ='1a'!AB28 -> 815.8
A52: Sheriff Court - Solemn | B52: ='1a'!AF41 -> 497 | C52: ='1a'!D41 -> 497 | D52: ='1a'!E41 -> 497 | E52: ='1a'!F41 -> 497 | F52: ='1a'!G41 -> 497 | G52: ='1a'!H41 -> 553 | H52: ='1a'!I41 -> 613 | I52: ='1a'!J41 -> 648 | J52: ='1a'!K41 -> 738 | K52: ='1a'!L41 -> 939 | L52: ='1a'!M41 -> 1091 | M52: ='1a'!N41 -> 1211 | N52: ='1a'!O41 -> 1329 | O52: ='1a'!P41 -> 1398 | P52: ='1a'!Q41 -> 1479 | Q52: ='1a'!R41 -> 1595 | R52: ='1a'!S41 -> 1684 | S52: ='1a'!T41 -> 1781 | T52: ='1a'!U41 -> 1842 | U52: ='1a'!V41 -> 1923 | V52: ='1a'!W41 -> 2053 | W52: ='1a'!X41 -> 2170 | X52: ='1a'!Y41 -> 2212 | Y52: ='1a'!Z41 -> 2196 | Z52: ='1a'!AA41 -> 2274 | AA52: ='1a'!AB41 -> 2267
A53: Sheriff Court - Solemn forecast | C53: ='1a'!D42 -> 588.7 | D53: ='1a'!E42 -> 764.85 | E53: ='1a'!F42 -> 957.78 | F53: ='1a'!G42 -> 1216.32 | G53: ='1a'!H42 -> 1479.35 | H53: ='1a'!I42 -> 1736.86 | I53: ='1a'!J42 -> 2000.86 | J53: ='1a'!K42 -> 2211.87 | K53: ='1a'!L42 -> 2435.66 | L53: ='1a'!M42 -> 2591.57 | M53: ='1a'!N42 -> 2644.12 | N53: ='1a'!O42 -> 2669.26 | O53: ='1a'!P42 -> 2720.44 | P53: ='1a'!Q42 -> 2830.32 | Q53: ='1a'!R42 -> 2869.63 | R53: ='1a'!S42 -> 2974.38 | S53: ='1a'!T42 -> 3008.17 | T53: ='1a'!U42 -> 3057.62 | U53: ='1a'!V42 -> 3146.01 | V53: ='1a'!W42 -> 3287.22 | W53: ='1a'!X42 -> 3428.4 | X53: ='1a'!Y42 -> 3471.61 | Y53: ='1a'!Z42 -> 3515.81 | Z53: ='1a'!AA42 -> 3491.18 | AA53: ='1a'!AB42 -> 3484.64
A54: Sheriff Court - Summary | B54: ='1a'!AF54 -> 13971 | C54: ='1a'!D54 -> 13967 | D54: ='1a'!E54 -> 15854 | E54: ='1a'!F54 -> 17818 | F54: ='1a'!G54 -> 20929 | G54: ='1a'!H54 -> 22932 | H54: ='1a'!I54 -> 25146 | I54: ='1a'!J54 -> 26370 | J54: ='1a'!K54 -> 27372 | K54: ='1a'!L54 -> 27723 | L54: ='1a'!M54 -> 28548 | M54: ='1a'!N54 -> 29324 | N54: ='1a'!O54 -> 30645 | O54: ='1a'!P54 -> 31799 | P54: ='1a'!Q54 -> 32778 | Q54: ='1a'!R54 -> 33598 | R54: ='1a'!S54 -> 33602 | S54: ='1a'!T54 -> 33369 | T54: ='1a'!U54 -> 32433 | U54: ='1a'!V54 -> 32488 | V54: ='1a'!W54 -> 33015 | W54: ='1a'!X54 -> 32394 | X54: ='1a'!Y54 -> 32759 | Y54: ='1a'!Z54 -> 31904 | Z54: ='1a'!AA54 -> 30520 | AA54: ='1a'!AB54 -> 29793
A55: Sheriff Court - Summary forecast | C55: ='1a'!D55 -> 15807.92 | D55: ='1a'!E55 -> 17787.06 | E55: ='1a'!F55 -> 20396.64 | F55: ='1a'!G55 -> 24039.74 | G55: ='1a'!H55 -> 26583.68 | H55: ='1a'!I55 -> 28556.78 | I55: ='1a'!J55 -> 29687.86 | J55: ='1a'!K55 -> 30471.32 | K55: ='1a'!L55 -> 31313.04 | L55: ='1a'!M55 -> 32618.84 | M55: ='1a'!N55 -> 34119.2 | N55: ='1a'!O55 -> 35751.2 | O55: ='1a'!P55 -> 36406.74 | P55: ='1a'!Q55 -> 36309.6 | Q55: ='1a'!R55 -> 35790.88 | R55: ='1a'!S55 -> 35144.68 | S55: ='1a'!T55 -> 34362.84 | T55: ='1a'!U55 -> 32820.7 | U55: ='1a'!V55 -> 32488 | V55: ='1a'!W55 -> 33015 | W55: ='1a'!X55 -> 32394 | X55: ='1a'!Y55 -> 32759 | Y55: ='1a'!Z55 -> 31904 | Z55: ='1a'!AA55 -> 30520 | AA55: ='1a'!AB55 -> 29793
A56: Justice of the Peace Court - Summary | B56: ='1a'!AF67 -> 3497 | C56: ='1a'!D67 -> 3220 | D56: ='1a'!E67 -> 3495 | E56: ='1a'!F67 -> 3732 | F56: ='1a'!G67 -> 4088 | G56: ='1a'!H67 -> 4491 | H56: ='1a'!I67 -> 4837 | I56: ='1a'!J67 -> 5074 | J56: ='1a'!K67 -> 5189 | K56: ='1a'!L67 -> 5371 | L56: ='1a'!M67 -> 5213 | M56: ='1a'!N67 -> 5255 | N56: ='1a'!O67 -> 5560 | O56: ='1a'!P67 -> 5999 | P56: ='1a'!Q67 -> 6321 | Q56: ='1a'!R67 -> 6945 | R56: ='1a'!S67 -> 7730 | S56: ='1a'!T67 -> 7944 | T56: ='1a'!U67 -> 7890 | U56: ='1a'!V67 -> 7941 | V56: ='1a'!W67 -> 8053 | W56: ='1a'!X67 -> 7936 | X56: ='1a'!Y67 -> 8101 | Y56: ='1a'!Z67 -> 7868 | Z56: ='1a'!AA67 -> 7569 | AA56: ='1a'!AB67 -> 7289
A57: Justice of the Peace Court - Summary forecast | C57: ='1a'!D68 -> 4094.2 | D57: ='1a'!E68 -> 4364.2 | E57: ='1a'!F68 -> 4657.3 | F57: ='1a'!G68 -> 5193.2 | G57: ='1a'!H68 -> 5381.4 | H57: ='1a'!I68 -> 5293.2 | I57: ='1a'!J68 -> 5459.3 | J57: ='1a'!K68 -> 5418.6 | K57: ='1a'!L68 -> 5500.4 | L57: ='1a'!M68 -> 5769.1 | M57: ='1a'!N68 -> 6133.6 | N57: ='1a'!O68 -> 6741.6 | O57: ='1a'!P68 -> 7303.2 | P57: ='1a'!Q68 -> 7779.5 | Q57: ='1a'!R68 -> 8122.7 | R57: ='1a'!S68 -> 8112.8 | S57: ='1a'!T68 -> 7944 | T57: ='1a'!U68 -> 7890 | U57: ='1a'!V68 -> 7941 | V57: ='1a'!W68 -> 8053 | W57: ='1a'!X68 -> 7936 | X57: ='1a'!Y68 -> 8101 | Y57: ='1a'!Z68 -> 7868 | Z57: ='1a'!AA68 -> 7569 | AA57: ='1a'!AB68 -> 7289
A68: This data is only for The Scottish Courts and Tribunals Service Internal use. Please go to the index tab and navigate as required.

Sheet 1b
B2: Back to Index
D63: Notes:

Sheet High Court Raw Data (hidden)
A1: This data is only for The Scottish Courts and Tribunals Service Internal use. Please go to the index tab and navigate as required.
A2: FINANCIAL_YEAR | B2: QUARTER | C2: COURT_REF | D2: COURT_NAME | E2: INDICTMENTS_REG | F2: INDICTMENTS_PH | G2: INDICTMENTS_CALLED_CPH | H2: S76_INDICTMENTS | I2: TRIALS_CALLED | J2: TRIALS_ELED | K2: TRIALS_LOCT | L2: TRIALS_OUTSTANDING | M2: SOL_CASES_FULLY_DISPOSED | P2: Current Year | Q2: Current Quarter
A3: 2019/20 | B3: Q1 | C3: 2 | D3: HIGH CT | E3: 248 | F3: 253 | G3: 100 | H3: 25 | I3: 168 | J3: 107 | K3: 5 | L3: 315 | M3: 182 | P3: =LOOKUP(2,1/($A:$A<>""),$A:$A) -> 2020/21 | Q3: =LOOKUP(2,1/($B:$B<>""),$B:$B) -> Q1 | S3: 2019/20 | T3: Q4 | V3: 2018/19 | W3: Q4
A4: 2019/20 | B4: Q2 | C4: 2 | D4: HIGH CT | E4: 272 | F4: 241 | G4: 114 | H4: 22 | I4: 219 | J4: 146 | K4: 4 | L4: 304 | M4: 241
A5: 2019/20 | B5: Q3 | C5: 2 | D5: HIGH CT | E5: 274 | F5: 267 | G5: 115 | H5: 24 | I5: 190 | J5: 120 | K5: 22 | L5: 369 | M5: 206
A6: 2019/20 | B6: Q4 | C6: 2 | D6: HIGH CT | E6: 230 | F6: 220 | G6: 108 | H6: 23 | I6: 235 | J6: 125 | K6: 18 | L6: 390 | M6: 177
A7: 2020/21 | B7: Q1 | C7: 2 | D7: HIGH CT | E7: 231 | F7: 92 | G7: 40 | H7: 17 | I7: 0 | J7: 0 | K7: 0 | L7: 390 | M7: 30

Sheet High Court Chart Data (hidden)
A1: Financial Year | B1: QUARTER | C1: COURT_REF | D1: COURT | E1: INDICTMENTS_REG | F1: INDICTMENTS_PH | G1: INDICTMENTS_CALLED_CPH | H1: S76_INDICTMENTS | I1: TRIALS_CALLED | J1: TRIALS_ELED | K1: TRIALS_LOCT | L1: % LOCT1 | M1: TRIALS_OUTSTANDING | N1: SOL_CASES_FULLY_DISPOSED | O1: % LOCT
A2: 2019/20 | B2: Q1 | C2: 2 | D2: HIGH CT | E2: 248 | F2: 253 | G2: 100 | H2: 25 | I2: 168 | J2: 107 | K2: 5 | L2: =IFERROR(HighChart[[#This Row],[TRIALS_LOCT]]/HighChart[[#This Row],[TRIALS_CALLED]],NA()) -> 0.02976190476 | M2: 315 | N2: 182 | O2: =IF(I2=0,0,K2/I2) -> 0.02976190476
A3: 2019/20 | B3: Q2 | C3: 2 | D3: HIGH CT | E3: 272 | F3: 241 | G3: 114 | H3: 22 | I3: 219 | J3: 146 | K3: 4 | L3: =IFERROR(HighChart[[#This Row],[TRIALS_LOCT]]/HighChart[[#This Row],[TRIALS_CALLED]],NA()) -> 0.01826484018 | M3: 304 | N3: 241 | O3: 0.01826484018
A4: 2019/20 | B4: Q3 | C4: 2 | D4: HIGH CT | E4: 274 | F4: 267 | G4: 115 | H4: 24 | I4: 190 | J4: 120 | K4: 22 | L4: =IFERROR(HighChart[[#This Row],[TRIALS_LOCT]]/HighChart[[#This Row],[TRIALS_CALLED]],NA()) -> 0.1157894737 | M4: 369 | N4: 206 | O4: 0.1157894737
A5: 2019/20 | B5: Q4 | C5: 2 | D5: HIGH CT | E5: 230 | F5: 220 | G5: 108 | H5: 23 | I5: 235 | J5: 125 | K5: 18 | L5: =IFERROR(HighChart[[#This Row],[TRIALS_LOCT]]/HighChart[[#This Row],[TRIALS_CALLED]],NA()) -> 0.07659574468 | M5: 390 | N5: 177 | O5: 0.07659574468
A6: 2020/21 YTD | B6: Q1 | C6: 2 | D6: HIGH CT | E6: 231 | F6: 92 | G6: 40 | H6: 17 | I6: 0 | J6: 0 | K6: 0 | L6: =IFERROR(HighChart[[#This Row],[TRIALS_LOCT]]/HighChart[[#This Row],[TRIALS_CALLED]],NA()) ->  | M6: 390 | N6: 30 | O6: 0
A7: 2020/21 YTD | B7: Q2 | L7: =IFERROR(HighChart[[#This Row],[TRIALS_LOCT]]/HighChart[[#This Row],[TRIALS_CALLED]],NA()) ->  | O7: =IF(I7=0,0,K7/I7) -> 0
A8: 2020/21 YTD | B8: Q3 | L8: =IFERROR(HighChart[[#This Row],[TRIALS_LOCT]]/HighChart[[#This Row],[TRIALS_CALLED]],NA()) ->  | O8: 0
A9: 2020/21 YTD | B9: Q4 | L9: =IFERROR(HighChart[[#This Row],[TRIALS_LOCT]]/HighChart[[#This Row],[TRIALS_CALLED]],NA()) ->  | O9: =IF(I9=0,0,K9/I9) -> 0
A10: This data is only for The Scottish Courts and Tribunals Service Internal use. Please go to the index tab and navigate as required.

Sheet JP SC Raw Data (hidden)
B1: This data is only for The Scottish Courts and Tribunals Service Internal use. Please go to the index tab and navigate as required. | AA1: Current Year | AB1: Current Quarter | AD1: Previous year 2019/20 | AG1: Previous year 2018/19
AA2: =LOOKUP(2,1/($B:$B<>""),$B:$B) -> 2020/21 | AB2: =LOOKUP(2,1/($C:$C<>""),$C:$C) -> Q1 | AD2: 2019/20 | AE2: Q4 | AG2: 2018/19 | AH2: Q4
A3: Sheriffdom | B3: FINANCIAL_YEAR | C3: QUARTER | D3: COURT_REF | E3: COURT_NAME | F3: COURT_TYPE | G3: SOL_PETITIONS | H3: SOL_INDICTMENTS_REGISTERED | I3: SOL_FIRST_DIET | J3: SOL_CONT_FD | K3: SOL_S76 | L3: SOL_TRIALS_CALLED | M3: SOL_TRIAL_ELED | N3: SOL_LOCT | O3: SOL_OUTSTANDING_INDICTMENTS | P3: SOL_CASES_FULLY_DISPOSED | Q3: SUM_COMPLAINTS_REGISTERED | R3: SUM_CALLED_FOR_FIRST_TIME | S3: SUM_CWP_HEARING | T3: SUM_INTERMEDIATE_DIET | U3: SUM_TRIALS_CALLED | V3: SUM_TRIAL_ELED | W3: SUM_LOCT | X3: SUM_OUTSTANDING_COMPLAINTS | Y3: SUM_CASES_FULLY_DISPOSED
A4: =VLOOKUP(D4,'Sheriffdom Look up'!$A$1:$E$102,5,FALSE) -> National JP | B4: 2019/20 | C4: Q1 | D4: 1 | E4: NATIONAL | F4: J | G4: 0 | H4: 0 | I4: 0 | J4: 0 | K4: 0 | L4: 0 | M4: 0 | N4: 0 | O4: 0 | P4: 0 | Q4: 7496 | R4: 7329 | S4: 4505 | T4: 5139 | U4: 2668 | V4: 438 | W4: 43 | X4: 3640 | Y4: 7288
A5: =VLOOKUP(D5,'Sheriffdom Look up'!$A$1:$E$102,5,FALSE) -> National SC | B5: 2019/20 | C5: Q1 | D5: 0 | E5: NATIONAL | F5: S | G5: 2502 | H5: 1385 | I5: 1241 | J5: 699 | K5: 246 | L5: 835 | M5: 299 | N5: 19 | O5: 449 | P5: 1282 | Q5: 15912 | R5: 15203 | S5: 3666 | T5: 16190 | U5: 9818 | V5: 1832 | W5: 345 | X5: 12088 | Y5: 14291
A6: =VLOOKUP(D6,'Sheriffdom Look up'!$A$1:$E$102,5,FALSE) -> Tayside, Central & Fife | B6: 2019/20 | C6: Q1 | D6: 9240 | E6: ALLOA | F6: J | G6: 0 | H6: 0 | I6: 0 | J6: 0 | K6: 0 | L6: 0 | M6: 0 | N6: 0 | O6: 0 | P6: 0 | Q6: 41 | R6: 35 | S6: 50 | T6: 40 | U6: 14 | V6: 4 | W6: 0 | X6: 18 | Y6: 46
A7: =VLOOKUP(D7,'Sheriffdom Look up'!$A$1:$E$102,5,FALSE) -> South Strathclyde, Dumfries & Galloway | B7: 2019/20 | C7: Q1 | D7: 9246 | E7: DUMFRIES | F7: J | G7: 0 | H7: 0 | I7: 0 | J7: 0 | K7: 0 | L7: 0 | M7: 0 | N7: 0 | O7: 0 | P7: 0 | Q7: 549 | R7: 573 | S7: 253 | T7: 149 | U7: 53 | V7: 19 | W7: 0 | X7: 112 | Y7: 506
A8: =VLOOKUP(D8,'Sheriffdom Look up'!$A$1:$E$102,5,FALSE) -> South Strathclyde, Dumfries & Galloway | B8: 2019/20 | C8: Q1 | D8: 9250 | E8: STRANRAER | F8: J | G8: 0 | H8: 0 | I8: 0 | J8: 0 | K8: 0 | L8: 0 | M8: 0 | N8: 0 | O8: 0 | P8: 0 | Q8: 218 | R8: 263 | S8: 111 | T8: 51 | U8: 22 | V8: 6 | W8: 1 | X8: 50 | Y8: 234
A9: =VLOOKUP(D9,'Sheriffdom Look up'!$A$1:$E$102,5,FALSE) -> Grampian, Highland & Islands | B9: 2019/20 | C9: Q1 | D9: 9251 | E9: ABERDEEN | F9: J | G9: 0 | H9: 0 | I9: 0 | J9: 0 | K9: 0 | L9: 0 | M9: 0 | N9: 0 | O9: 0 | P9: 0 | Q9: 579 | R9: 609 | S9: 432 | T9: 327 | U9: 127 | V9: 24 | W9: 7 | X9: 274 | Y9: 605
A10: =VLOOKUP(D10,'Sheriffdom Look up'!$A$1:$E$102,5,FALSE) -> Grampian, Highland & Islands | B10: 2019/20 | C10: Q1 | D10: 9252 | E10: BANFF | F10: J | G10: 0 | H10: 0 | I10: 0 | J10: 0 | K10: 0 | L10: 0 | M10: 0 | N10: 0 | O10: 0 | P10: 0 | Q10: 30 | R10: 30 | S10: 40 | T10: 13 | U10: 12 | V10: 5 | W10: 0 | X10: 28 | Y10: 34
A11: =VLOOKUP(D11,'Sheriffdom Look up'!$A$1:$E$102,5,FALSE) -> Grampian, Highland & Islands | B11: 2019/20 | C11: Q1 | D11: 9253 | E11: PETERHEAD | F11: J | G11: 0 | H11: 0 | I11: 0 | J11: 0 | K11: 0 | L11: 0 | M11: 0 | N11: 0 | O11: 0 | P11: 0 | Q11: 99 | R11: 99 | S11: 76 | T11: 54 | U11: 30 | V11: 9 | W11: 0 | X11: 44 | Y11: 106
A12: =VLOOKUP(D12,'Sheriffdom Look up'!$A$1:$E$102,5,FALSE) -> Tayside, Central & Fife | B12: 2019/20 | C12: Q1 | D12: 9256 | E12: DUNDEE | F12: J | G12: 0 | H12: 0 | I12: 0 | J12: 0 | K12: 0 | L12: 0 | M12: 0 | N12: 0 | O12: 0 | P12: 0 | Q12: 260 | R12: 264 | S12: 217 | T12: 155 | U12: 73 | V12: 16 | W12: 0 | X12: 61 | Y12: 277
A13: =VLOOKUP(D13,'Sheriffdom Look up'!$A$1:$E$102,5,FALSE) -> North Strathclyde | B13: 2019/20 | C13: Q1 | D13: 9261 | E13: KILMARNOCK | F13: J | G13: 0 | H13: 0 | I13: 0 | J13: 0 | K13: 0 | L13: 0 | M13: 0 | N13: 0 | O13: 0 | P13: 0 | Q13: 256 | R13: 223 | S13: 132 | T13: 159 | U13: 67 | V13: 13 | W13: 2 | X13: 110 | Y13: 226
A14: =VLOOKUP(D14,'Sheriffdom Look up'!$A$1:$E$102,5,FALSE) -> Tayside, Central & Fife | B14: 2019/20 | C14: Q1 | D14: 9264 | E14: FORFAR | F14: J | G14: 0 | H14: 0 | I14: 0 | J14: 0 | K14: 0 | L14: 0 | M14: 0 | N14: 0 | O14: 0 | P14: 0 | Q14: 135 | R14: 122 | S14: 49 | T14: 63 | U14: 35 | V14: 6 | W14: 0 | X14: 51 | Y14: 99
A15: =VLOOKUP(D15,'Sheriffdom Look up'!$A$1:$E$102,5,FALSE) -> Lothian & Borders | B15: 2019/20 | C15: Q1 | D15: 9278 | E15: EDINBURGH | F15: J | G15: 0 | H15: 0 | I15: 0 | J15: 0 | K15: 0 | L15: 0 | M15: 0 | N15: 0 | O15: 0 | P15: 0 | Q15: 813 | R15: 827 | S15: 552 | T15: 663 | U15: 282 | V15: 25 | W15: 3 | X15: 408 | Y15: 772
A16: =VLOOKUP(D16,'Sheriffdom Look up'!$A$1:$E$102,5,FALSE) -> Tayside, Central & Fife | B16: 2019/20 | C16: Q1 | D16: 9282 | E16: FALKIRK | F16: J | G16: 0 | H16: 0 | I16: 0 | J16: 0 | K16: 0 | L16: 0 | M16: 0 | N16: 0 | O16: 0 | P16: 0 | Q16: 140 | R16: 134 | S16: 110 | T16: 122 | U16: 51 | V16: 10 | W16: 0 | X16: 76 | Y16: 144
A17: =VLOOKUP(D17,'Sheriffdom Look up'!$A$1:$E$102,5,FALSE) -> Tayside, Central & Fife | B17: 2019/20 | C17: Q1 | D17: 9286 | E17: DUNFERMLINE | F17: J | G17: 0 | H17: 0 | I17: 0 | J17: 0 | K17: 0 | L17: 0 | M17: 0 | N17: 0 | O17: 0 | P17: 0 | Q17: 104 | R17: 79 | S17: 68 | T17: 102 | U17: 38 | V17: 11 | W17: 1 | X17: 35 | Y17: 119
A18: =VLOOKUP(D18,'Sheriffdom Look up'!$A$1:$E$102,5,FALSE) -> Tayside, Central & Fife | B18: 2019/20 | C18: Q1 | D18: 9287 | E18: KIRKCALDY | F18: J | G18: 0 | H18: 0 | I18: 0 | J18: 0 | K18: 0 | L18: 0 | M18: 0 | N18: 0 | O18: 0 | P18: 0 | Q18: 202 | R18: 206 | S18: 207 | T18: 186 | U18: 70 | V18: 17 | W18: 1 | X18: 128 | Y18: 211
A19: =VLOOKUP(D19,'Sheriffdom Look up'!$A$1:$E$102,5,FALSE) -> North Strathclyde | B19: 2019/20 | C19: Q1 | D19: 9289 | E19: CAMPBELTOWN | F19: J | G19: 0 | H19: 0 | I19: 0 | J19: 0 | K19: 0 | L19: 0 | M19: 0 | N19: 0 | O19: 0 | P19: 0 | Q19: 12 | R19: 12 | S19: 3 | T19: 2 | U19: 3 | V19: 2 | W19: 0 | X19: 3 | Y19: 10
A20: =VLOOKUP(D20,'Sheriffdom Look up'!$A$1:$E$102,5,FALSE) -> North Strathclyde | B20: 2019/20 | C20: Q1 | D20: 9290 | E20: DUNOON | F20: J | G20: 0 | H20: 0 | I20: 0 | J20: 0 | K20: 0 | L20: 0 | M20: 0 | N20: 0 | O20: 0 | P20: 0 | Q20: 28 | R20: 28 | S20: 13 | T20: 7 | U20: 5 | V20: 0 | W20: 0 | X20: 5 | Y20: 21
A21: =VLOOKUP(D21,'Sheriffdom Look up'!$A$1:$E$102,5,FALSE) -> North Strathclyde | B21: 2019/20 | C21: Q1 | D21: 9292 | E21: LOCHGILPHEAD | F21: J | G21: 0 | H21: 0 | I21: 0 | J21: 0 | K21: 0 | L21: 0 | M21: 0 | N21: 0 | O21: 0 | P21: 0 | Q21: 15 | R21: 15 | S21: 4 | T21: 8 | U21: 7 | V21: 0 | W21: 0 | X21: 4 | Y21: 16
A22: =VLOOKUP(D22,'Sheriffdom Look up'!$A$1:$E$102,5,FALSE) -> North Strathclyde | B22: 2019/20 | C22: Q1 | D22: 9293 | E22: OBAN | F22: J | G22: 0 | H22: 0 | I22: 0 | J22: 0 | K22: 0 | L22: 0 | M22: 0 | N22: 0 | O22: 0 | P22: 0 | Q22: 17 | R22: 15 | S22: 10 | T22: 4 | U22: 2 | V22: 0 | W22: 0 | X22: 3 | Y22: 10
A23: =VLOOKUP(D23,'Sheriffdom Look up'!$A$1:$E$102,5,FALSE) -> Glasgow & Strathkelvin | B23: 2019/20 | C23: Q1 | D23: 9295 | E23: GLASGOW | F23: J | G23: 0 | H23: 0 | I23: 0 | J23: 0 | K23: 0 | L23: 0 | M23: 0 | N23: 0 | O23: 0 | P23: 0 | Q23: 1226 | R23: 1221 | S23: 470 | T23: 1109 | U23: 842 | V23: 93 | W23: 7 | X23: 952 | Y23: 1414
A24: =VLOOKUP(D24,'Sheriffdom Look up'!$A$1:$E$102,5,FALSE) -> North Strathclyde | B24: 2019/20 | C24: Q1 | D24: 9340 | E24: GREENOCK | F24: J | G24: 0 | H24: 0 | I24: 0 | J24: 0 | K24: 0 | L24: 0 | M24: 0 | N24: 0 | O24: 0 | P24: 0 | Q24: 81 | R24: 72 | S24: 79 | T24: 72 | U24: 48 | V24: 6 | W24: 0 | X24: 70 | Y24: 79
A25: =VLOOKUP(D25,'Sheriffdom Look up'!$A$1:$E$102,5,FALSE) -> Grampian, Highland & Islands | B25: 2019/20 | C25: Q1 | D25: 9341 | E25: ELGIN | F25: J | G25: 0 | H25: 0 | I25: 0 | J25: 0 | K25: 0 | L25: 0 | M25: 0 | N25: 0 | O25: 0 | P25: 0 | Q25: 155 | R25: 117 | S25: 81 | T25: 83 | U25: 26 | V25: 3 | W25: 0 | X25: 59 | Y25: 98
A26: =VLOOKUP(D26,'Sheriffdom Look up'!$A$1:$E$102,5,FALSE) -> North Strathclyde | B26: 2019/20 | C26: Q1 | D26: 9342 | E26: PAISLEY | F26: J | G26: 0 | H26: 0 | I26: 0 | J26: 0 | K26: 0 | L26: 0 | M26: 0 | N26: 0 | O26: 0 | P26: 0 | Q26: 267 | R26: 243 | S26: 156 | T26: 250 | U26: 181 | V26: 23 | W26: 6 | X26: 184 | Y26: 271
A27: =VLOOKUP(D27,'Sheriffdom Look up'!$A$1:$E$102,5,FALSE) -> Grampian, Highland & Islands | B27: 2019/20 | C27: Q1 | D27: 9345 | E27: FORT WILLIAM | F27: J | G27: 0 | H27: 0 | I27: 0 | J27: 0 | K27: 0 | L27: 0 | M27: 0 | N27: 0 | O27: 0 | P27: 0 | Q27: 71 | R27: 69 | S27: 53 | T27: 22 | U27: 11 | V27: 4 | W27: 0 | X27: 17 | Y27: 62
A28: =VLOOKUP(D28,'Sheriffdom Look up'!$A$1:$E$102,5,FALSE) -> Grampian, Highland & Islands | B28: 2019/20 | C28: Q1 | D28: 9346 | E28: INVERNESS | F28: J | G28: 0 | H28: 0 | I28: 0 | J28: 0 | K28: 0 | L28: 0 | M28: 0 | N28: 0 | O28: 0 | P28: 0 | Q28: 307 | R28: 316 | S28: 217 | T28: 226 | U28: 94 | V28: 18 | W28: 0 | X28: 147 | Y28: 367
A29: =VLOOKUP(D29,'Sheriffdom Look up'!$A$1:$E$102,5,FALSE) -> Grampian, Highland & Islands | B29: 2019/20 | C29: Q1 | D29: 9348 | E29: TAIN | F29: J | G29: 0 | H29: 0 | I29: 0 | J29: 0 | K29: 0 | L29: 0 | M29: 0 | N29: 0 | O29: 0 | P29: 0 | Q29: 93 | R29: 72 | S29: 47 | T29: 21 | U29: 7 | V29: 2 | W29: 0 | X29: 29 | Y29: 57
A30: =VLOOKUP(D30,'Sheriffdom Look up'!$A$1:$E$102,5,FALSE) -> Lothian & Borders | B30: 2019/20 | C30: Q1 | D30: 9351 | E30: JEDBURGH | F30: J | G30: 0 | H30: 0 | I30: 0 | J30: 0 | K30: 0 | L30: 0 | M30: 0 | N30: 0 | O30: 0 | P30: 0 | Q30: 32 | R30: 40 | S30: 22 | T30: 19 | U30: 8 | V30: 5 | W30: 0 | X30: 10 | Y30: 34
A31: =VLOOKUP(D31,'Sheriffdom Look up'!$A$1:$E$102,5,FALSE) -> Lothian & Borders | B31: 2019/20 | C31: Q1 | D31: 9353 | E31: SELKIRK | F31: J | G31: 0 | H31: 0 | I31: 0 | J31: 0 | K31: 0 | L31: 0 | M31: 0 | N31: 0 | O31: 0 | P31: 0 | Q31: 94 | R31: 73 | S31: 13 | T31: 18 | U31: 8 | V31: 2 | W31: 0 | X31: 7 | Y31: 64
A32: =VLOOKUP(D32,'Sheriffdom Look up'!$A$1:$E$102,5,FALSE) -> South Strathclyde, Dumfries & Galloway | B32: 2019/20 | C32: Q1 | D32: 9355 | E32: AIRDRIE | F32: J | G32: 0 | H32: 0 | I32: 0 | J32: 0 | K32: 0 | L32: 0 | M32: 0 | N32: 0 | O32: 0 | P32: 0 | Q32: 228 | R32: 250 | S32: 172 | T32: 163 | U32: 84 | V32: 23 | W32: 1 | X32: 121 | Y32: 199
A33: =VLOOKUP(D33,'Sheriffdom Look up'!$A$1:$E$102,5,FALSE) -> Tayside, Central & Fife | B33: 2019/20 | C33: Q1 | D33: 9358 | E33: PERTH | F33: J | G33: 0 | H33: 0 | I33: 0 | J33: 0 | K33: 0 | L33: 0 | M33: 0 | N33: 0 | O33: 0 | P33: 0 | Q33: 343 | R33: 300 | S33: 200 | T33: 100 | U33: 56 | V33: 11 | W33: 4 | X33: 109 | Y33: 284
A34: =VLOOKUP(D34,'Sheriffdom Look up'!$A$1:$E$102,5,FALSE) -> South Strathclyde, Dumfries & Galloway | B34: 2019/20 | C34: Q1 | D34: 9360 | E34: AYR | F34: J | G34: 0 | H34: 0 | I34: 0 | J34: 0 | K34: 0 | L34: 0 | M34: 0 | N34: 0 | O34: 0 | P34: 0 | Q34: 143 | R34: 154 | S34: 102 | T34: 124 | U34: 51 | V34: 18 | W34: 2 | X34: 49 | Y34: 148
A35: =VLOOKUP(D35,'Sheriffdom Look up'!$A$1:$E$102,5,FALSE) -> South Strathclyde, Dumfries & Galloway | B35: 2019/20 | C35: Q1 | D35: 9366 | E35: HAMILTON | F35: J | G35: 0 | H35: 0 | I35: 0 | J35: 0 | K35: 0 | L35: 0 | M35: 0 | N35: 0 | O35: 0 | P35: 0 | Q35: 485 | R35: 428 | S35: 219 | T35: 450 | U35: 213 | V35: 41 | W35: 4 | X35: 283 | Y35: 344
A36: =VLOOKUP(D36,'Sheriffdom Look up'!$A$1:$E$102,5,FALSE) -> South Strathclyde, Dumfries & Galloway | B36: 2019/20 | C36: Q1 | D36: 9367 | E36: LANARK | F36: J | G36: 0 | H36: 0 | I36: 0 | J36: 0 | K36: 0 | L36: 0 | M36: 0 | N36: 0 | O36: 0 | P36: 0 | Q36: 56 | R36: 55 | S36: 38 | T36: 69 | U36: 37 | V36: 4 | W36: 0 | X36: 25 | Y36: 70
A37: =VLOOKUP(D37,'Sheriffdom Look up'!$A$1:$E$102,5,FALSE) -> Tayside, Central & Fife | B37: 2019/20 | C37: Q1 | D37: 9372 | E37: STIRLING | F37: J | G37: 0 | H37: 0 | I37: 0 | J37: 0 | K37: 0 | L37: 0 | M37: 0 | N37: 0 | O37: 0 | P37: 0 | Q37: 90 | R37: 89 | S37: 109 | T37: 63 | U37: 32 | V37: 8 | W37: 1 | X37: 36 | Y37: 98
A38: =VLOOKUP(D38,'Sheriffdom Look up'!$A$1:$E$102,5,FALSE) -> North Strathclyde | B38: 2019/20 | C38: Q1 | D38: 9376 | E38: DUMBARTON | F38: J | G38: 0 | H38: 0 | I38: 0 | J38: 0 | K38: 0 | L38: 0 | M38: 0 | N38: 0 | O38: 0 | P38: 0 | Q38: 171 | R38: 160 | S38: 93 | T38: 94 | U38: 46 | V38: 4 | W38: 0 | X38: 92 | Y38: 132
A39: =VLOOKUP(D39,'Sheriffdom Look up'!$A$1:$E$102,5,FALSE) -> Lothian & Borders | B39: 2019/20 | C39: Q1 | D39: 9380 | E39: LIVINGSTON | F39: J | G39: 0 | H39: 0 | I39: 0 | J39: 0 | K39: 0 | L39: 0 | M39: 0 | N39: 0 | O39: 0 | P39: 0 | Q39: 156 | R39: 136 | S39: 107 | T39: 151 | U39: 33 | V39: 6 | W39: 3 | X39: 40 | Y39: 131
A40: =VLOOKUP(D40,'Sheriffdom Look up'!$A$1:$E$102,5,FALSE) -> Grampian, Highland & Islands | B40: 2019/20 | C40: Q1 | D40: 9701 | E40: ABERDEEN | F40: S | G40: 160 | H40: 107 | I40: 100 | J40: 46 | K40: 34 | L40: 59 | M40: 24 | N40: 2 | O40: 50 | P40: 107 | Q40: 1127 | R40: 1069 | S40: 356 | T40: 1134 | U40: 506 | V40: 131 | W40: 36 | X40: 1042 | Y40: 882
A41: =VLOOKUP(D41,'Sheriffdom Look up'!$A$1:$E$102,5,FALSE) -> South Strathclyde, Dumfries & Galloway | B41: 2019/20 | C41: Q1 | D41: 9702 | E41: AIRDRIE | F41: S | G41: 73 | H41: 27 | I41: 43 | J41: 31 | K41: 8 | L41: 38 | M41: 16 | N41: 0 | O41: 23 | P41: 44 | Q41: 626 | R41: 596 | S41: 133 | T41: 757 | U41: 445 | V41: 109 | W41: 4 | X41: 366 | Y41: 592
A42: =VLOOKUP(D42,'Sheriffdom Look up'!$A$1:$E$102,5,FALSE) -> Tayside, Central & Fife | B42: 2019/20 | C42: Q1 | D42: 9703 | E42: ALLOA | F42: S | G42: 25 | H42: 0 | I42: 0 | J42: 0 | K42: 0 | L42: 0 | M42: 0 | N42: 0 | O42: 0 | P42: 1 | Q42: 194 | R42: 180 | S42: 63 | T42: 211 | U42: 100 | V42: 17 | W42: 11 | X42: 157 | Y42: 141
A43: =VLOOKUP(D43,'Sheriffdom Look up'!$A$1:$E$102,5,FALSE) -> South Strathclyde, Dumfries & Galloway | B43: 2019/20 | C43: Q1 | D43: 9704 | E43: AYR | F43: S | G43: 64 | H43: 41 | I43: 39 | J43: 27 | K43: 8 | L43: 31 | M43: 7 | N43: 0 | O43: 17 | P43: 41 | Q43: 517 | R43: 437 | S43: 94 | T43: 484 | U43: 215 | V43: 57 | W43: 8 | X43: 262 | Y43: 413
A44: =VLOOKUP(D44,'Sheriffdom Look up'!$A$1:$E$102,5,FALSE) -> Grampian, Highland & Islands | B44: 2019/20 | C44: Q1 | D44: 9711 | E44: BANFF | F44: S | G44: 2 | H44: 0 | I44: 0 | J44: 0 | K44: 0 | L44: 0 | M44: 0 | N44: 0 | O44: 0 | P44: 0 | Q44: 34 | R44: 29 | S44: 23 | T44: 58 | U44: 43 | V44: 9 | W44: 6 | X44: 56 | Y44: 38
A45: =VLOOKUP(D45,'Sheriffdom Look up'!$A$1:$E$102,5,FALSE) -> North Strathclyde | B45: 2019/20 | C45: Q1 | D45: 9716 | E45: CAMPBELTOWN | F45: S | G45: 1 | H45: 1 | I45: 1 | J45: 1 | K45: 0 | L45: 0 | M45: 0 | N45: 0 | O45: 1 | P45: 0 | Q45: 25 | R45: 24 | S45: 3 | T45: 28 | U45: 17 | V45: 4 | W45: 1 | X45: 23 | Y45: 29
A46: =VLOOKUP(D46,'Sheriffdom Look up'!$A$1:$E$102,5,FALSE) -> North Strathclyde | B46: 2019/20 | C46: Q1 | D46: 9723 | E46: DUMBARTON | F46: S | G46: 62 | H46: 42 | I46: 31 | J46: 22 | K46: 9 | L46: 34 | M46: 11 | N46: 1 | O46: 11 | P46: 41 | Q46: 335 | R46: 338 | S46: 64 | T46: 383 | U46: 245 | V46: 48 | W46: 23 | X46: 307 | Y46: 304
A47: =VLOOKUP(D47,'Sheriffdom Look up'!$A$1:$E$102,5,FALSE) -> South Strathclyde, Dumfries & Galloway | B47: 2019/20 | C47: Q1 | D47: 9724 | E47: DUMFRIES | F47: S | G47: 44 | H47: 27 | I47: 22 | J47: 7 | K47: 3 | L47: 14 | M47: 6 | N47: 0 | O47: 7 | P47: 23 | Q47: 372 | R47: 362 | S47: 54 | T47: 250 | U47: 183 | V47: 66 | W47: 0 | X47: 205 | Y47: 391
A48: =VLOOKUP(D48,'Sheriffdom Look up'!$A$1:$E$102,5,FALSE) -> Tayside, Central & Fife | B48: 2019/20 | C48: Q1 | D48: 9726 | E48: DUNDEE | F48: S | G48: 136 | H48: 98 | I48: 87 | J48: 32 | K48: 20 | L48: 64 | M48: 21 | N48: 1 | O48: 36 | P48: 90 | Q48: 672 | R48: 593 | S48: 173 | T48: 666 | U48: 448 | V48: 83 | W48: 3 | X48: 529 | Y48: 650
A49: =VLOOKUP(D49,'Sheriffdom Look up'!$A$1:$E$102,5,FALSE) -> Tayside, Central & Fife | B49: 2019/20 | C49: Q1 | D49: 9727 | E49: DUNFERMLINE | F49: S | G49: 58 | H49: 32 | I49: 37 | J49: 29 | K49: 6 | L49: 16 | M49: 6 | N49: 1 | O49: 11 | P49: 32 | Q49: 340 | R49: 353 | S49: 102 | T49: 393 | U49: 187 | V49: 30 | W49: 12 | X49: 276 | Y49: 373
A50: =VLOOKUP(D50,'Sheriffdom Look up'!$A$1:$E$102,5,FALSE) -> North Strathclyde | B50: 2019/20 | C50: Q1 | D50: 9728 | E50: DUNOON | F50: S | G50: 5 | H50: 0 | I50: 3 | J50: 2 | K50: 0 | L50: 4 | M50: 1 | N50: 0 | O50: 0 | P50: 4 | Q50: 70 | R50: 69 | S50: 26 | T50: 46 | U50: 43 | V50: 13 | W50: 0 | X50: 53 | Y50: 55
A51: =VLOOKUP(D51,'Sheriffdom Look up'!$A$1:$E$102,5,FALSE) -> Lothian & Borders | B51: 2019/20 | C51: Q1 | D51: 9741 | E51: EDINBURGH | F51: S | G51: 318 | H51: 198 | I51: 174 | J51: 148 | K51: 26 | L51: 92 | M51: 30 | N51: 0 | O51: 47 | P51: 148 | Q51: 2028 | R51: 1860 | S51: 442 | T51: 1908 | U51: 1073 | V51: 98 | W51: 12 | X51: 1542 | Y51: 1500
A52: =VLOOKUP(D52,'Sheriffdom Look up'!$A$1:$E$102,5,FALSE) -> Grampian, Highland & Islands | B52: 2019/20 | C52: Q1 | D52: 9742 | E52: ELGIN | F52: S | G52: 49 | H52: 19 | I52: 21 | J52: 22 | K52: 3 | L52: 7 | M52: 1 | N52: 0 | O52: 6 | P52: 19 | Q52: 224 | R52: 212 | S52: 75 | T52: 237 | U52: 101 | V52: 19 | W52: 5 | X52: 172 | Y52: 194
A53: =VLOOKUP(D53,'Sheriffdom Look up'!$A$1:$E$102,5,FALSE) -> Tayside, Central & Fife | B53: 2019/20 | C53: Q1 | D53: 9751 | E53: FALKIRK | F53: S | G53: 70 | H53: 21 | I53: 25 | J53: 35 | K53: 10 | L53: 27 | M53: 10 | N53: 2 | O53: 15 | P53: 37 | Q53: 483 | R53: 469 | S53: 115 | T53: 491 | U53: 284 | V53: 39 | W53: 11 | X53: 321 | Y53: 436
A54: =VLOOKUP(D54,'Sheriffdom Look up'!$A$1:$E$102,5,FALSE) -> Tayside, Central & Fife | B54: 2019/20 | C54: Q1 | D54: 9752 | E54: FORFAR | F54: S | G54: 48 | H54: 0 | I54: 0 | J54: 0 | K54: 0 | L54: 0 | M54: 0 | N54: 0 | O54: 0 | P54: 1 | Q54: 261 | R54: 258 | S54: 62 | T54: 261 | U54: 142 | V54: 28 | W54: 15 | X54: 214 | Y54: 246
A55: =VLOOKUP(D55,'Sheriffdom Look up'!$A$1:$E$102,5,FALSE) -> Grampian, Highland & Islands | B55: 2019/20 | C55: Q1 | D55: 9753 | E55: FORT WILLIAM | F55: S | G55: 3 | H55: 2 | I55: 0 | J55: 0 | K55: 2 | L55: 0 | M55: 0 | N55: 0 | O55: 0 | P55: 0 | Q55: 63 | R55: 55 | S55: 33 | T55: 68 | U55: 33 | V55: 9 | W55: 5 | X55: 58 | Y55: 51
A56: =VLOOKUP(D56,'Sheriffdom Look up'!$A$1:$E$102,5,FALSE) -> Glasgow & Strathkelvin | B56: 2019/20 | C56: Q1 | D56: 9761 | E56: GLASGOW | F56: S | G56: 438 | H56: 330 | I56: 247 | J56: 56 | K56: 42 | L56: 175 | M56: 63 | N56: 0 | O56: 109 | P56: 245 | Q56: 2637 | R56: 2716 | S56: 395 | T56: 2668 | U56: 2497 | V56: 392 | W56: 67 | X56: 2271 | Y56: 2683
A57: =VLOOKUP(D57,'Sheriffdom Look up'!$A$1:$E$102,5,FALSE) -> North Strathclyde | B57: 2019/20 | C57: Q1 | D57: 9762 | E57: GREENOCK | F57: S | G57: 46 | H57: 17 | I57: 21 | J57: 5 | K57: 2 | L57: 8 | M57: 4 | N57: 0 | O57: 8 | P57: 16 | Q57: 232 | R57: 223 | S57: 55 | T57: 273 | U57: 157 | V57: 41 | W57: 12 | X57: 199 | Y57: 203
A58: =VLOOKUP(D58,'Sheriffdom Look up'!$A$1:$E$102,5,FALSE) -> South Strathclyde, Dumfries & Galloway | B58: 2019/20 | C58: Q1 | D58: 9772 | E58: HAMILTON | F58: S | G58: 172 | H58: 97 | I58: 80 | J58: 36 | K58: 6 | L58: 64 | M58: 26 | N58: 4 | O58: 22 | P58: 76 | Q58: 1138 | R58: 1036 | S58: 133 | T58: 1050 | U58: 647 | V58: 148 | W58: 10 | X58: 852 | Y58: 945
A59: =VLOOKUP(D59,'Sheriffdom Look up'!$A$1:$E$102,5,FALSE) -> Grampian, Highland & Islands | B59: 2019/20 | C59: Q1 | D59: 9781 | E59: INVERNESS | F59: S | G59: 66 | H59: 49 | I59: 43 | J59: 41 | K59: 8 | L59: 9 | M59: 3 | N59: 0 | O59: 6 | P59: 39 | Q59: 409 | R59: 373 | S59: 137 | T59: 494 | U59: 177 | V59: 19 | W59: 3 | X59: 327 | Y59: 345
A60: =VLOOKUP(D60,'Sheriffdom Look up'!$A$1:$E$102,5,FALSE) -> Lothian & Borders | B60: 2019/20 | C60: Q1 | D60: 9791 | E60: JEDBURGH | F60: S | G60: 20 | H60: 7 | I60: 8 | J60: 12 | K60: 4 | L60: 0 | M60: 0 | N60: 0 | O60: 4 | P60: 9 | Q60: 99 | R60: 102 | S60: 13 | T60: 130 | U60: 87 | V60: 8 | W60: 2 | X60: 68 | Y60: 116
A61: =VLOOKUP(D61,'Sheriffdom Look up'!$A$1:$E$102,5,FALSE) -> North Strathclyde | B61: 2019/20 | C61: Q1 | D61: 9801 | E61: KILMARNOCK | F61: S | G61: 130 | H61: 66 | I61: 52 | J61: 19 | K61: 13 | L61: 40 | M61: 18 | N61: 2 | O61: 12 | P61: 69 | Q61: 730 | R61: 650 | S61: 92 | T61: 560 | U61: 361 | V61: 79 | W61: 14 | X61: 443 | Y61: 676
A62: =VLOOKUP(D62,'Sheriffdom Look up'!$A$1:$E$102,5,FALSE) -> Tayside, Central & Fife | B62: 2019/20 | C62: Q1 | D62: 9803 | E62: KIRKCALDY | F62: S | G62: 107 | H62: 41 | I62: 24 | J62: 12 | K62: 17 | L62: 30 | M62: 12 | N62: 4 | O62: 9 | P62: 42 | Q62: 610 | R62: 580 | S62: 231 | T62: 659 | U62: 343 | V62: 73 | W62: 13 | X62: 469 | Y62: 571
A63: =VLOOKUP(D63,'Sheriffdom Look up'!$A$1:$E$102,5,FALSE) -> Grampian, Highland & Islands | B63: 2019/20 | C63: Q1 | D63: 9805 | E63: KIRKWALL | F63: S | G63: 6 | H63: 2 | I63: 3 | J63: 4 | K63: 0 | L63: 0 | M63: 0 | N63: 0 | O63: 2 | P63: 1 | Q63: 46 | R63: 50 | S63: 18 | T63: 27 | U63: 25 | V63: 9 | W63: 4 | X63: 19 | Y63: 53
A64: =VLOOKUP(D64,'Sheriffdom Look up'!$A$1:$E$102,5,FALSE) -> South Strathclyde, Dumfries & Galloway | B64: 2019/20 | C64: Q1 | D64: 9811 | E64: LANARK | F64: S | G64: 27 | H64: 6 | I64: 5 | J64: 4 | K64: 0 | L64: 7 | M64: 1 | N64: 0 | O64: 1 | P64: 6 | Q64: 127 | R64: 120 | S64: 33 | T64: 121 | U64: 70 | V64: 18 | W64: 8 | X64: 93 | Y64: 112
A65: =VLOOKUP(D65,'Sheriffdom Look up'!$A$1:$E$102,5,FALSE) -> Grampian, Highland & Islands | B65: 2019/20 | C65: Q1 | D65: 9812 | E65: LERWICK | F65: S | G65: 9 | H65: 5 | I65: 2 | J65: 0 | K65: 3 | L65: 3 | M65: 0 | N65: 0 | O65: 0 | P65: 6 | Q65: 68 | R65: 63 | S65: 30 | T65: 21 | U65: 14 | V65: 3 | W65: 0 | X65: 18 | Y65: 42
A66: =VLOOKUP(D66,'Sheriffdom Look up'!$A$1:$E$102,5,FALSE) -> Grampian, Highland & Islands | B66: 2019/20 | C66: Q1 | D66: 9814 | E66: LOCHMADDY | F66: S | G66: 1 | H66: 0 | I66: 1 | J66: 0 | K66: 0 | L66: 0 | M66: 0 | N66: 0 | O66: 1 | P66: 0 | Q66: 7 | R66: 7 | S66: 4 | T66: 2 | U66: 1 | V66: 0 | W66: 0 | X66: 8 | Y66: 1
A67: =VLOOKUP(D67,'Sheriffdom Look up'!$A$1:$E$102,5,FALSE) -> Lothian & Borders | B67: 2019/20 | C67: Q1 | D67: 9815 | E67: LIVINGSTON | F67: S | G67: 80 | H67: 26 | I67: 40 | J67: 24 | K67: 5 | L67: 12 | M67: 2 | N67: 0 | O67: 4 | P67: 38 | Q67: 432 | R67: 385 | S67: 147 | T67: 613 | U67: 260 | V67: 41 | W67: 21 | X67: 260 | Y67: 404
A68: =VLOOKUP(D68,'Sheriffdom Look up'!$A$1:$E$102,5,FALSE) -> North Strathclyde | B68: 2019/20 | C68: Q1 | D68: 9841 | E68: OBAN | F68: S | G68: 3 | H68: 0 | I68: 2 | J68: 1 | K68: 0 | L68: 4 | M68: 1 | N68: 2 | O68: 2 | P68: 2 | Q68: 62 | R68: 61 | S68: 13 | T68: 34 | U68: 24 | V68: 6 | W68: 0 | X68: 39 | Y68: 47
A69: =VLOOKUP(D69,'Sheriffdom Look up'!$A$1:$E$102,5,FALSE) -> North Strathclyde | B69: 2019/20 | C69: Q1 | D69: 9851 | E69: PAISLEY | F69: S | G69: 93 | H69: 39 | I69: 53 | J69: 39 | K69: 2 | L69: 45 | M69: 18 | N69: 0 | O69: 16 | P69: 62 | Q69: 624 | R69: 612 | S69: 121 | T69: 834 | U69: 489 | V69: 78 | W69: 10 | X69: 445 | Y69: 622
A70: =VLOOKUP(D70,'Sheriffdom Look up'!$A$1:$E$102,5,FALSE) -> Tayside, Central & Fife | B70: 2019/20 | C70: Q1 | D70: 9853 | E70: PERTH | F70: S | G70: 69 | H70: 40 | I70: 25 | J70: 6 | K70: 5 | L70: 21 | M70: 10 | N70: 0 | O70: 12 | P70: 32 | Q70: 343 | R70: 349 | S70: 98 | T70: 424 | U70: 183 | V70: 68 | W70: 13 | X70: 348 | Y70: 305
A71: =VLOOKUP(D71,'Sheriffdom Look up'!$A$1:$E$102,5,FALSE) -> Grampian, Highland & Islands | B71: 2019/20 | C71: Q1 | D71: 9854 | E71: PETERHEAD | F71: S | G71: 47 | H71: 0 | I71: 0 | J71: 0 | K71: 0 | L71: 0 | M71: 0 | N71: 0 | O71: 0 | P71: 0 | Q71: 283 | R71: 274 | S71: 74 | T71: 176 | U71: 96 | V71: 22 | W71: 9 | X71: 198 | Y71: 222
A72: =VLOOKUP(D72,'Sheriffdom Look up'!$A$1:$E$102,5,FALSE) -> Grampian, Highland & Islands | B72: 2019/20 | C72: Q1 | D72: 9855 | E72: PORTREE | F72: S | G72: 2 | H72: 1 | I72: 1 | J72: 0 | K72: 0 | L72: 0 | M72: 0 | N72: 0 | O72: 0 | P72: 0 | Q72: 19 | R72: 32 | S72: 29 | T72: 16 | U72: 12 | V72: 2 | W72: 0 | X72: 22 | Y72: 21
A73: =VLOOKUP(D73,'Sheriffdom Look up'!$A$1:$E$102,5,FALSE) -> Lothian & Borders | B73: 2019/20 | C73: Q1 | D73: 9871 | E73: SELKIRK | F73: S | G73: 8 | H73: 3 | I73: 6 | J73: 4 | K73: 1 | L73: 3 | M73: 1 | N73: 0 | O73: 3 | P73: 6 | Q73: 131 | R73: 121 | S73: 20 | T73: 108 | U73: 70 | V73: 8 | W73: 4 | X73: 100 | Y73: 107
A74: =VLOOKUP(D74,'Sheriffdom Look up'!$A$1:$E$102,5,FALSE) -> Tayside, Central & Fife | B74: 2019/20 | C74: Q1 | D74: 9872 | E74: STIRLING | F74: S | G74: 23 | H74: 27 | I74: 33 | J74: 23 | K74: 4 | L74: 27 | M74: 6 | N74: 0 | O74: 13 | P74: 34 | Q74: 209 | R74: 210 | S74: 101 | T74: 231 | U74: 107 | V74: 26 | W74: 1 | X74: 171 | Y74: 179
A75: =VLOOKUP(D75,'Sheriffdom Look up'!$A$1:$E$102,5,FALSE) -> Grampian, Highland & Islands | B75: 2019/20 | C75: Q1 | D75: 9874 | E75: STORNOWAY | F75: S | G75: 10 | H75: 3 | I75: 1 | J75: 1 | K75: 2 | L75: 0 | M75: 0 | N75: 0 | O75: 0 | P75: 0 | Q75: 52 | R75: 55 | S75: 30 | T75: 39 | U75: 11 | V75: 1 | W75: 0 | X75: 19 | Y75: 47
A76: =VLOOKUP(D76,'Sheriffdom Look up'!$A$1:$E$102,5,FALSE) -> South Strathclyde, Dumfries & Galloway | B76: 2019/20 | C76: Q1 | D76: 9875 | E76: STRANRAER | F76: S | G76: 16 | H76: 3 | I76: 4 | J76: 3 | K76: 2 | L76: 0 | M76: 0 | N76: 0 | O76: 0 | P76: 5 | Q76: 110 | R76: 112 | S76: 21 | T76: 118 | U76: 54 | V76: 13 | W76: 0 | X76: 58 | Y76: 126
A77: =VLOOKUP(D77,'Sheriffdom Look up'!$A$1:$E$102,5,FALSE) -> Grampian, Highland & Islands | B77: 2019/20 | C77: Q1 | D77: 9881 | E77: TAIN | F77: S | G77: 8 | H77: 0 | I77: 0 | J77: 0 | K77: 0 | L77: 0 | M77: 0 | N77: 0 | O77: 0 | P77: 0 | Q77: 94 | R77: 85 | S77: 18 | T77: 138 | U77: 32 | V77: 7 | W77: 2 | X77: 50 | Y77: 78
A78: =VLOOKUP(D78,'Sheriffdom Look up'!$A$1:$E$102,5,FALSE) -> Grampian, Highland & Islands | B78: 2019/20 | C78: Q1 | D78: 9891 | E78: WICK | F78: S | G78: 3 | H78: 8 | I78: 7 | J78: 7 | K78: 1 | L78: 1 | M78: 1 | N78: 0 | O78: 1 | P78: 6 | Q78: 79 | R78: 83 | S78: 35 | T78: 79 | U78: 36 | V78: 10 | W78: 0 | X78: 28 | Y78: 91
A79: National JP | B79: 2019/20 | C79: Q2 | D79: 1 | E79: National | F79: J | G79: 0 | H79: 0 | I79: 0 | J79: 0 | K79: 0 | L79: 0 | M79: 0 | N79: 0 | O79: 0 | P79: 0 | Q79: 8334 | R79: 8168 | S79: 4574 | T79: 5062 | U79: 2440 | V79: 362 | W79: 61 | X79: 3452 | Y79: 7586
A80: National SC | B80: 2019/20 | C80: Q2 | D80: 0 | E80: National | F80: S | G80: 2506 | H80: 1327 | I80: 1288 | J80: 773 | K80: 278 | L80: 792 | M80: 291 | N80: 9 | O80: 488 | P80: 1337 | Q80: 16793 | R80: 15711 | S80: 3536 | T80: 17649 | U80: 9787 | V80: 1734 | W80: 287 | X80: 13186 | Y80: 14348
A81: =VLOOKUP(D81,'Sheriffdom Look up'!$A$1:$E$102,5,FALSE) -> Tayside, Central & Fife | B81: 2019/20 | C81: Q2 | D81: 9240 | E81: ALLOA | F81: J | G81: 0 | H81: 0 | I81: 0 | J81: 0 | K81: 0 | L81: 0 | M81: 0 | N81: 0 | O81: 0 | P81: 0 | Q81: 46 | R81: 49 | S81: 25 | T81: 39 | U81: 13 | V81: 5 | W81: 0 | X81: 22 | Y81: 43
A82: =VLOOKUP(D82,'Sheriffdom Look up'!$A$1:$E$102,5,FALSE) -> South Strathclyde, Dumfries & Galloway | B82: 2019/20 | C82: Q2 | D82: 9246 | E82: DUMFRIES | F82: J | G82: 0 | H82: 0 | I82: 0 | J82: 0 | K82: 0 | L82: 0 | M82: 0 | N82: 0 | O82: 0 | P82: 0 | Q82: 609 | R82: 564 | S82: 359 | T82: 115 | U82: 62 | V82: 19 | W82: 3 | X82: 122 | Y82: 566
A83: =VLOOKUP(D83,'Sheriffdom Look up'!$A$1:$E$102,5,FALSE) -> South Strathclyde, Dumfries & Galloway | B83: 2019/20 | C83: Q2 | D83: 9250 | E83: STRANRAER | F83: J | G83: 0 | H83: 0 | I83: 0 | J83: 0 | K83: 0 | L83: 0 | M83: 0 | N83: 0 | O83: 0 | P83: 0 | Q83: 203 | R83: 203 | S83: 94 | T83: 56 | U83: 20 | V83: 7 | W83: 1 | X83: 37 | Y83: 200
A84: =VLOOKUP(D84,'Sheriffdom Look up'!$A$1:$E$102,5,FALSE) -> Grampian, Highland & Islands | B84: 2019/20 | C84: Q2 | D84: 9251 | E84: ABERDEEN | F84: J | G84: 0 | H84: 0 | I84: 0 | J84: 0 | K84: 0 | L84: 0 | M84: 0 | N84: 0 | O84: 0 | P84: 0 | Q84: 808 | R84: 767 | S84: 303 | T84: 342 | U84: 128 | V84: 29 | W84: 5 | X84: 248 | Y84: 730
A85: =VLOOKUP(D85,'Sheriffdom Look up'!$A$1:$E$102,5,FALSE) -> Grampian, Highland & Islands | B85: 2019/20 | C85: Q2 | D85: 9252 | E85: BANFF | F85: J | G85: 0 | H85: 0 | I85: 0 | J85: 0 | K85: 0 | L85: 0 | M85: 0 | N85: 0 | O85: 0 | P85: 0 | Q85: 24 | R85: 13 | S85: 4 | T85: 19 | U85: 9 | V85: 4 | W85: 0 | X85: 24 | Y85: 13
A86: =VLOOKUP(D86,'Sheriffdom Look up'!$A$1:$E$102,5,FALSE) -> Grampian, Highland & Islands | B86: 2019/20 | C86: Q2 | D86: 9253 | E86: PETERHEAD | F86: J | G86: 0 | H86: 0 | I86: 0 | J86: 0 | K86: 0 | L86: 0 | M86: 0 | N86: 0 | O86: 0 | P86: 0 | Q86: 115 | R86: 110 | S86: 82 | T86: 67 | U86: 19 | V86: 4 | W86: 0 | X86: 60 | Y86: 91
A87: =VLOOKUP(D87,'Sheriffdom Look up'!$A$1:$E$102,5,FALSE) -> Tayside, Central & Fife | B87: 2019/20 | C87: Q2 | D87: 9256 | E87: DUNDEE | F87: J | G87: 0 | H87: 0 | I87: 0 | J87: 0 | K87: 0 | L87: 0 | M87: 0 | N87: 0 | O87: 0 | P87: 0 | Q87: 259 | R87: 301 | S87: 271 | T87: 114 | U87: 59 | V87: 8 | W87: 0 | X87: 76 | Y87: 290
A88: =VLOOKUP(D88,'Sheriffdom Look up'!$A$1:$E$102,5,FALSE) -> North Strathclyde | B88: 2019/20 | C88: Q2 | D88: 9261 | E88: KILMARNOCK | F88: J | G88: 0 | H88: 0 | I88: 0 | J88: 0 | K88: 0 | L88: 0 | M88: 0 | N88: 0 | O88: 0 | P88: 0 | Q88: 264 | R88: 268 | S88: 138 | T88: 145 | U88: 63 | V88: 9 | W88: 2 | X88: 120 | Y88: 251
A89: =VLOOKUP(D89,'Sheriffdom Look up'!$A$1:$E$102,5,FALSE) -> Tayside, Central & Fife | B89: 2019/20 | C89: Q2 | D89: 9264 | E89: FORFAR | F89: J | G89: 0 | H89: 0 | I89: 0 | J89: 0 | K89: 0 | L89: 0 | M89: 0 | N89: 0 | O89: 0 | P89: 0 | Q89: 129 | R89: 143 | S89: 72 | T89: 69 | U89: 30 | V89: 5 | W89: 1 | X89: 33 | Y89: 149
A90: =VLOOKUP(D90,'Sheriffdom Look up'!$A$1:$E$102,5,FALSE) -> Lothian & Borders | B90: 2019/20 | C90: Q2 | D90: 9278 | E90: EDINBURGH | F90: J | G90: 0 | H90: 0 | I90: 0 | J90: 0 | K90: 0 | L90: 0 | M90: 0 | N90: 0 | O90: 0 | P90: 0 | Q90: 988 | R90: 896 | S90: 561 | T90: 660 | U90: 350 | V90: 38 | W90: 6 | X90: 359 | Y90: 816
A91: =VLOOKUP(D91,'Sheriffdom Look up'!$A$1:$E$102,5,FALSE) -> Tayside, Central & Fife | B91: 2019/20 | C91: Q2 | D91: 9282 | E91: FALKIRK | F91: J | G91: 0 | H91: 0 | I91: 0 | J91: 0 | K91: 0 | L91: 0 | M91: 0 | N91: 0 | O91: 0 | P91: 0 | Q91: 163 | R91: 158 | S91: 95 | T91: 115 | U91: 57 | V91: 12 | W91: 0 | X91: 69 | Y91: 151
A92: =VLOOKUP(D92,'Sheriffdom Look up'!$A$1:$E$102,5,FALSE) -> Tayside, Central & Fife | B92: 2019/20 | C92: Q2 | D92: 9286 | E92: DUNFERMLINE | F92: J | G92: 0 | H92: 0 | I92: 0 | J92: 0 | K92: 0 | L92: 0 | M92: 0 | N92: 0 | O92: 0 | P92: 0 | Q92: 135 | R92: 164 | S92: 91 | T92: 64 | U92: 28 | V92: 4 | W92: 0 | X92: 30 | Y92: 135
A93: =VLOOKUP(D93,'Sheriffdom Look up'!$A$1:$E$102,5,FALSE) -> Tayside, Central & Fife | B93: 2019/20 | C93: Q2 | D93: 9287 | E93: KIRKCALDY | F93: J | G93: 0 | H93: 0 | I93: 0 | J93: 0 | K93: 0 | L93: 0 | M93: 0 | N93: 0 | O93: 0 | P93: 0 | Q93: 239 | R93: 236 | S93: 173 | T93: 133 | U93: 77 | V93: 17 | W93: 0 | X93: 107 | Y93: 226
A94: =VLOOKUP(D94,'Sheriffdom Look up'!$A$1:$E$102,5,FALSE) -> North Strathclyde | B94: 2019/20 | C94: Q2 | D94: 9289 | E94: CAMPBELTOWN | F94: J | G94: 0 | H94: 0 | I94: 0 | J94: 0 | K94: 0 | L94: 0 | M94: 0 | N94: 0 | O94: 0 | P94: 0 | Q94: 9 | R94: 10 | S94: 3 | T94: 5 | U94: 5 | V94: 1 | W94: 0 | X94: 4 | Y94: 11
A95: =VLOOKUP(D95,'Sheriffdom Look up'!$A$1:$E$102,5,FALSE) -> North Strathclyde | B95: 2019/20 | C95: Q2 | D95: 9290 | E95: DUNOON | F95: J | G95: 0 | H95: 0 | I95: 0 | J95: 0 | K95: 0 | L95: 0 | M95: 0 | N95: 0 | O95: 0 | P95: 0 | Q95: 30 | R95: 30 | S95: 19 | T95: 10 | U95: 8 | V95: 1 | W95: 0 | X95: 6 | Y95: 25
A96: =VLOOKUP(D96,'Sheriffdom Look up'!$A$1:$E$102,5,FALSE) -> North Strathclyde | B96: 2019/20 | C96: Q2 | D96: 9292 | E96: LOCHGILPHEAD | F96: J | G96: 0 | H96: 0 | I96: 0 | J96: 0 | K96: 0 | L96: 0 | M96: 0 | N96: 0 | O96: 0 | P96: 0 | Q96: 14 | R96: 14 | S96: 9 | T96: 8 | U96: 4 | V96: 0 | W96: 0 | X96: 11 | Y96: 6
A97: =VLOOKUP(D97,'Sheriffdom Look up'!$A$1:$E$102,5,FALSE) -> North Strathclyde | B97: 2019/20 | C97: Q2 | D97: 9293 | E97: OBAN | F97: J | G97: 0 | H97: 0 | I97: 0 | J97: 0 | K97: 0 | L97: 0 | M97: 0 | N97: 0 | O97: 0 | P97: 0 | Q97: 12 | R97: 19 | S97: 9 | T97: 14 | U97: 7 | V97: 0 | W97: 0 | X97: 6 | Y97: 21
A98: =VLOOKUP(D98,'Sheriffdom Look up'!$A$1:$E$102,5,FALSE) -> Glasgow & Strathkelvin | B98: 2019/20 | C98: Q2 | D98: 9295 | E98: GLASGOW | F98: J | G98: 0 | H98: 0 | I98: 0 | J98: 0 | K98: 0 | L98: 0 | M98: 0 | N98: 0 | O98: 0 | P98: 0 | Q98: 1449 | R98: 1401 | S98: 460 | T98: 1047 | U98: 603 | V98: 55 | W98: 9 | X98: 862 | Y98: 1257
A99: =VLOOKUP(D99,'Sheriffdom Look up'!$A$1:$E$102,5,FALSE) -> North Strathclyde | B99: 2019/20 | C99: Q2 | D99: 9340 | E99: GREENOCK | F99: J | G99: 0 | H99: 0 | I99: 0 | J99: 0 | K99: 0 | L99: 0 | M99: 0 | N99: 0 | O99: 0 | P99: 0 | Q99: 86 | R99: 93 | S99: 57 | T99: 112 | U99: 44 | V99: 5 | W99: 1 | X99: 70 | Y99: 70
A100: =VLOOKUP(D100,'Sheriffdom Look up'!$A$1:$E$102,5,FALSE) -> Grampian, Highland & Islands | B100: 2019/20 | C100: Q2 | D100: 9341 | E100: ELGIN | F100: J | G100: 0 | H100: 0 | I100: 0 | J100: 0 | K100: 0 | L100: 0 | M100: 0 | N100: 0 | O100: 0 | P100: 0 | Q100: 101 | R100: 132 | S100: 100 | T100: 86 | U100: 33 | V100: 7 | W100: 1 | X100: 77 | Y100: 126
A101: =VLOOKUP(D101,'Sheriffdom Look up'!$A$1:$E$102,5,FALSE) -> North Strathclyde | B101: 2019/20 | C101: Q2 | D101: 9342 | E101: PAISLEY | F101: J | G101: 0 | H101: 0 | I101: 0 | J101: 0 | K101: 0 | L101: 0 | M101: 0 | N101: 0 | O101: 0 | P101: 0 | Q101: 313 | R101: 302 | S101: 165 | T101: 236 | U101: 133 | V101: 19 | W101: 2 | X101: 166 | Y101: 268
A102: =VLOOKUP(D102,'Sheriffdom Look up'!$A$1:$E$102,5,FALSE) -> Grampian, Highland & Islands | B102: 2019/20 | C102: Q2 | D102: 9345 | E102: FORT WILLIAM | F102: J | G102: 0 | H102: 0 | I102: 0 | J102: 0 | K102: 0 | L102: 0 | M102: 0 | N102: 0 | O102: 0 | P102: 0 | Q102: 85 | R102: 64 | S102: 57 | T102: 27 | U102: 7 | V102: 1 | W102: 0 | X102: 11 | Y102: 67
A103: =VLOOKUP(D103,'Sheriffdom Look up'!$A$1:$E$102,5,FALSE) -> Grampian, Highland & Islands | B103: 2019/20 | C103: Q2 | D103: 9346 | E103: INVERNESS | F103: J | G103: 0 | H103: 0 | I103: 0 | J103: 0 | K103: 0 | L103: 0 | M103: 0 | N103: 0 | O103: 0 | P103: 0 | Q103: 274 | R103: 294 | S103: 196 | T103: 231 | U103: 89 | V103: 14 | W103: 1 | X103: 111 | Y103: 288
A104: =VLOOKUP(D104,'Sheriffdom Look up'!$A$1:$E$102,5,FALSE) -> Grampian, Highland & Islands | B104: 2019/20 | C104: Q2 | D104: 9348 | E104: TAIN | F104: J | G104: 0 | H104: 0 | I104: 0 | J104: 0 | K104: 0 | L104: 0 | M104: 0 | N104: 0 | O104: 0 | P104: 0 | Q104: 58 | R104: 56 | S104: 41 | T104: 48 | U104: 15 | V104: 2 | W104: 0 | X104: 19 | Y104: 56
A105: =VLOOKUP(D105,'Sheriffdom Look up'!$A$1:$E$102,5,FALSE) -> Lothian & Borders | B105: 2019/20 | C105: Q2 | D105: 9351 | E105: JEDBURGH | F105: J | G105: 0 | H105: 0 | I105: 0 | J105: 0 | K105: 0 | L105: 0 | M105: 0 | N105: 0 | O105: 0 | P105: 0 | Q105: 38 | R105: 28 | S105: 25 | T105: 24 | U105: 6 | V105: 1 | W105: 0 | X105: 6 | Y105: 34
A106: =VLOOKUP(D106,'Sheriffdom Look up'!$A$1:$E$102,5,FALSE) -> Lothian & Borders | B106: 2019/20 | C106: Q2 | D106: 9353 | E106: SELKIRK | F106: J | G106: 0 | H106: 0 | I106: 0 | J106: 0 | K106: 0 | L106: 0 | M106: 0 | N106: 0 | O106: 0 | P106: 0 | Q106: 40 | R106: 137 | S106: 53 | T106: 22 | U106: 7 | V106: 0 | W106: 0 | X106: 11 | Y106: 121
A107: =VLOOKUP(D107,'Sheriffdom Look up'!$A$1:$E$102,5,FALSE) -> South Strathclyde, Dumfries & Galloway | B107: 2019/20 | C107: Q2 | D107: 9355 | E107: AIRDRIE | F107: J | G107: 0 | H107: 0 | I107: 0 | J107: 0 | K107: 0 | L107: 0 | M107: 0 | N107: 0 | O107: 0 | P107: 0 | Q107: 241 | R107: 213 | S107: 156 | T107: 230 | U107: 86 | V107: 15 | W107: 1 | X107: 105 | Y107: 198
A108: =VLOOKUP(D108,'Sheriffdom Look up'!$A$1:$E$102,5,FALSE) -> Tayside, Central & Fife | B108: 2019/20 | C108: Q2 | D108: 9358 | E108: PERTH | F108: J | G108: 0 | H108: 0 | I108: 0 | J108: 0 | K108: 0 | L108: 0 | M108: 0 | N108: 0 | O108: 0 | P108: 0 | Q108: 401 | R108: 416 | S108: 208 | T108: 85 | U108: 52 | V108: 9 | W108: 4 | X108: 123 | Y108: 394
A109: =VLOOKUP(D109,'Sheriffdom Look up'!$A$1:$E$102,5,FALSE) -> South Strathclyde, Dumfries & Galloway | B109: 2019/20 | C109: Q2 | D109: 9360 | E109: AYR | F109: J | G109: 0 | H109: 0 | I109: 0 | J109: 0 | K109: 0 | L109: 0 | M109: 0 | N109: 0 | O109: 0 | P109: 0 | Q109: 174 | R109: 144 | S109: 110 | T109: 93 | U109: 49 | V109: 11 | W109: 2 | X109: 55 | Y109: 131
A110: =VLOOKUP(D110,'Sheriffdom Look up'!$A$1:$E$102,5,FALSE) -> South Strathclyde, Dumfries & Galloway | B110: 2019/20 | C110: Q2 | D110: 9366 | E110: HAMILTON | F110: J | G110: 0 | H110: 0 | I110: 0 | J110: 0 | K110: 0 | L110: 0 | M110: 0 | N110: 0 | O110: 0 | P110: 0 | Q110: 421 | R110: 352 | S110: 251 | T110: 499 | U110: 220 | V110: 30 | W110: 16 | X110: 288 | Y110: 355
A111: =VLOOKUP(D111,'Sheriffdom Look up'!$A$1:$E$102,5,FALSE) -> South Strathclyde, Dumfries & Galloway | B111: 2019/20 | C111: Q2 | D111: 9367 | E111: LANARK | F111: J | G111: 0 | H111: 0 | I111: 0 | J111: 0 | K111: 0 | L111: 0 | M111: 0 | N111: 0 | O111: 0 | P111: 0 | Q111: 107 | R111: 91 | S111: 34 | T111: 42 | U111: 25 | V111: 3 | W111: 0 | X111: 30 | Y111: 69
A112: =VLOOKUP(D112,'Sheriffdom Look up'!$A$1:$E$102,5,FALSE) -> Tayside, Central & Fife | B112: 2019/20 | C112: Q2 | D112: 9372 | E112: STIRLING | F112: J | G112: 0 | H112: 0 | I112: 0 | J112: 0 | K112: 0 | L112: 0 | M112: 0 | N112: 0 | O112: 0 | P112: 0 | Q112: 93 | R112: 102 | S112: 89 | T112: 54 | U112: 31 | V112: 10 | W112: 1 | X112: 38 | Y112: 91
A113: =VLOOKUP(D113,'Sheriffdom Look up'!$A$1:$E$102,5,FALSE) -> North Strathclyde | B113: 2019/20 | C113: Q2 | D113: 9376 | E113: DUMBARTON | F113: J | G113: 0 | H113: 0 | I113: 0 | J113: 0 | K113: 0 | L113: 0 | M113: 0 | N113: 0 | O113: 0 | P113: 0 | Q113: 173 | R113: 182 | S113: 134 | T113: 131 | U113: 52 | V113: 9 | W113: 4 | X113: 95 | Y113: 165
A114: =VLOOKUP(D114,'Sheriffdom Look up'!$A$1:$E$102,5,FALSE) -> Lothian & Borders | B114: 2019/20 | C114: Q2 | D114: 9380 | E114: LIVINGSTON | F114: J | G114: 0 | H114: 0 | I114: 0 | J114: 0 | K114: 0 | L114: 0 | M114: 0 | N114: 0 | O114: 0 | P114: 0 | Q114: 233 | R114: 216 | S114: 130 | T114: 120 | U114: 49 | V114: 8 | W114: 1 | X114: 51 | Y114: 172
A115: =VLOOKUP(D115,'Sheriffdom Look up'!$A$1:$E$102,5,FALSE) -> Grampian, Highland & Islands | B115: 2019/20 | C115: Q2 | D115: 9701 | E115: ABERDEEN | F115: S | G115: 162 | H115: 142 | I115: 102 | J115: 48 | K115: 47 | L115: 65 | M115: 31 | N115: 3 | O115: 56 | P115: 128 | Q115: 999 | R115: 882 | S115: 241 | T115: 1184 | U115: 520 | V115: 153 | W115: 31 | X115: 1059 | Y115: 865
A116: =VLOOKUP(D116,'Sheriffdom Look up'!$A$1:$E$102,5,FALSE) -> South Strathclyde, Dumfries & Galloway | B116: 2019/20 | C116: Q2 | D116: 9702 | E116: AIRDRIE | F116: S | G116: 89 | H116: 33 | I116: 56 | J116: 32 | K116: 6 | L116: 41 | M116: 11 | N116: 0 | O116: 21 | P116: 52 | Q116: 620 | R116: 630 | S116: 171 | T116: 734 | U116: 423 | V116: 85 | W116: 3 | X116: 421 | Y116: 578
A117: =VLOOKUP(D117,'Sheriffdom Look up'!$A$1:$E$102,5,FALSE) -> Tayside, Central & Fife | B117: 2019/20 | C117: Q2 | D117: 9703 | E117: ALLOA | F117: S | G117: 51 | H117: 0 | I117: 0 | J117: 0 | K117: 0 | L117: 0 | M117: 0 | N117: 0 | O117: 0 | P117: 1 | Q117: 199 | R117: 193 | S117: 51 | T117: 247 | U117: 107 | V117: 13 | W117: 10 | X117: 180 | Y117: 171
A118: =VLOOKUP(D118,'Sheriffdom Look up'!$A$1:$E$102,5,FALSE) -> South Strathclyde, Dumfries & Galloway | B118: 2019/20 | C118: Q2 | D118: 9704 | E118: AYR | F118: S | G118: 64 | H118: 35 | I118: 27 | J118: 22 | K118: 10 | L118: 25 | M118: 7 | N118: 0 | O118: 8 | P118: 38 | Q118: 501 | R118: 491 | S118: 143 | T118: 503 | U118: 205 | V118: 44 | W118: 7 | X118: 326 | Y118: 421
A119: =VLOOKUP(D119,'Sheriffdom Look up'!$A$1:$E$102,5,FALSE) -> Grampian, Highland & Islands | B119: 2019/20 | C119: Q2 | D119: 9711 | E119: BANFF | F119: S | G119: 4 | H119: 0 | I119: 0 | J119: 0 | K119: 0 | L119: 0 | M119: 0 | N119: 0 | O119: 0 | P119: 0 | Q119: 31 | R119: 33 | S119: 19 | T119: 90 | U119: 46 | V119: 11 | W119: 3 | X119: 58 | Y119: 46
A120: =VLOOKUP(D120,'Sheriffdom Look up'!$A$1:$E$102,5,FALSE) -> North Strathclyde | B120: 2019/20 | C120: Q2 | D120: 9716 | E120: CAMPBELTOWN | F120: S | G120: 3 | H120: 1 | I120: 1 | J120: 0 | K120: 0 | L120: 0 | M120: 0 | N120: 0 | O120: 1 | P120: 0 | Q120: 39 | R120: 37 | S120: 5 | T120: 20 | U120: 20 | V120: 6 | W120: 1 | X120: 30 | Y120: 27
A121: =VLOOKUP(D121,'Sheriffdom Look up'!$A$1:$E$102,5,FALSE) -> North Strathclyde | B121: 2019/20 | C121: Q2 | D121: 9723 | E121: DUMBARTON | F121: S | G121: 42 | H121: 33 | I121: 36 | J121: 18 | K121: 7 | L121: 22 | M121: 11 | N121: 0 | O121: 9 | P121: 47 | Q121: 400 | R121: 365 | S121: 115 | T121: 398 | U121: 233 | V121: 42 | W121: 18 | X121: 340 | Y121: 321
A122: =VLOOKUP(D122,'Sheriffdom Look up'!$A$1:$E$102,5,FALSE) -> South Strathclyde, Dumfries & Galloway | B122: 2019/20 | C122: Q2 | D122: 9724 | E122: DUMFRIES | F122: S | G122: 47 | H122: 22 | I122: 20 | J122: 10 | K122: 9 | L122: 9 | M122: 6 | N122: 0 | O122: 4 | P122: 20 | Q122: 443 | R122: 429 | S122: 92 | T122: 257 | U122: 177 | V122: 53 | W122: 0 | X122: 254 | Y122: 370
A123: =VLOOKUP(D123,'Sheriffdom Look up'!$A$1:$E$102,5,FALSE) -> Tayside, Central & Fife | B123: 2019/20 | C123: Q2 | D123: 9726 | E123: DUNDEE | F123: S | G123: 135 | H123: 102 | I123: 82 | J123: 39 | K123: 16 | L123: 64 | M123: 27 | N123: 2 | O123: 33 | P123: 102 | Q123: 755 | R123: 642 | S123: 114 | T123: 590 | U123: 356 | V123: 61 | W123: 5 | X123: 562 | Y123: 597
A124: =VLOOKUP(D124,'Sheriffdom Look up'!$A$1:$E$102,5,FALSE) -> Tayside, Central & Fife | B124: 2019/20 | C124: Q2 | D124: 9727 | E124: DUNFERMLINE | F124: S | G124: 54 | H124: 31 | I124: 34 | J124: 26 | K124: 9 | L124: 18 | M124: 4 | N124: 1 | O124: 10 | P124: 37 | Q124: 377 | R124: 358 | S124: 84 | T124: 383 | U124: 174 | V124: 29 | W124: 5 | X124: 274 | Y124: 328
A125: =VLOOKUP(D125,'Sheriffdom Look up'!$A$1:$E$102,5,FALSE) -> North Strathclyde | B125: 2019/20 | C125: Q2 | D125: 9728 | E125: DUNOON | F125: S | G125: 2 | H125: 4 | I125: 3 | J125: 2 | K125: 0 | L125: 2 | M125: 1 | N125: 0 | O125: 0 | P125: 2 | Q125: 83 | R125: 77 | S125: 13 | T125: 73 | U125: 47 | V125: 12 | W125: 2 | X125: 64 | Y125: 67
A126: =VLOOKUP(D126,'Sheriffdom Look up'!$A$1:$E$102,5,FALSE) -> Lothian & Borders | B126: 2019/20 | C126: Q2 | D126: 9741 | E126: EDINBURGH | F126: S | G126: 349 | H126: 192 | I126: 172 | J126: 165 | K126: 32 | L126: 108 | M126: 21 | N126: 0 | O126: 58 | P126: 144 | Q126: 2253 | R126: 2025 | S126: 558 | T126: 2600 | U126: 1334 | V126: 131 | W126: 11 | X126: 1790 | Y126: 1776
A127: =VLOOKUP(D127,'Sheriffdom Look up'!$A$1:$E$102,5,FALSE) -> Grampian, Highland & Islands | B127: 2019/20 | C127: Q2 | D127: 9742 | E127: ELGIN | F127: S | G127: 32 | H127: 19 | I127: 18 | J127: 24 | K127: 3 | L127: 10 | M127: 4 | N127: 0 | O127: 7 | P127: 15 | Q127: 208 | R127: 176 | S127: 49 | T127: 280 | U127: 89 | V127: 24 | W127: 4 | X127: 152 | Y127: 212
A128: =VLOOKUP(D128,'Sheriffdom Look up'!$A$1:$E$102,5,FALSE) -> Tayside, Central & Fife | B128: 2019/20 | C128: Q2 | D128: 9751 | E128: FALKIRK | F128: S | G128: 61 | H128: 28 | I128: 21 | J128: 13 | K128: 4 | L128: 21 | M128: 6 | N128: 0 | O128: 10 | P128: 41 | Q128: 545 | R128: 511 | S128: 94 | T128: 521 | U128: 289 | V128: 47 | W128: 16 | X128: 390 | Y128: 432
A129: =VLOOKUP(D129,'Sheriffdom Look up'!$A$1:$E$102,5,FALSE) -> Tayside, Central & Fife | B129: 2019/20 | C129: Q2 | D129: 9752 | E129: FORFAR | F129: S | G129: 44 | H129: 0 | I129: 0 | J129: 0 | K129: 0 | L129: 0 | M129: 0 | N129: 0 | O129: 0 | P129: 0 | Q129: 309 | R129: 299 | S129: 50 | T129: 319 | U129: 168 | V129: 20 | W129: 2 | X129: 194 | Y129: 318
A130: =VLOOKUP(D130,'Sheriffdom Look up'!$A$1:$E$102,5,FALSE) -> Grampian, Highland & Islands | B130: 2019/20 | C130: Q2 | D130: 9753 | E130: FORT WILLIAM | F130: S | G130: 4 | H130: 0 | I130: 0 | J130: 0 | K130: 0 | L130: 0 | M130: 0 | N130: 0 | O130: 0 | P130: 1 | Q130: 54 | R130: 49 | S130: 24 | T130: 91 | U130: 35 | V130: 7 | W130: 1 | X130: 62 | Y130: 51
A131: =VLOOKUP(D131,'Sheriffdom Look up'!$A$1:$E$102,5,FALSE) -> Glasgow & Strathkelvin | B131: 2019/20 | C131: Q2 | D131: 9761 | E131: GLASGOW | F131: S | G131: 454 | H131: 256 | I131: 298 | J131: 78 | K131: 36 | L131: 181 | M131: 62 | N131: 0 | O131: 124 | P131: 269 | Q131: 2677 | R131: 2682 | S131: 307 | T131: 2683 | U131: 2159 | V131: 290 | W131: 15 | X131: 2263 | Y131: 2526
A132: =VLOOKUP(D132,'Sheriffdom Look up'!$A$1:$E$102,5,FALSE) -> North Strathclyde | B132: 2019/20 | C132: Q2 | D132: 9762 | E132: GREENOCK | F132: S | G132: 35 | H132: 19 | I132: 16 | J132: 4 | K132: 6 | L132: 12 | M132: 7 | N132: 0 | O132: 4 | P132: 18 | Q132: 259 | R132: 257 | S132: 48 | T132: 271 | U132: 199 | V132: 34 | W132: 18 | X132: 217 | Y132: 214
A133: =VLOOKUP(D133,'Sheriffdom Look up'!$A$1:$E$102,5,FALSE) -> South Strathclyde, Dumfries & Galloway | B133: 2019/20 | C133: Q2 | D133: 9772 | E133: HAMILTON | F133: S | G133: 171 | H133: 101 | I133: 85 | J133: 40 | K133: 18 | L133: 45 | M133: 15 | N133: 0 | O133: 33 | P133: 101 | Q133: 1082 | R133: 928 | S133: 111 | T133: 1276 | U133: 643 | V133: 148 | W133: 19 | X133: 855 | Y133: 941
A134: =VLOOKUP(D134,'Sheriffdom Look up'!$A$1:$E$102,5,FALSE) -> Grampian, Highland & Islands | B134: 2019/20 | C134: Q2 | D134: 9781 | E134: INVERNESS | F134: S | G134: 66 | H134: 31 | I134: 35 | J134: 77 | K134: 1 | L134: 11 | M134: 6 | N134: 1 | O134: 21 | P134: 26 | Q134: 417 | R134: 347 | S134: 101 | T134: 534 | U134: 184 | V134: 22 | W134: 4 | X134: 395 | Y134: 321
A135: =VLOOKUP(D135,'Sheriffdom Look up'!$A$1:$E$102,5,FALSE) -> Lothian & Borders | B135: 2019/20 | C135: Q2 | D135: 9791 | E135: JEDBURGH | F135: S | G135: 14 | H135: 7 | I135: 7 | J135: 3 | K135: 3 | L135: 6 | M135: 2 | N135: 0 | O135: 2 | P135: 6 | Q135: 132 | R135: 134 | S135: 17 | T135: 156 | U135: 63 | V135: 12 | W135: 1 | X135: 84 | Y135: 125
A136: =VLOOKUP(D136,'Sheriffdom Look up'!$A$1:$E$102,5,FALSE) -> North Strathclyde | B136: 2019/20 | C136: Q2 | D136: 9801 | E136: KILMARNOCK | F136: S | G136: 90 | H136: 74 | I136: 64 | J136: 20 | K136: 17 | L136: 31 | M136: 16 | N136: 0 | O136: 8 | P136: 63 | Q136: 834 | R136: 786 | S136: 115 | T136: 590 | U136: 363 | V136: 88 | W136: 22 | X136: 559 | Y136: 637
A137: =VLOOKUP(D137,'Sheriffdom Look up'!$A$1:$E$102,5,FALSE) -> Tayside, Central & Fife | B137: 2019/20 | C137: Q2 | D137: 9803 | E137: KIRKCALDY | F137: S | G137: 108 | H137: 35 | I137: 29 | J137: 13 | K137: 4 | L137: 17 | M137: 9 | N137: 0 | O137: 12 | P137: 30 | Q137: 655 | R137: 612 | S137: 217 | T137: 736 | U137: 371 | V137: 93 | W137: 16 | X137: 517 | Y137: 577
A138: =VLOOKUP(D138,'Sheriffdom Look up'!$A$1:$E$102,5,FALSE) -> Grampian, Highland & Islands | B138: 2019/20 | C138: Q2 | D138: 9805 | E138: KIRKWALL | F138: S | G138: 3 | H138: 1 | I138: 0 | J138: 1 | K138: 1 | L138: 1 | M138: 1 | N138: 0 | O138: 1 | P138: 3 | Q138: 67 | R138: 57 | S138: 23 | T138: 22 | U138: 15 | V138: 6 | W138: 2 | X138: 15 | Y138: 59
A139: =VLOOKUP(D139,'Sheriffdom Look up'!$A$1:$E$102,5,FALSE) -> South Strathclyde, Dumfries & Galloway | B139: 2019/20 | C139: Q2 | D139: 9811 | E139: LANARK | F139: S | G139: 20 | H139: 2 | I139: 11 | J139: 9 | K139: 0 | L139: 3 | M139: 1 | N139: 0 | O139: 4 | P139: 4 | Q139: 135 | R139: 138 | S139: 39 | T139: 161 | U139: 84 | V139: 21 | W139: 1 | X139: 97 | Y139: 130
A140: =VLOOKUP(D140,'Sheriffdom Look up'!$A$1:$E$102,5,FALSE) -> Grampian, Highland & Islands | B140: 2019/20 | C140: Q2 | D140: 9812 | E140: LERWICK | F140: S | G140: 5 | H140: 7 | I140: 4 | J140: 0 | K140: 3 | L140: 0 | M140: 0 | N140: 0 | O140: 3 | P140: 3 | Q140: 64 | R140: 69 | S140: 47 | T140: 40 | U140: 16 | V140: 3 | W140: 0 | X140: 30 | Y140: 59
A141: =VLOOKUP(D141,'Sheriffdom Look up'!$A$1:$E$102,5,FALSE) -> Grampian, Highland & Islands | B141: 2019/20 | C141: Q2 | D141: 9814 | E141: LOCHMADDY | F141: S | G141: 0 | H141: 0 | I141: 0 | J141: 0 | K141: 0 | L141: 1 | M141: 1 | N141: 0 | O141: 0 | P141: 1 | Q141: 7 | R141: 6 | S141: 4 | T141: 11 | U141: 3 | V141: 0 | W141: 0 | X141: 3 | Y141: 13
A142: =VLOOKUP(D142,'Sheriffdom Look up'!$A$1:$E$102,5,FALSE) -> Lothian & Borders | B142: 2019/20 | C142: Q2 | D142: 9815 | E142: LIVINGSTON | F142: S | G142: 85 | H142: 36 | I142: 30 | J142: 32 | K142: 11 | L142: 12 | M142: 5 | N142: 1 | O142: 10 | P142: 49 | Q142: 482 | R142: 455 | S142: 201 | T142: 578 | U142: 230 | V142: 24 | W142: 11 | X142: 298 | Y142: 390
A143: =VLOOKUP(D143,'Sheriffdom Look up'!$A$1:$E$102,5,FALSE) -> North Strathclyde | B143: 2019/20 | C143: Q2 | D143: 9841 | E143: OBAN | F143: S | G143: 6 | H143: 6 | I143: 1 | J143: 2 | K143: 0 | L143: 4 | M143: 3 | N143: 0 | O143: 0 | P143: 4 | Q143: 55 | R143: 49 | S143: 14 | T143: 52 | U143: 36 | V143: 8 | W143: 2 | X143: 39 | Y143: 59
A144: =VLOOKUP(D144,'Sheriffdom Look up'!$A$1:$E$102,5,FALSE) -> North Strathclyde | B144: 2019/20 | C144: Q2 | D144: 9851 | E144: PAISLEY | F144: S | G144: 101 | H144: 39 | I144: 44 | J144: 35 | K144: 13 | L144: 35 | M144: 15 | N144: 0 | O144: 19 | P144: 47 | Q144: 686 | R144: 645 | S144: 142 | T144: 816 | U144: 463 | V144: 81 | W144: 21 | X144: 584 | Y144: 490
A145: =VLOOKUP(D145,'Sheriffdom Look up'!$A$1:$E$102,5,FALSE) -> Tayside, Central & Fife | B145: 2019/20 | C145: Q2 | D145: 9853 | E145: PERTH | F145: S | G145: 56 | H145: 23 | I145: 36 | J145: 17 | K145: 7 | L145: 21 | M145: 8 | N145: 0 | O145: 15 | P145: 30 | Q145: 330 | R145: 325 | S145: 81 | T145: 444 | U145: 220 | V145: 68 | W145: 15 | X145: 383 | Y145: 287
A146: =VLOOKUP(D146,'Sheriffdom Look up'!$A$1:$E$102,5,FALSE) -> Grampian, Highland & Islands | B146: 2019/20 | C146: Q2 | D146: 9854 | E146: PETERHEAD | F146: S | G146: 56 | H146: 0 | I146: 0 | J146: 0 | K146: 0 | L146: 0 | M146: 0 | N146: 0 | O146: 0 | P146: 0 | Q146: 279 | R146: 235 | S146: 51 | T146: 160 | U146: 99 | V146: 22 | W146: 10 | X146: 209 | Y146: 210
A147: =VLOOKUP(D147,'Sheriffdom Look up'!$A$1:$E$102,5,FALSE) -> Grampian, Highland & Islands | B147: 2019/20 | C147: Q2 | D147: 9855 | E147: PORTREE | F147: S | G147: 5 | H147: 1 | I147: 1 | J147: 0 | K147: 0 | L147: 1 | M147: 0 | N147: 0 | O147: 0 | P147: 2 | Q147: 22 | R147: 26 | S147: 11 | T147: 24 | U147: 18 | V147: 3 | W147: 1 | X147: 16 | Y147: 26
A148: =VLOOKUP(D148,'Sheriffdom Look up'!$A$1:$E$102,5,FALSE) -> Lothian & Borders | B148: 2019/20 | C148: Q2 | D148: 9871 | E148: SELKIRK | F148: S | G148: 20 | H148: 4 | I148: 4 | J148: 9 | K148: 3 | L148: 3 | M148: 2 | N148: 0 | O148: 0 | P148: 7 | Q148: 176 | R148: 173 | S148: 28 | T148: 183 | U148: 101 | V148: 15 | W148: 3 | X148: 101 | Y148: 171
A149: =VLOOKUP(D149,'Sheriffdom Look up'!$A$1:$E$102,5,FALSE) -> Tayside, Central & Fife | B149: 2019/20 | C149: Q2 | D149: 9872 | E149: STIRLING | F149: S | G149: 35 | H149: 25 | I149: 40 | J149: 20 | K149: 6 | L149: 20 | M149: 6 | N149: 1 | O149: 12 | P149: 32 | Q149: 252 | R149: 238 | S149: 73 | T149: 299 | U149: 141 | V149: 27 | W149: 3 | X149: 186 | Y149: 226
A150: =VLOOKUP(D150,'Sheriffdom Look up'!$A$1:$E$102,5,FALSE) -> Grampian, Highland & Islands | B150: 2019/20 | C150: Q2 | D150: 9874 | E150: STORNOWAY | F150: S | G150: 1 | H150: 3 | I150: 2 | J150: 4 | K150: 0 | L150: 0 | M150: 0 | N150: 0 | O150: 0 | P150: 1 | Q150: 53 | R150: 48 | S150: 32 | T150: 45 | U150: 14 | V150: 3 | W150: 0 | X150: 15 | Y150: 40
A151: =VLOOKUP(D151,'Sheriffdom Look up'!$A$1:$E$102,5,FALSE) -> South Strathclyde, Dumfries & Galloway | B151: 2019/20 | C151: Q2 | D151: 9875 | E151: STRANRAER | F151: S | G151: 12 | H151: 11 | I151: 7 | J151: 3 | K151: 4 | L151: 2 | M151: 2 | N151: 0 | O151: 0 | P151: 12 | Q151: 118 | R151: 116 | S151: 11 | T151: 78 | U151: 53 | V151: 16 | W151: 2 | X151: 66 | Y151: 91
A152: =VLOOKUP(D152,'Sheriffdom Look up'!$A$1:$E$102,5,FALSE) -> Grampian, Highland & Islands | B152: 2019/20 | C152: Q2 | D152: 9881 | E152: TAIN | F152: S | G152: 15 | H152: 0 | I152: 0 | J152: 0 | K152: 0 | L152: 0 | M152: 0 | N152: 0 | O152: 0 | P152: 0 | Q152: 106 | R152: 104 | S152: 24 | T152: 144 | U152: 65 | V152: 3 | W152: 2 | X152: 72 | Y152: 92
A153: =VLOOKUP(D153,'Sheriffdom Look up'!$A$1:$E$102,5,FALSE) -> Grampian, Highland & Islands | B153: 2019/20 | C153: Q2 | D153: 9891 | E153: WICK | F153: S | G153: 5 | H153: 4 | I153: 2 | J153: 7 | K153: 2 | L153: 1 | M153: 1 | N153: 0 | O153: 3 | P153: 1 | Q153: 89 | R153: 84 | S153: 16 | T153: 56 | U153: 24 | V153: 9 | W153: 0 | X153: 26 | Y153: 84
A154: =VLOOKUP(D154,'Sheriffdom Look up'!$A$1:$E$102,5,FALSE) -> National JP | B154: 2019/20 | C154: Q3 | D154: 1 | E154: NATIONAL | F154: J | G154: 0 | H154: 0 | I154: 0 | J154: 0 | K154: 0 | L154: 0 | M154: 0 | N154: 0 | O154: 0 | P154: 0 | Q154: 7965 | R154: 8000 | S154: 4625 | T154: 4356 | U154: 2460 | V154: 407 | W154: 83 | X154: 3300 | Y154: 7782
A155: =VLOOKUP(D155,'Sheriffdom Look up'!$A$1:$E$102,5,FALSE) -> National SC | B155: 2019/20 | C155: Q3 | D155: 0 | E155: NATIONAL | F155: S | G155: 2492 | H155: 1438 | I155: 1188 | J155: 720 | K155: 283 | L155: 749 | M155: 292 | N155: 14 | O155: 482 | P155: 1315 | Q155: 16138 | R155: 15292 | S155: 3593 | T155: 17738 | U155: 9986 | V155: 1747 | W155: 293 | X155: 13832 | Y155: 14419
A156: =VLOOKUP(D156,'Sheriffdom Look up'!$A$1:$E$102,5,FALSE) -> Tayside, Central & Fife | B156: 2019/20 | C156: Q3 | D156: 9240 | E156: ALLOA | F156: J | G156: 0 | H156: 0 | I156: 0 | J156: 0 | K156: 0 | L156: 0 | M156: 0 | N156: 0 | O156: 0 | P156: 0 | Q156: 50 | R156: 50 | S156: 32 | T156: 28 | U156: 19 | V156: 6 | W156: 1 | X156: 13 | Y156: 56
A157: =VLOOKUP(D157,'Sheriffdom Look up'!$A$1:$E$102,5,FALSE) -> South Strathclyde, Dumfries & Galloway | B157: 2019/20 | C157: Q3 | D157: 9246 | E157: DUMFRIES | F157: J | G157: 0 | H157: 0 | I157: 0 | J157: 0 | K157: 0 | L157: 0 | M157: 0 | N157: 0 | O157: 0 | P157: 0 | Q157: 492 | R157: 527 | S157: 286 | T157: 119 | U157: 57 | V157: 13 | W157: 1 | X157: 136 | Y157: 472
A158: =VLOOKUP(D158,'Sheriffdom Look up'!$A$1:$E$102,5,FALSE) -> South Strathclyde, Dumfries & Galloway | B158: 2019/20 | C158: Q3 | D158: 9250 | E158: STRANRAER | F158: J | G158: 0 | H158: 0 | I158: 0 | J158: 0 | K158: 0 | L158: 0 | M158: 0 | N158: 0 | O158: 0 | P158: 0 | Q158: 239 | R158: 199 | S158: 81 | T158: 38 | U158: 32 | V158: 6 | W158: 6 | X158: 25 | Y158: 190
A159: =VLOOKUP(D159,'Sheriffdom Look up'!$A$1:$E$102,5,FALSE) -> Grampian, Highland & Islands | B159: 2019/20 | C159: Q3 | D159: 9251 | E159: ABERDEEN | F159: J | G159: 0 | H159: 0 | I159: 0 | J159: 0 | K159: 0 | L159: 0 | M159: 0 | N159: 0 | O159: 0 | P159: 0 | Q159: 887 | R159: 868 | S159: 415 | T159: 313 | U159: 120 | V159: 30 | W159: 11 | X159: 231 | Y159: 868
A160: =VLOOKUP(D160,'Sheriffdom Look up'!$A$1:$E$102,5,FALSE) -> Grampian, Highland & Islands | B160: 2019/20 | C160: Q3 | D160: 9252 | E160: BANFF | F160: J | G160: 0 | H160: 0 | I160: 0 | J160: 0 | K160: 0 | L160: 0 | M160: 0 | N160: 0 | O160: 0 | P160: 0 | Q160: 18 | R160: 29 | S160: 10 | T160: 21 | U160: 14 | V160: 4 | W160: 0 | X160: 21 | Y160: 33
A161: =VLOOKUP(D161,'Sheriffdom Look up'!$A$1:$E$102,5,FALSE) -> Grampian, Highland & Islands | B161: 2019/20 | C161: Q3 | D161: 9253 | E161: PETERHEAD | F161: J | G161: 0 | H161: 0 | I161: 0 | J161: 0 | K161: 0 | L161: 0 | M161: 0 | N161: 0 | O161: 0 | P161: 0 | Q161: 127 | R161: 95 | S161: 66 | T161: 71 | U161: 29 | V161: 7 | W161: 5 | X161: 52 | Y161: 97
A162: =VLOOKUP(D162,'Sheriffdom Look up'!$A$1:$E$102,5,FALSE) -> Tayside, Central & Fife | B162: 2019/20 | C162: Q3 | D162: 9256 | E162: DUNDEE | F162: J | G162: 0 | H162: 0 | I162: 0 | J162: 0 | K162: 0 | L162: 0 | M162: 0 | N162: 0 | O162: 0 | P162: 0 | Q162: 407 | R162: 365 | S162: 283 | T162: 148 | U162: 46 | V162: 8 | W162: 0 | X162: 103 | Y162: 280
A163: =VLOOKUP(D163,'Sheriffdom Look up'!$A$1:$E$102,5,FALSE) -> North Strathclyde | B163: 2019/20 | C163: Q3 | D163: 9261 | E163: KILMARNOCK | F163: J | G163: 0 | H163: 0 | I163: 0 | J163: 0 | K163: 0 | L163: 0 | M163: 0 | N163: 0 | O163: 0 | P163: 0 | Q163: 217 | R163: 233 | S163: 99 | T163: 120 | U163: 63 | V163: 15 | W163: 0 | X163: 119 | Y163: 221
A164: =VLOOKUP(D164,'Sheriffdom Look up'!$A$1:$E$102,5,FALSE) -> Tayside, Central & Fife | B164: 2019/20 | C164: Q3 | D164: 9264 | E164: FORFAR | F164: J | G164: 0 | H164: 0 | I164: 0 | J164: 0 | K164: 0 | L164: 0 | M164: 0 | N164: 0 | O164: 0 | P164: 0 | Q164: 123 | R164: 141 | S164: 66 | T164: 47 | U164: 27 | V164: 7 | W164: 0 | X164: 19 | Y164: 160
A165: =VLOOKUP(D165,'Sheriffdom Look up'!$A$1:$E$102,5,FALSE) -> Lothian & Borders | B165: 2019/20 | C165: Q3 | D165: 9278 | E165: EDINBURGH | F165: J | G165: 0 | H165: 0 | I165: 0 | J165: 0 | K165: 0 | L165: 0 | M165: 0 | N165: 0 | O165: 0 | P165: 0 | Q165: 874 | R165: 859 | S165: 626 | T165: 589 | U165: 254 | V165: 30 | W165: 11 | X165: 432 | Y165: 787
A166: =VLOOKUP(D166,'Sheriffdom Look up'!$A$1:$E$102,5,FALSE) -> Tayside, Central & Fife | B166: 2019/20 | C166: Q3 | D166: 9282 | E166: FALKIRK | F166: J | G166: 0 | H166: 0 | I166: 0 | J166: 0 | K166: 0 | L166: 0 | M166: 0 | N166: 0 | O166: 0 | P166: 0 | Q166: 155 | R166: 144 | S166: 88 | T166: 94 | U166: 41 | V166: 7 | W166: 0 | X166: 60 | Y166: 144
A167: =VLOOKUP(D167,'Sheriffdom Look up'!$A$1:$E$102,5,FALSE) -> Tayside, Central & Fife | B167: 2019/20 | C167: Q3 | D167: 9286 | E167: DUNFERMLINE | F167: J | G167: 0 | H167: 0 | I167: 0 | J167: 0 | K167: 0 | L167: 0 | M167: 0 | N167: 0 | O167: 0 | P167: 0 | Q167: 222 | R167: 180 | S167: 99 | T167: 65 | U167: 18 | V167: 3 | W167: 0 | X167: 45 | Y167: 154
A168: =VLOOKUP(D168,'Sheriffdom Look up'!$A$1:$E$102,5,FALSE) -> Tayside, Central & Fife | B168: 2019/20 | C168: Q3 | D168: 9287 | E168: KIRKCALDY | F168: J | G168: 0 | H168: 0 | I168: 0 | J168: 0 | K168: 0 | L168: 0 | M168: 0 | N168: 0 | O168: 0 | P168: 0 | Q168: 294 | R168: 260 | S168: 198 | T168: 121 | U168: 59 | V168: 13 | W168: 0 | X168: 123 | Y168: 217
A169: =VLOOKUP(D169,'Sheriffdom Look up'!$A$1:$E$102,5,FALSE) -> North Strathclyde | B169: 2019/20 | C169: Q3 | D169: 9289 | E169: CAMPBELTOWN | F169: J | G169: 0 | H169: 0 | I169: 0 | J169: 0 | K169: 0 | L169: 0 | M169: 0 | N169: 0 | O169: 0 | P169: 0 | Q169: 16 | R169: 8 | S169: 0 | T169: 4 | U169: 2 | V169: 0 | W169: 0 | X169: 1 | Y169: 6
A170: =VLOOKUP(D170,'Sheriffdom Look up'!$A$1:$E$102,5,FALSE) -> North Strathclyde | B170: 2019/20 | C170: Q3 | D170: 9290 | E170: DUNOON | F170: J | G170: 0 | H170: 0 | I170: 0 | J170: 0 | K170: 0 | L170: 0 | M170: 0 | N170: 0 | O170: 0 | P170: 0 | Q170: 37 | R170: 37 | S170: 27 | T170: 9 | U170: 8 | V170: 3 | W170: 0 | X170: 11 | Y170: 34
A171: =VLOOKUP(D171,'Sheriffdom Look up'!$A$1:$E$102,5,FALSE) -> North Strathclyde | B171: 2019/20 | C171: Q3 | D171: 9292 | E171: LOCHGILPHEAD | F171: J | G171: 0 | H171: 0 | I171: 0 | J171: 0 | K171: 0 | L171: 0 | M171: 0 | N171: 0 | O171: 0 | P171: 0 | Q171: 13 | R171: 11 | S171: 6 | T171: 8 | U171: 14 | V171: 2 | W171: 0 | X171: 1 | Y171: 19
A172: =VLOOKUP(D172,'Sheriffdom Look up'!$A$1:$E$102,5,FALSE) -> North Strathclyde | B172: 2019/20 | C172: Q3 | D172: 9293 | E172: OBAN | F172: J | G172: 0 | H172: 0 | I172: 0 | J172: 0 | K172: 0 | L172: 0 | M172: 0 | N172: 0 | O172: 0 | P172: 0 | Q172: 19 | R172: 19 | S172: 7 | T172: 3 | U172: 5 | V172: 3 | W172: 0 | X172: 4 | Y172: 18
A173: =VLOOKUP(D173,'Sheriffdom Look up'!$A$1:$E$102,5,FALSE) -> Glasgow & Strathkelvin | B173: 2019/20 | C173: Q3 | D173: 9295 | E173: GLASGOW | F173: J | G173: 0 | H173: 0 | I173: 0 | J173: 0 | K173: 0 | L173: 0 | M173: 0 | N173: 0 | O173: 0 | P173: 0 | Q173: 1126 | R173: 1192 | S173: 468 | T173: 732 | U173: 760 | V173: 89 | W173: 8 | X173: 748 | Y173: 1281
A174: =VLOOKUP(D174,'Sheriffdom Look up'!$A$1:$E$102,5,FALSE) -> North Strathclyde | B174: 2019/20 | C174: Q3 | D174: 9340 | E174: GREENOCK | F174: J | G174: 0 | H174: 0 | I174: 0 | J174: 0 | K174: 0 | L174: 0 | M174: 0 | N174: 0 | O174: 0 | P174: 0 | Q174: 74 | R174: 67 | S174: 54 | T174: 69 | U174: 56 | V174: 7 | W174: 3 | X174: 65 | Y174: 67
A175: =VLOOKUP(D175,'Sheriffdom Look up'!$A$1:$E$102,5,FALSE) -> Grampian, Highland & Islands | B175: 2019/20 | C175: Q3 | D175: 9341 | E175: ELGIN | F175: J | G175: 0 | H175: 0 | I175: 0 | J175: 0 | K175: 0 | L175: 0 | M175: 0 | N175: 0 | O175: 0 | P175: 0 | Q175: 82 | R175: 75 | S175: 54 | T175: 66 | U175: 35 | V175: 8 | W175: 1 | X175: 61 | Y175: 82
A176: =VLOOKUP(D176,'Sheriffdom Look up'!$A$1:$E$102,5,FALSE) -> North Strathclyde | B176: 2019/20 | C176: Q3 | D176: 9342 | E176: PAISLEY | F176: J | G176: 0 | H176: 0 | I176: 0 | J176: 0 | K176: 0 | L176: 0 | M176: 0 | N176: 0 | O176: 0 | P176: 0 | Q176: 278 | R176: 282 | S176: 204 | T176: 258 | U176: 143 | V176: 27 | W176: 12 | X176: 167 | Y176: 269
A177: =VLOOKUP(D177,'Sheriffdom Look up'!$A$1:$E$102,5,FALSE) -> Grampian, Highland & Islands | B177: 2019/20 | C177: Q3 | D177: 9345 | E177: FORT WILLIAM | F177: J | G177: 0 | H177: 0 | I177: 0 | J177: 0 | K177: 0 | L177: 0 | M177: 0 | N177: 0 | O177: 0 | P177: 0 | Q177: 50 | R177: 69 | S177: 37 | T177: 20 | U177: 11 | V177: 2 | W177: 0 | X177: 12 | Y177: 76
A178: =VLOOKUP(D178,'Sheriffdom Look up'!$A$1:$E$102,5,FALSE) -> Grampian, Highland & Islands | B178: 2019/20 | C178: Q3 | D178: 9346 | E178: INVERNESS | F178: J | G178: 0 | H178: 0 | I178: 0 | J178: 0 | K178: 0 | L178: 0 | M178: 0 | N178: 0 | O178: 0 | P178: 0 | Q178: 252 | R178: 262 | S178: 206 | T178: 168 | U178: 64 | V178: 11 | W178: 1 | X178: 110 | Y178: 273
A179: =VLOOKUP(D179,'Sheriffdom Look up'!$A$1:$E$102,5,FALSE) -> Grampian, Highland & Islands | B179: 2019/20 | C179: Q3 | D179: 9348 | E179: TAIN | F179: J | G179: 0 | H179: 0 | I179: 0 | J179: 0 | K179: 0 | L179: 0 | M179: 0 | N179: 0 | O179: 0 | P179: 0 | Q179: 32 | R179: 49 | S179: 30 | T179: 40 | U179: 14 | V179: 1 | W179: 0 | X179: 35 | Y179: 58
A180: =VLOOKUP(D180,'Sheriffdom Look up'!$A$1:$E$102,5,FALSE) -> Lothian & Borders | B180: 2019/20 | C180: Q3 | D180: 9351 | E180: JEDBURGH | F180: J | G180: 0 | H180: 0 | I180: 0 | J180: 0 | K180: 0 | L180: 0 | M180: 0 | N180: 0 | O180: 0 | P180: 0 | Q180: 33 | R180: 43 | S180: 12 | T180: 7 | U180: 5 | V180: 1 | W180: 0 | X180: 5 | Y180: 42
A181: =VLOOKUP(D181,'Sheriffdom Look up'!$A$1:$E$102,5,FALSE) -> Lothian & Borders | B181: 2019/20 | C181: Q3 | D181: 9353 | E181: SELKIRK | F181: J | G181: 0 | H181: 0 | I181: 0 | J181: 0 | K181: 0 | L181: 0 | M181: 0 | N181: 0 | O181: 0 | P181: 0 | Q181: 74 | R181: 116 | S181: 35 | T181: 15 | U181: 7 | V181: 1 | W181: 0 | X181: 13 | Y181: 117
A182: =VLOOKUP(D182,'Sheriffdom Look up'!$A$1:$E$102,5,FALSE) -> South Strathclyde, Dumfries & Galloway | B182: 2019/20 | C182: Q3 | D182: 9355 | E182: AIRDRIE | F182: J | G182: 0 | H182: 0 | I182: 0 | J182: 0 | K182: 0 | L182: 0 | M182: 0 | N182: 0 | O182: 0 | P182: 0 | Q182: 210 | R182: 209 | S182: 155 | T182: 167 | U182: 85 | V182: 20 | W182: 0 | X182: 106 | Y182: 203
A183: =VLOOKUP(D183,'Sheriffdom Look up'!$A$1:$E$102,5,FALSE) -> Tayside, Central & Fife | B183: 2019/20 | C183: Q3 | D183: 9358 | E183: PERTH | F183: J | G183: 0 | H183: 0 | I183: 0 | J183: 0 | K183: 0 | L183: 0 | M183: 0 | N183: 0 | O183: 0 | P183: 0 | Q183: 494 | R183: 476 | S183: 226 | T183: 120 | U183: 63 | V183: 17 | W183: 2 | X183: 113 | Y183: 499
A184: =VLOOKUP(D184,'Sheriffdom Look up'!$A$1:$E$102,5,FALSE) -> South Strathclyde, Dumfries & Galloway | B184: 2019/20 | C184: Q3 | D184: 9360 | E184: AYR | F184: J | G184: 0 | H184: 0 | I184: 0 | J184: 0 | K184: 0 | L184: 0 | M184: 0 | N184: 0 | O184: 0 | P184: 0 | Q184: 167 | R184: 186 | S184: 116 | T184: 118 | U184: 36 | V184: 7 | W184: 1 | X184: 60 | Y184: 169
A185: =VLOOKUP(D185,'Sheriffdom Look up'!$A$1:$E$102,5,FALSE) -> South Strathclyde, Dumfries & Galloway | B185: 2019/20 | C185: Q3 | D185: 9366 | E185: HAMILTON | F185: J | G185: 0 | H185: 0 | I185: 0 | J185: 0 | K185: 0 | L185: 0 | M185: 0 | N185: 0 | O185: 0 | P185: 0 | Q185: 381 | R185: 331 | S185: 163 | T185: 432 | U185: 227 | V185: 36 | W185: 17 | X185: 196 | Y185: 337
A186: =VLOOKUP(D186,'Sheriffdom Look up'!$A$1:$E$102,5,FALSE) -> South Strathclyde, Dumfries & Galloway | B186: 2019/20 | C186: Q3 | D186: 9367 | E186: LANARK | F186: J | G186: 0 | H186: 0 | I186: 0 | J186: 0 | K186: 0 | L186: 0 | M186: 0 | N186: 0 | O186: 0 | P186: 0 | Q186: 78 | R186: 92 | S186: 58 | T186: 65 | U186: 29 | V186: 8 | W186: 0 | X186: 25 | Y186: 102
A187: =VLOOKUP(D187,'Sheriffdom Look up'!$A$1:$E$102,5,FALSE) -> Tayside, Central & Fife | B187: 2019/20 | C187: Q3 | D187: 9372 | E187: STIRLING | F187: J | G187: 0 | H187: 0 | I187: 0 | J187: 0 | K187: 0 | L187: 0 | M187: 0 | N187: 0 | O187: 0 | P187: 0 | Q187: 102 | R187: 101 | S187: 85 | T187: 55 | U187: 30 | V187: 2 | W187: 3 | X187: 52 | Y187: 87
A188: =VLOOKUP(D188,'Sheriffdom Look up'!$A$1:$E$102,5,FALSE) -> North Strathclyde | B188: 2019/20 | C188: Q3 | D188: 9376 | E188: DUMBARTON | F188: J | G188: 0 | H188: 0 | I188: 0 | J188: 0 | K188: 0 | L188: 0 | M188: 0 | N188: 0 | O188: 0 | P188: 0 | Q188: 153 | R188: 210 | S188: 151 | T188: 120 | U188: 53 | V188: 8 | W188: 0 | X188: 90 | Y188: 171
A189: =VLOOKUP(D189,'Sheriffdom Look up'!$A$1:$E$102,5,FALSE) -> Lothian & Borders | B189: 2019/20 | C189: Q3 | D189: 9380 | E189: LIVINGSTON | F189: J | G189: 0 | H189: 0 | I189: 0 | J189: 0 | K189: 0 | L189: 0 | M189: 0 | N189: 0 | O189: 0 | P189: 0 | Q189: 189 | R189: 215 | S189: 182 | T189: 106 | U189: 34 | V189: 5 | W189: 0 | X189: 46 | Y189: 193
A190: =VLOOKUP(D190,'Sheriffdom Look up'!$A$1:$E$102,5,FALSE) -> Grampian, Highland & Islands | B190: 2019/20 | C190: Q3 | D190: 9701 | E190: ABERDEEN | F190: S | G190: 198 | H190: 108 | I190: 86 | J190: 56 | K190: 36 | L190: 61 | M190: 26 | N190: 4 | O190: 55 | P190: 104 | Q190: 1065 | R190: 978 | S190: 247 | T190: 1359 | U190: 577 | V190: 166 | W190: 44 | X190: 1067 | Y190: 949
A191: =VLOOKUP(D191,'Sheriffdom Look up'!$A$1:$E$102,5,FALSE) -> South Strathclyde, Dumfries & Galloway | B191: 2019/20 | C191: Q3 | D191: 9702 | E191: AIRDRIE | F191: S | G191: 77 | H191: 33 | I191: 42 | J191: 36 | K191: 5 | L191: 36 | M191: 8 | N191: 0 | O191: 18 | P191: 51 | Q191: 612 | R191: 614 | S191: 138 | T191: 773 | U191: 426 | V191: 66 | W191: 10 | X191: 470 | Y191: 508
A192: =VLOOKUP(D192,'Sheriffdom Look up'!$A$1:$E$102,5,FALSE) -> Tayside, Central & Fife | B192: 2019/20 | C192: Q3 | D192: 9703 | E192: ALLOA | F192: S | G192: 29 | H192: 0 | I192: 0 | J192: 0 | K192: 0 | L192: 0 | M192: 0 | N192: 0 | O192: 0 | P192: 1 | Q192: 202 | R192: 187 | S192: 38 | T192: 232 | U192: 115 | V192: 18 | W192: 8 | X192: 195 | Y192: 159
A193: =VLOOKUP(D193,'Sheriffdom Look up'!$A$1:$E$102,5,FALSE) -> South Strathclyde, Dumfries & Galloway | B193: 2019/20 | C193: Q3 | D193: 9704 | E193: AYR | F193: S | G193: 65 | H193: 37 | I193: 45 | J193: 26 | K193: 5 | L193: 17 | M193: 3 | N193: 0 | O193: 14 | P193: 36 | Q193: 584 | R193: 567 | S193: 117 | T193: 563 | U193: 240 | V193: 58 | W193: 0 | X193: 355 | Y193: 497
A194: =VLOOKUP(D194,'Sheriffdom Look up'!$A$1:$E$102,5,FALSE) -> Grampian, Highland & Islands | B194: 2019/20 | C194: Q3 | D194: 9711 | E194: BANFF | F194: S | G194: 2 | H194: 0 | I194: 0 | J194: 0 | K194: 0 | L194: 0 | M194: 0 | N194: 0 | O194: 0 | P194: 0 | Q194: 46 | R194: 43 | S194: 10 | T194: 70 | U194: 43 | V194: 11 | W194: 7 | X194: 62 | Y194: 37
A195: =VLOOKUP(D195,'Sheriffdom Look up'!$A$1:$E$102,5,FALSE) -> North Strathclyde | B195: 2019/20 | C195: Q3 | D195: 9716 | E195: CAMPBELTOWN | F195: S | G195: 1 | H195: 1 | I195: 1 | J195: 1 | K195: 0 | L195: 1 | M195: 1 | N195: 0 | O195: 0 | P195: 2 | Q195: 31 | R195: 29 | S195: 9 | T195: 26 | U195: 26 | V195: 8 | W195: 2 | X195: 24 | Y195: 35
A196: =VLOOKUP(D196,'Sheriffdom Look up'!$A$1:$E$102,5,FALSE) -> North Strathclyde | B196: 2019/20 | C196: Q3 | D196: 9723 | E196: DUMBARTON | F196: S | G196: 47 | H196: 43 | I196: 30 | J196: 18 | K196: 9 | L196: 10 | M196: 6 | N196: 0 | O196: 6 | P196: 33 | Q196: 411 | R196: 403 | S196: 118 | T196: 425 | U196: 260 | V196: 45 | W196: 10 | X196: 385 | Y196: 340
A197: =VLOOKUP(D197,'Sheriffdom Look up'!$A$1:$E$102,5,FALSE) -> South Strathclyde, Dumfries & Galloway | B197: 2019/20 | C197: Q3 | D197: 9724 | E197: DUMFRIES | F197: S | G197: 35 | H197: 26 | I197: 27 | J197: 9 | K197: 9 | L197: 10 | M197: 4 | N197: 0 | O197: 7 | P197: 26 | Q197: 362 | R197: 358 | S197: 78 | T197: 286 | U197: 169 | V197: 53 | W197: 0 | X197: 254 | Y197: 350
A198: =VLOOKUP(D198,'Sheriffdom Look up'!$A$1:$E$102,5,FALSE) -> Tayside, Central & Fife | B198: 2019/20 | C198: Q3 | D198: 9726 | E198: DUNDEE | F198: S | G198: 129 | H198: 75 | I198: 63 | J198: 40 | K198: 19 | L198: 49 | M198: 15 | N198: 0 | O198: 21 | P198: 72 | Q198: 745 | R198: 690 | S198: 164 | T198: 615 | U198: 370 | V198: 59 | W198: 5 | X198: 696 | Y198: 573
A199: =VLOOKUP(D199,'Sheriffdom Look up'!$A$1:$E$102,5,FALSE) -> Tayside, Central & Fife | B199: 2019/20 | C199: Q3 | D199: 9727 | E199: DUNFERMLINE | F199: S | G199: 70 | H199: 48 | I199: 33 | J199: 11 | K199: 8 | L199: 12 | M199: 5 | N199: 1 | O199: 18 | P199: 32 | Q199: 331 | R199: 308 | S199: 66 | T199: 411 | U199: 135 | V199: 23 | W199: 6 | X199: 282 | Y199: 305
A200: =VLOOKUP(D200,'Sheriffdom Look up'!$A$1:$E$102,5,FALSE) -> North Strathclyde | B200: 2019/20 | C200: Q3 | D200: 9728 | E200: DUNOON | F200: S | G200: 2 | H200: 1 | I200: 1 | J200: 4 | K200: 0 | L200: 0 | M200: 0 | N200: 0 | O200: 1 | P200: 2 | Q200: 61 | R200: 61 | S200: 22 | T200: 79 | U200: 58 | V200: 16 | W200: 0 | X200: 59 | Y200: 73
... 178 more rows

Sheet FY lookup (hidden)
A1: 2013-04-01 | B1: 2014-03-01 | C1: 2013/14 | F1: 4 | G1: Q1 | I1: This data is only for The Scottish Courts and Tribunals Service Internal use. Please go to the index tab and navigate as required.
A2: 2014-04-01 | B2: 2015-03-01 | C2: 2014/15 | F2: 5 | G2: Q1
A3: 2015-04-01 | B3: 2016-03-01 | C3: 2015/16 | F3: 6 | G3: Q1
A4: 2016-04-01 | B4: 2017-03-01 | C4: 2016/17 | F4: 7 | G4: Q2
A5: 2017-04-01 | B5: 2018-03-01 | C5: 2017/18 | F5: 8 | G5: Q2
F6: 9 | G6: Q2
F7: 10 | G7: Q3
F8: 11 | G8: Q3
F9: 12 | G9: Q3
F10: 1 | G10: Q4
F11: 2 | G11: Q4
F12: 3 | G12: Q4

Sheet Sheriff Court lookup (hidden)
B1: Court Name | C1: Court Code | G1: Court Name | H1: Court Code
B2: National | C2: 0 | D2: This data is only for The Scottish Courts and Tribunals Service Internal use. Please go to the index tab and navigate as required. | G2: National | H2: 1
B3: Glasgow & Strathkelvin | G3: Glasgow & Strathkelvin
B4: Grampian, Highland & Islands | G4: Grampian, Highland & Islands
B5: Lothian & Borders | G5: Lothian & Borders
B6: North Strathclyde | G6: North Strathclyde
B7: South Strathclyde, Dumfries & Galloway | G7: South Strathclyde, Dumfries & Galloway
B8: Tayside, Central & Fife | G8: Tayside, Central & Fife
B9: Aberdeen | C9: 9701 | G9: Aberdeen | H9: 9251
B10: Airdrie | C10: 9702 | G10: Airdrie | H10: 9355
B11: Alloa | C11: 9703 | G11: Alloa | H11: 9240
B12: Ayr | C12: 9704 | G12: Annan | H12: 9245
B13: Arbroath | C13: 9705 | G13: Arbroath | H13: 9263
B14: Banff | C14: 9711 | G14: Ayr | H14: 9360
B15: Campbeltown | C15: 9716 | G15: Banff | H15: 9252
B16: Cupar | C16: 9717 | G16: Campbeltown | H16: 9289
B17: Dingwall | C17: 9721 | G17: Cumbernauld | H17: 9356
B18: Dornoch | C18: 9722 | G18: Cupar | H18: 9285
B19: Dumbarton | C19: 9723 | G19: Dingwall | H19: 9343
B20: Dumfries | C20: 9724 | G20: Dornoch | H20: 9344
B21: Dundee | C21: 9726 | G21: Dumbarton | H21: 9376
B22: Dunfermline | C22: 9727 | G22: Dumfries | H22: 9246
B23: Dunoon | C23: 9728 | G23: Dundee | H23: 9256
B24: Duns | C24: 9729 | G24: Dunfermline | H24: 9286
B25: Edinburgh | C25: 9741 | G25: Dunoon | H25: 9290
B26: Elgin | C26: 9742 | G26: Duns | H26: 9350
B27: Falkirk | C27: 9751 | G27: Edinburgh | H27: 9278
B28: Forfar | C28: 9752 | G28: Elgin | H28: 9341
B29: Fort William | C29: 9753 | G29: Falkirk | H29: 9282
B30: Glasgow | C30: 9761 | G30: Forfar | H30: 9264
B31: Greenock | C31: 9762 | G31: Fort William | H31: 9345
B32: Haddington | C32: 9771 | G32: Glasgow | H32: 9295
B33: Hamilton | C33: 9772 | G33: Greenock | H33: 9340
B34: Inverness | C34: 9781 | G34: Haddington | H34: 9270
B35: Jedburgh | C35: 9791 | G35: Hamilton | H35: 9366
B36: Kilmarnock | C36: 9801 | G36: Inverness | H36: 9346
B37: Kirkcaldy | C37: 9803 | G37: Irvine | H37: 9354
B38: Kirkcudbright | C38: 9804 | G38: Jedburgh | H38: 9351
B39: Kirkwall | C39: 9805 | G39: Kilmarnock | H39: 9261
B40: Lanark | C40: 9811 | G40: Kirkcaldy | H40: 9287
B41: Lerwick | C41: 9812 | G41: Kirkcudbright | H41: 9247
B42: Linlithgow | C42: 9813 | G42: Lanark | H42: 9367
B43: Lochmaddy | C43: 9814 | G43: Livingston | H43: 9380
B44: Livingston | C44: 9815 | G44: Lochgilphead | H44: 9292
B45: Oban | C45: 9841 | G45: Motherwell | H45: 9357
B46: Paisley | C46: 9851 | G46: Oban | H46: 9293
B47: Peebles | C47: 9852 | G47: Paisley | H47: 9342
B48: Perth | C48: 9853 | G48: Peebles | H48: 9352
B49: Peterhead | C49: 9854 | G49: Perth | H49: 9358
B50: Portree | C50: 9855 | G50: Peterhead | H50: 9253
B51: Rothesay | C51: 9861 | G51: Portree | H51: 9347
B52: Selkirk | C52: 9871 | G52: Selkirk | H52: 9353
B53: Stirling | C53: 9872 | G53: Stirling | H53: 9372
B54: Stonehaven | C54: 9873 | G54: Stonehaven | H54: 9254
B55: Stornoway | C55: 9874 | G55: Stornoway | H55: 9384
B56: Stranraer | C56: 9875 | G56: Stranraer | H56: 9250
B57: Tain | C57: 9881 | G57: Tain | H57: 9348
B58: Wick | C58: 9891 | G58: Wick | H58: 9349

Sheet Internal analytics (hidden)
H1: Back to Index
AH2: Pandemic | AJ2: Pre-Pandemic
B3: Monitoring criminal business trends during the Coronavirus pandemic | F3: 2020-04-01 | G3: 2020-05-01 | H3: 2020-06-01 | I3: 2020-07-01 | J3: 2020-08-01 | K3: 2020-09-01 | L3: 2020-10-01 | M3: 2020-11-01 | N3: 2020-12-01 | O3: 2021-01-01 | P3: 2021-02-01 | Q3: 2021-03-01 | R3: 2021-04-01 | S3: 2021-05-01 | T3: 2021-06-01 | U3: 2021-07-01 | V3: 2021-08-01 | W3: 2021-09-01 | X3: 2021-10-01 | Y3: 2021-11-01 | Z3: 2021-12-01 | AA3: 2022-01-01 | AB3: 2022-02-01 | AC3: 2022-03-01 | AD3: 2022-04-01 | AE3: 2022/23 | AF3: 2022/23 monthly average | AH3: 2020/22 monthly average | AJ3: 2019/20 monthly average
B4: High Court | C4: Indictments Registered | D4: =SUMIFS(#REF!,#REF!,#REF!,#REF!,"NATIONAL") ->  | F4: =IF('1a'!D17=0,"",'1a'!D17) -> 77 | G4: =IF('1a'!E17=0,"",'1a'!E17) -> 85 | H4: =IF('1a'!F17=0,"",'1a'!F17) -> 69 | I4: =IF('1a'!G17=0,"",'1a'!G17) -> 63 | J4: =IF('1a'!H17=0,"",'1a'!H17) -> 46 | K4: =IF('1a'!I17=0,"",'1a'!I17) -> 68 | L4: =IF('1a'!J17=0,"",'1a'!J17) -> 60 | M4: =IF('1a'!K17=0,"",'1a'!K17) -> 32 | N4: =IF('1a'!L17=0,"",'1a'!L17) -> 48 | O4: =IF('1a'!M17=0,"",'1a'!M17) -> 65 | P4: =IF('1a'!N17=0,"",'1a'!N17) -> 64 | Q4: =IF('1a'!O17=0,"",'1a'!O17) -> 90 | R4: =IF('1a'!P17=0,"",'1a'!P17) -> 55 | S4: =IF('1a'!Q17=0,"",'1a'!Q17) -> 43 | T4: =IF('1a'!R17=0,"",'1a'!R17) -> 57 | U4: =IF('1a'!S17=0,"",'1a'!S17) -> 66 | V4: =IF('1a'!T17=0,"",'1a'!T17) -> 37 | W4: =IF('1a'!U17=0,"",'1a'!U17) -> 57 | X4: =IF('1a'!V17=0,"",'1a'!V17) -> 69 | Y4: =IF('1a'!W17=0,"",'1a'!W17) -> 54 | Z4: =IF('1a'!X17=0,"",'1a'!X17) -> 69 | AA4: =IF('1a'!Y17=0,"",'1a'!Y17) -> 68 | AB4: =IF('1a'!Z17=0,"",'1a'!Z17) -> 90 | AC4: =IF('1a'!AA17=0,"",'1a'!AA17) -> 80 | AD4: =IF('1a'!AB17=0,"",'1a'!AB17) -> 77 | AE4: =IF('1a'!AC17=0,"",'1a'!AC17) -> 77 | AF4: =AE4/CONTROL!I5 -> 77 | AH4: =SUM(F4:AD4)/CONTROL!I3 -> 63.56 | AJ4: ='1a'!AF17 -> 85.33333333
C5: Trials Called (TC) | D5: =SUMIFS(#REF!,#REF!,#REF!,#REF!,"NATIONAL") ->  | F5: ='1a'!D21 -> 0 | G5: ='1a'!E21 -> 0 | H5: ='1a'!F21 -> 0 | I5: ='1a'!G21 -> 4 | J5: ='1a'!H21 -> 14 | K5: ='1a'!I21 -> 26 | L5: ='1a'!J21 -> 42 | M5: =IF('1a'!K21=0,"",'1a'!K21) -> 58 | N5: =IF('1a'!L21=0,"",'1a'!L21) -> 47 | O5: =IF('1a'!M21=0,"",'1a'!M21) -> 56 | P5: =IF('1a'!N21=0,"",'1a'!N21) -> 67 | Q5: =IF('1a'!O21=0,"",'1a'!O21) -> 66 | R5: =IF('1a'!P21=0,"",'1a'!P21) -> 46 | S5: =IF('1a'!Q21=0,"",'1a'!Q21) -> 60 | T5: =IF('1a'!R21=0,"",'1a'!R21) -> 67 | U5: =IF('1a'!S21=0,"",'1a'!S21) -> 58 | V5: =IF('1a'!T21=0,"",'1a'!T21) -> 74 | W5: =IF('1a'!U21=0,"",'1a'!U21) -> 64 | X5: =IF('1a'!V21=0,"",'1a'!V21) -> 65 | Y5: =IF('1a'!W21=0,"",'1a'!W21) -> 81 | Z5: =IF('1a'!X21=0,"",'1a'!X21) -> 38 | AA5: =IF('1a'!Y21=0,"",'1a'!Y21) -> 62 | AB5: =IF('1a'!Z21=0,"",'1a'!Z21) -> 64 | AC5: =IF('1a'!AA21=0,"",'1a'!AA21) -> 73 | AD5: =IF('1a'!AB21=0,"",'1a'!AB21) -> 73 | AE5: =IF('1a'!AC21=0,"",'1a'!AC21) -> 73 | AF5: =AE5/CONTROL!I5 -> 73 | AH5: =SUM(F5:AD5)/CONTROL!I3 -> 48.2 | AJ5: ='1a'!AF21 -> 67.66666667
C6: Evidence Led Trials (ELT) | D6: =SUMIFS(#REF!,#REF!,#REF!,#REF!,"NATIONAL") ->  | F6: ='1a'!D22 -> 0 | G6: ='1a'!E22 -> 0 | H6: ='1a'!F22 -> 0 | I6: ='1a'!G22 -> 4 | J6: ='1a'!H22 -> 14 | K6: ='1a'!I22 -> 18 | L6: ='1a'!J22 -> 28 | M6: =IF('1a'!K22=0,"",'1a'!K22) -> 49 | N6: =IF('1a'!L22=0,"",'1a'!L22) -> 29 | O6: =IF('1a'!M22=0,"",'1a'!M22) -> 43 | P6: =IF('1a'!N22=0,"",'1a'!N22) -> 42 | Q6: =IF('1a'!O22=0,"",'1a'!O22) -> 51 | R6: =IF('1a'!P22=0,"",'1a'!P22) -> 34 | S6: =IF('1a'!Q22=0,"",'1a'!Q22) -> 43 | T6: =IF('1a'!R22=0,"",'1a'!R22) -> 47 | U6: =IF('1a'!S22=0,"",'1a'!S22) -> 48 | V6: =IF('1a'!T22=0,"",'1a'!T22) -> 55 | W6: =IF('1a'!U22=0,"",'1a'!U22) -> 47 | X6: =IF('1a'!V22=0,"",'1a'!V22) -> 54 | Y6: =IF('1a'!W22=0,"",'1a'!W22) -> 63 | Z6: =IF('1a'!X22=0,"",'1a'!X22) -> 30 | AA6: =IF('1a'!Y22=0,"",'1a'!Y22) -> 47 | AB6: =IF('1a'!Z22=0,"",'1a'!Z22) -> 54 | AC6: =IF('1a'!AA22=0,"",'1a'!AA22) -> 55 | AD6: =IF('1a'!AB22=0,"",'1a'!AB22) -> 50 | AE6: =IF('1a'!AC22=0,"",'1a'!AC22) -> 50 | AF6: =AE6/CONTROL!I5 -> 50 | AH6: =SUM(F6:AD6)/CONTROL!I3 -> 36.2 | AJ6: ='1a'!AF22 -> 41.5
C7: Conversion rate TC to ELT | F7: =IFERROR(F6/F5,"n/a") -> n/a | G7: =IFERROR(G6/G5,"n/a") -> n/a | H7: =IFERROR(H6/H5,"n/a") -> n/a | I7: =IFERROR(I6/I5,"") -> 1 | J7: 1 | K7: 0.6923076923 | L7: 0.6666666667 | M7: 0.8448275862 | N7: 0.6170212766 | O7: =IFERROR(O6/O5,"") -> 0.7678571429 | P7: 0.6268656716 | Q7: 0.7727272727 | R7: 0.7391304348 | S7: =IFERROR(S6/S5,"") -> 0.7166666667 | T7: =IFERROR(T6/T5,"") -> 0.7014925373 | U7: =IFERROR(U6/U5,"") -> 0.8275862069 | V7: 0.7432432432 | W7: =IFERROR(W6/W5,"") -> 0.734375 | X7: 0.8307692308 | Y7: =IFERROR(Y6/Y5,"") -> 0.7777777778 | Z7: 0.7894736842 | AA7: =IFERROR(AA6/AA5,"") -> 0.7580645161 | AB7: 0.84375 | AC7: =IFERROR(AC6/AC5,"") -> 0.7534246575 | AD7: 0.6849315068 | AE7: =IFERROR(AE6/AE5,"") -> 0.6849315068 | AF7: =IFERROR(AF6/AF5,"") -> 0.6849315068 | AH7: =IFERROR(AH6/AH5,"") -> 0.7510373444 | AJ7: =AJ6/AJ5 -> 0.6133004926
C8: All cases concluded | D8: =SUMIFS(#REF!,#REF!,"NATIONAL",#REF!,#REF!) ->  | F8: ='1a'!D25 -> 7 | G8: ='1a'!E25 -> 9 | H8: ='1a'!F25 -> 14 | I8: ='1a'!G25 -> 32 | J8: ='1a'!H25 -> 35 | K8: 20 | L8: =IF('1a'!J25=0,"",'1a'!J25) -> 39 | M8: =IF('1a'!K25=0,"",'1a'!K25) -> 54 | N8: =IF('1a'!L25=0,"",'1a'!L25) -> 54 | O8: =IF('1a'!M25=0,"",'1a'!M25) -> 55 | P8: =IF('1a'!N25=0,"",'1a'!N25) -> 72 | Q8: =IF('1a'!O25=0,"",'1a'!O25) -> 64 | R8: =IF('1a'!P25=0,"",'1a'!P25) -> 53 | S8: =IF('1a'!Q25=0,"",'1a'!Q25) -> 58 | T8: =IF('1a'!R25=0,"",'1a'!R25) -> 62 | U8: =IF('1a'!S25=0,"",'1a'!S25) -> 58 | V8: =IF('1a'!T25=0,"",'1a'!T25) -> 76 | W8: =IF('1a'!U25=0,"",'1a'!U25) -> 62 | X8: =IF('1a'!V25=0,"",'1a'!V25) -> 70 | Y8: =IF('1a'!W25=0,"",'1a'!W25) -> 82 | Z8: =IF('1a'!X25=0,"",'1a'!X25) -> 56 | AA8: =IF('1a'!Y25=0,"",'1a'!Y25) -> 45 | AB8: =IF('1a'!Z25=0,"",'1a'!Z25) -> 57 | AC8: =IF('1a'!AA25=0,"",'1a'!AA25) -> 77 | AD8: =IF('1a'!AB25=0,"",'1a'!AB25) -> 66 | AE8: =IF('1a'!AC25=0,"",'1a'!AC25) -> 66 | AF8: =AE8/CONTROL!I5 -> 66 | AH8: =SUM(F8:AD8)/CONTROL!I3 -> 51.08 | AJ8: ='1a'!AF25 -> 67.16666667
C9: Trial Indictments concluded | F9: 0 | G9: 0 | H9: 0 | I9: 4 | J9: 11 | K9: 15 | L9: 25 | M9: 44 | N9: 41 | O9: 35 | P9: 47 | Q9: 44 | R9: 36 | S9: 30 | T9: 47 | U9: 50 | V9: 53 | W9: 47 | X9: 57 | Y9: 53 | Z9: 46 | AA9: 34 | AB9: 50 | AC9: 64 | AD9: 48 | AE9: =AD9 -> 48 | AF9: =AE9/CONTROL!I5 -> 48 | AH9: =SUM(F9:AD9)/CONTROL!I3 -> 35.24 | AJ9: =505/12 -> 42.08333333
C10: Ratio of Registered to Concluded | D10: =SUMIFS(#REF!,#REF!,#REF!,#REF!,"NATIONAL",#REF!,"3") ->  | F10: =IFERROR(F8/F4,"") -> 0.09090909091 | G10: 0.1058823529 | H10: 0.2028985507 | I10: 0.5079365079 | J10: 0.7608695652 | K10: 0.2941176471 | L10: 0.65 | M10: 1.6875 | N10: 1.125 | O10: =IFERROR(O8/O4,"") -> 0.8461538462 | P10: 1.125 | Q10: 0.7111111111 | R10: 0.9636363636 | S10: 1.348837209 | T10: =IFERROR(T8/T4,"") -> 1.087719298 | U10: 0.8787878788 | V10: 2.054054054 | W10: 1.087719298 | X10: 1.014492754 | Y10: =IFERROR(Y8/Y4,"") -> 1.518518519 | Z10: 0.8115942029 | AA10: =IFERROR(AA8/AA4,"") -> 0.6617647059 | AB10: 0.6333333333 | AC10: =IFERROR(AC8/AC4,"") -> 0.9625 | AD10: 0.8571428571 | AE10: =IFERROR(AE8/AE4,"") -> 0.8571428571 | AF10: =AE10 -> 0.8571428571 | AH10: =SUM(F10:AD10)/CONTROL!$I$3 -> 0.8794991658 | AJ10: =IFERROR(AJ8/AJ4,"") -> 0.787109375
C11: Ratio of Trials concluded to All concluded | F11: =IFERROR(F9/F8,"") -> 0 | G11: =IFERROR(G9/G8,"") -> 0 | H11: =IFERROR(H9/H8,"") -> 0 | I11: 0.125 | J11: 0.3142857143 | K11: 0.75 | L11: =IFERROR(L9/L8,"") -> 0.641025641 | M11: =IFERROR(M9/M8,"") -> 0.8148148148 | N11: 0.7592592593 | O11: =IFERROR(O9/O8,"") -> 0.6363636364 | P11: 0.6527777778 | Q11: 0.6875 | R11: 0.679245283 | S11: 0.5172413793 | T11: =IFERROR(T9/T8,"") -> 0.7580645161 | U11: 0.8620689655 | V11: 0.6973684211 | W11: 0.7580645161 | X11: 0.8142857143 | Y11: =IFERROR(Y9/Y8,"") -> 0.6463414634 | Z11: 0.8214285714 | AA11: =IFERROR(AA9/AA8,"") -> 0.7555555556 | AB11: 0.8771929825 | AC11: =IFERROR(AC9/AC8,"") -> 0.8311688312 | AD11: 0.7272727273 | AE11: =IFERROR(AE9/AE8,"") -> 0.7272727273 | AF11: =AE11 -> 0.7272727273 | AH11: =SUM(F11:AD11)/CONTROL!$I$3 -> 0.6050530308 | AJ11: =IFERROR(AJ9/AJ8,"") -> 0.6265508685
C12: Scheduled Trials as at the end of the period | F12: 390 | G12: 390 | H12: 390 | I12: 390 | J12: 390 | K12: 375 | L12: 318 | M12: ='1a'!K27 -> 291 | N12: ='1a'!L27 -> 250 | O12: ='1a'!M27 -> 215 | P12: ='1a'!N27 -> 247 | Q12: ='1a'!O27 -> 267 | R12: ='1a'!P27 -> 292 | S12: ='1a'!Q27 -> 304 | T12: ='1a'!R27 -> 313 | U12: ='1a'!S27 -> 325 | V12: ='1a'!T27 -> 432 | W12: ='1a'!U27 -> 389 | X12: ='1a'!V27 -> 444 | Y12: ='1a'!W27 -> 476 | Z12: ='1a'!X27 -> 516 | AA12: ='1a'!Y27 -> 534 | AB12: ='1a'!Z27 -> 535 | AC12: ='1a'!AA27 -> 560 | AD12: ='1a'!AB27 -> 609 | AE12: ='1a'!AC27 -> 609 | AF12: =AVERAGE(R12:AC12) -> 426.6666667 | AH12: =SUM(F12:AD12)/CONTROL!$I$3 -> 385.68 | AJ12: 390
B14: Sheriff Court - Solemn business | C14: Indictments Registered | D14: =SUMIFS(#REF!,#REF!,#REF!,#REF!,"NATIONAL") ->  | F14: =IF('1a'!D31=0,"",'1a'!D31) -> 219 | G14: =IF('1a'!E31=0,"",'1a'!E31) -> 319 | H14: =IF('1a'!F31=0,"",'1a'!F31) -> 355 | I14: =IF('1a'!G31=0,"",'1a'!G31) -> 467 | J14: =IF('1a'!H31=0,"",'1a'!H31) -> 496 | K14: =IF('1a'!I31=0,"",'1a'!I31) -> 494 | L14: =IF('1a'!J31=0,"",'1a'!J31) -> 492 | M14: =IF('1a'!K31=0,"",'1a'!K31) -> 414 | N14: =IF('1a'!L31=0,"",'1a'!L31) -> 428 | O14: =IF('1a'!M31=0,"",'1a'!M31) -> 379 | P14: =IF('1a'!N31=0,"",'1a'!N31) -> 378 | Q14: =IF('1a'!O31=0,"",'1a'!O31) -> 410 | R14: =IF('1a'!P31=0,"",'1a'!P31) -> 441 | S14: =IF('1a'!Q31=0,"",'1a'!Q31) -> 532 | T14: =IF('1a'!R31=0,"",'1a'!R31) -> 471 | U14: =IF('1a'!S31=0,"",'1a'!S31) -> 520 | V14: =IF('1a'!T31=0,"",'1a'!T31) -> 447 | W14: =IF('1a'!U31=0,"",'1a'!U31) -> 481 | X14: =IF('1a'!V31=0,"",'1a'!V31) -> 479 | Y14: =IF('1a'!W31=0,"",'1a'!W31) -> 541 | Z14: =IF('1a'!X31=0,"",'1a'!X31) -> 450 | AA14: =IF('1a'!Y31=0,"",'1a'!Y31) -> 425 | AB14: =IF('1a'!Z31=0,"",'1a'!Z31) -> 525 | AC14: =IF('1a'!AA31=0,"",'1a'!AA31) -> 447 | AD14: =IF('1a'!AB31=0,"",'1a'!AB31) -> 421 | AE14: =IF('1a'!AC31=0,"",'1a'!AC31) -> 421 | AF14: =AE14/CONTROL!I5 -> 421 | AH14: =SUM(F14:AD14)/CONTROL!I3 -> 441.24 | AJ14: ='1a'!AF31 -> 454.3333333
C15: Trials Called | D15: =SUMIFS(#REF!,#REF!,#REF!,#REF!,"NATIONAL") ->  | F15: =IF('1a'!D35=0,"",'1a'!D35) -> 91 | G15: =IF('1a'!E35=0,"",'1a'!E35) -> 33 | H15: =IF('1a'!F35=0,"",'1a'!F35) -> 31 | I15: =IF('1a'!G35=0,"",'1a'!G35) -> 37 | J15: =IF('1a'!H35=0,"",'1a'!H35) -> 146 | K15: =IF('1a'!I35=0,"",'1a'!I35) -> 119 | L15: =IF('1a'!J35=0,"",'1a'!J35) -> 73 | M15: =IF('1a'!K35=0,"",'1a'!K35) -> 147 | N15: =IF('1a'!L35=0,"",'1a'!L35) -> 78 | O15: =IF('1a'!M35=0,"",'1a'!M35) -> 161 | P15: =IF('1a'!N35=0,"",'1a'!N35) -> 285 | Q15: =IF('1a'!O35=0,"",'1a'!O35) -> 388 | R15: =IF('1a'!P35=0,"",'1a'!P35) -> 362 | S15: =IF('1a'!Q35=0,"",'1a'!Q35) -> 368 | T15: =IF('1a'!R35=0,"",'1a'!R35) -> 383 | U15: =IF('1a'!S35=0,"",'1a'!S35) -> 340 | V15: =IF('1a'!T35=0,"",'1a'!T35) -> 392 | W15: =IF('1a'!U35=0,"",'1a'!U35) -> 396 | X15: =IF('1a'!V35=0,"",'1a'!V35) -> 393 | Y15: =IF('1a'!W35=0,"",'1a'!W35) -> 273 | Z15: =IF('1a'!X35=0,"",'1a'!X35) -> 263 | AA15: =IF('1a'!Y35=0,"",'1a'!Y35) -> 368 | AB15: =IF('1a'!Z35=0,"",'1a'!Z35) -> 433 | AC15: =IF('1a'!AA35=0,"",'1a'!AA35) -> 488 | AD15: =IF('1a'!AB35=0,"",'1a'!AB35) -> 425 | AE15: =IF('1a'!AC35=0,"",'1a'!AC35) -> 425 | AF15: =AE15/CONTROL!I5 -> 425 | AH15: =SUM(F15:AD15)/CONTROL!I3 -> 258.92 | AJ15: ='1a'!AF35 -> 261.8333333
C16: Evidence Led Trials | D16: =SUMIFS(#REF!,#REF!,#REF!,#REF!,"NATIONAL") ->  | F16: =('1a'!D36) -> 0 | G16: =('1a'!E36) -> 0 | H16: =('1a'!F36) -> 0 | I16: =('1a'!G36) -> 0 | J16: =('1a'!H36) -> 0 | K16: =('1a'!I36) -> 0 | L16: =('1a'!J36) -> 0 | M16: =('1a'!K36) -> 0 | N16: =IF('1a'!L36=0,"",'1a'!L36) -> 11 | O16: =IF('1a'!M36=0,"",'1a'!M36) -> 30 | P16: =IF('1a'!N36=0,"",'1a'!N36) -> 56 | Q16: =IF('1a'!O36=0,"",'1a'!O36) -> 100 | R16: =IF('1a'!P36=0,"",'1a'!P36) -> 84 | S16: =IF('1a'!Q36=0,"",'1a'!Q36) -> 82 | T16: =IF('1a'!R36=0,"",'1a'!R36) -> 88 | U16: =IF('1a'!S36=0,"",'1a'!S36) -> 76 | V16: =IF('1a'!T36=0,"",'1a'!T36) -> 83 | W16: =IF('1a'!U36=0,"",'1a'!U36) -> 95 | X16: =IF('1a'!V36=0,"",'1a'!V36) -> 70 | Y16: =IF('1a'!W36=0,"",'1a'!W36) -> 48 | Z16: =IF('1a'!X36=0,"",'1a'!X36) -> 52 | AA16: =IF('1a'!Y36=0,"",'1a'!Y36) -> 56 | AB16: =IF('1a'!Z36=0,"",'1a'!Z36) -> 78 | AC16: =IF('1a'!AA36=0,"",'1a'!AA36) -> 95 | AD16: =IF('1a'!AB36=0,"",'1a'!AB36) -> 75 | AE16: =IF('1a'!AC36=0,"",'1a'!AC36) -> 75 | AF16: =AE16/CONTROL!I5 -> 75 | AH16: =SUM(F16:AD16)/CONTROL!I3 -> 47.16 | AJ16: ='1a'!AF36 -> 94.5
C17: Conversion rate TC to ELT | F17: =IFERROR(F16/F15,"") -> 0 | G17: =IFERROR(G16/G15,"") -> 0 | H17: =IFERROR(H16/H15,"") -> 0 | I17: 0 | J17: 0 | K17: =IFERROR(K16/K15,"") -> 0 | L17: 0 | M17: 0 | N17: 0.141025641 | O17: 0.1863354037 | P17: =IFERROR(P16/P15,"") -> 0.1964912281 | Q17: 0.2577319588 | R17: =IFERROR(R16/R15,"") -> 0.2320441989 | S17: 0.222826087 | T17: =IFERROR(T16/T15,"") -> 0.2297650131 | U17: =IFERROR(U16/U15,"") -> 0.2235294118 | V17: 0.2117346939 | W17: =IFERROR(W16/W15,"") -> 0.2398989899 | X17: 0.1781170483 | Y17: =IFERROR(Y16/Y15,"") -> 0.1758241758 | Z17: =IFERROR(Z16/Z15,"") -> 0.1977186312 | AA17: 0.152173913 | AB17: 0.1801385681 | AC17: 0.1946721311 | AD17: =IFERROR(AD16/AD15,"") -> 0.1764705882 | AE17: =IFERROR(AE16/AE15,"") -> 0.1764705882 | AF17: 0.1764705882 | AH17: =IFERROR(AH16/AH15,"") -> 0.1821412019 | AJ17: =IFERROR(AJ16/AJ15,"") -> 0.3609166136
C18: All cases concluded | D18: =SUMIFS(#REF!,#REF!,"NATIONAL",#REF!,#REF!) ->  | F18: ='1a'!D39 -> 140 | G18: ='1a'!E39 -> 127 | H18: ='1a'!F39 -> 166 | I18: ='1a'!G39 -> 174 | J18: ='1a'!H39 -> 284 | K18: ='1a'!I39 -> 358 | L18: ='1a'!J39 -> 322 | M18: ='1a'!K39 -> 276 | N18: ='1a'!L39 -> 300 | O18: ='1a'!M39 -> 317 | P18: ='1a'!N39 -> 354 | Q18: ='1a'!O39 -> 468 | R18: ='1a'!P39 -> 463 | S18: ='1a'!Q39 -> 442 | T18: ='1a'!R39 -> 459 | U18: ='1a'!S39 -> 453 | V18: ='1a'!T39 -> 451 | W18: ='1a'!U39 -> 439 | X18: ='1a'!V39 -> 403 | Y18: ='1a'!W39 -> 414 | Z18: ='1a'!X39 -> 363 | AA18: ='1a'!Y39 -> 357 | AB18: ='1a'!Z39 -> 427 | AC18: ='1a'!AA39 -> 461 | AD18: ='1a'!AB39 -> 475 | AE18: ='1a'!AC39 -> 475 | AF18: =AE18/CONTROL!I5 -> 475 | AH18: =SUM(F18:AD18)/CONTROL!I3 -> 355.72 | AJ18: ='1a'!AF39 -> 429.5833333
C19: Trial Indictments concluded | F19: 29 | G19: 12 | H19: 8 | I19: 7 | J19: 16 | K19: 13 | L19: 20 | M19: 24 | N19: 24 | O19: 72 | P19: 164 | Q19: 212 | R19: 203 | S19: 194 | T19: 217 | U19: 197 | V19: 214 | W19: 231 | X19: 202 | Y19: 179 | Z19: 113 | AA19: 206 | AB19: 254 | AC19: 271 | AD19: 238 | AE19: =AD19 -> 238 | AF19: =AE19/CONTROL!I5 -> 238 | AH19: =SUM(F19:AD19)/CONTROL!I3 -> 132.8 | AJ19: =2353/12 -> 196.0833333
C20: Ratio of Registered to Concluded | D20: =SUMIFS(#REF!,#REF!,#REF!,#REF!,"NATIONAL",#REF!,"3") ->  | F20: =IFERROR(F18/F14,"") -> 0.6392694064 | G20: 0.3981191223 | H20: 0.4676056338 | I20: 0.3725910064 | J20: 0.5725806452 | K20: 0.7246963563 | L20: 0.6544715447 | M20: 0.6666666667 | N20: 0.7009345794 | O20: =IFERROR(O18/O14,"") -> 0.8364116095 | P20: =IFERROR(P18/P14,"") -> 0.9365079365 | Q20: 1.141463415 | R20: =IFERROR(R18/R14,"") -> 1.049886621 | S20: 0.8308270677 | T20: 0.974522293 | U20: 0.8711538462 | V20: 1.008948546 | W20: =IFERROR(W18/W14,"") -> 0.9126819127 | X20: 0.8413361169 | Y20: =IFERROR(Y18/Y14,"") -> 0.7652495379 | Z20: 0.8066666667 | AA20: =IFERROR(AA18/AA14,"") -> 0.84 | AB20: 0.8133333333 | AC20: =IFERROR(AC18/AC14,"") -> 1.031319911 | AD20: 1.128266033 | AE20: =IFERROR(AE18/AE14,"") -> 1.128266033 | AF20: =AE20 -> 1.128266033 | AH20: =SUM(F20:AD20)/CONTROL!$I$3 -> 0.7994203923 | AJ20: =IFERROR(AJ18/AJ14,"") -> 0.9455245781
C21: Ratio of Trials concluded to All concluded | F21: =IFERROR(F19/F18,"") -> 0.2071428571 | G21: 0.09448818898 | H21: 0.04819277108 | I21: 0.04022988506 | J21: 0.05633802817 | K21: 0.03631284916 | L21: 0.06211180124 | M21: 0.08695652174 | N21: 0.08 | O21: =IFERROR(O19/O18,"") -> 0.2271293375 | P21: =IFERROR(P19/P18,"") -> 0.4632768362 | Q21: 0.452991453 | R21: =IFERROR(R19/R18,"") -> 0.4384449244 | S21: 0.4389140271 | T21: 0.4727668845 | U21: 0.4348785872 | V21: 0.4745011086 | W21: =IFERROR(W19/W18,"") -> 0.5261958998 | X21: 0.5012406948 | Y21: =IFERROR(Y19/Y18,"") -> 0.4323671498 | Z21: 0.3112947658 | AA21: =IFERROR(AA19/AA18,"") -> 0.5770308123 | AB21: 0.5948477752 | AC21: =IFERROR(AC19/AC18,"") -> 0.5878524946 | AD21: 0.5010526316 | AE21: =IFERROR(AE19/AE18,"") -> 0.5010526316 | AF21: =AE21 -> 0.5010526316 | AH21: =SUM(F21:AD21)/CONTROL!$I$3 -> 0.3258623314 | AJ21: =IFERROR(AJ19/AJ18,"") -> 0.4564500485
C22: Scheduled Trials as at the end of the period | F22: 497 | G22: 497 | H22: 497 | I22: 497 | J22: 553 | K22: 613 | L22: 648 | M22: ='1a'!K41 -> 738 | N22: ='1a'!L41 -> 939 | O22: ='1a'!M41 -> 1091 | P22: ='1a'!N41 -> 1211 | Q22: ='1a'!O41 -> 1329 | R22: ='1a'!P41 -> 1398 | S22: ='1a'!Q41 -> 1479 | T22: ='1a'!R41 -> 1595 | U22: ='1a'!S41 -> 1684 | V22: ='1a'!T41 -> 1781 | W22: ='1a'!U41 -> 1842 | X22: ='1a'!V41 -> 1923 | Y22: ='1a'!W41 -> 2053 | Z22: ='1a'!X41 -> 2170 | AA22: ='1a'!Y41 -> 2212 | AB22: ='1a'!Z41 -> 2196 | AC22: ='1a'!AA41 -> 2274 | AD22: ='1a'!AB41 -> 2267 | AE22: ='1a'!AC41 -> 2267 | AF22: =AVERAGE(R22:AC22) -> 1883.916667 | AH22: =SUM(F22:AD22)/CONTROL!$I$3 -> 1359.36 | AJ22: 497
B24: Sheriff Court - Summary business | C24: Complaints Registered | D24: =SUMIFS(#REF!,#REF!,#REF!,#REF!,"NATIONAL") ->  | F24: =IF('1a'!D44=0,"",'1a'!D44) -> 3016 | G24: =IF('1a'!E44=0,"",'1a'!E44) -> 3247 | H24: =IF('1a'!F44=0,"",'1a'!F44) -> 4309 | I24: =IF('1a'!G44=0,"",'1a'!G44) -> 6205 | J24: =IF('1a'!H44=0,"",'1a'!H44) -> 6037 | K24: =IF('1a'!I44=0,"",'1a'!I44) -> 5855 | L24: =IF('1a'!J44=0,"",'1a'!J44) -> 4634 | M24: =IF('1a'!K44=0,"",'1a'!K44) -> 4383 | N24: =IF('1a'!L44=0,"",'1a'!L44) -> 3956 | O24: =IF('1a'!M44=0,"",'1a'!M44) -> 3790 | P24: =IF('1a'!N44=0,"",'1a'!N44) -> 3678 | Q24: =IF('1a'!O44=0,"",'1a'!O44) -> 5000 | R24: =IF('1a'!P44=0,"",'1a'!P44) -> 5017 | S24: =IF('1a'!Q44=0,"",'1a'!Q44) -> 4603 | T24: =IF('1a'!R44=0,"",'1a'!R44) -> 4544 | U24: =IF('1a'!S44=0,"",'1a'!S44) -> 4440 | V24: =IF('1a'!T44=0,"",'1a'!T44) -> 4718 | W24: =IF('1a'!U44=0,"",'1a'!U44) -> 4453 | X24: =IF('1a'!V44=0,"",'1a'!V44) -> 4510 | Y24: =IF('1a'!W44=0,"",'1a'!W44) -> 4770 | Z24: =IF('1a'!X44=0,"",'1a'!X44) -> 4860 | AA24: =IF('1a'!Y44=0,"",'1a'!Y44) -> 4614 | AB24: =IF('1a'!Z44=0,"",'1a'!Z44) -> 4007 | AC24: =IF('1a'!AA44=0,"",'1a'!AA44) -> 4970 | AD24: =IF('1a'!AB44=0,"",'1a'!AB44) -> 4423 | AE24: =IF('1a'!AC44=0,"",'1a'!AC44) -> 4423 | AF24: =AE24/CONTROL!I5 -> 4423 | AH24: =SUM(F24:AD24)/CONTROL!I3 -> 4561.56 | AJ24: ='1a'!AF44 -> 5457.5
C25: Trials Called | D25: =SUMIFS(#REF!,#REF!,#REF!,#REF!,"NATIONAL") ->  | F25: =IF('1a'!D48=0,"",'1a'!D48) -> 802 | G25: =IF('1a'!E48=0,"",'1a'!E48) -> 372 | H25: =IF('1a'!F48=0,"",'1a'!F48) -> 154 | I25: =IF('1a'!G48=0,"",'1a'!G48) -> 291 | J25: =IF('1a'!H48=0,"",'1a'!H48) -> 2343 | K25: =IF('1a'!I48=0,"",'1a'!I48) -> 3107 | L25: =IF('1a'!J48=0,"",'1a'!J48) -> 3207 | M25: =IF('1a'!K48=0,"",'1a'!K48) -> 3443 | N25: =IF('1a'!L48=0,"",'1a'!L48) -> 3090 | O25: =IF('1a'!M48=0,"",'1a'!M48) -> 3805 | P25: =IF('1a'!N48=0,"",'1a'!N48) -> 737 | Q25: =IF('1a'!O48=0,"",'1a'!O48) -> 2371 | R25: =IF('1a'!P48=0,"",'1a'!P48) -> 2657 | S25: =IF('1a'!Q48=0,"",'1a'!Q48) -> 3171 | T25: =IF('1a'!R48=0,"",'1a'!R48) -> 3887 | U25: =IF('1a'!S48=0,"",'1a'!S48) -> 4169 | V25: =IF('1a'!T48=0,"",'1a'!T48) -> 4499 | W25: =IF('1a'!U48=0,"",'1a'!U48) -> 5443 | X25: =IF('1a'!V48=0,"",'1a'!V48) -> 4266 | Y25: =IF('1a'!W48=0,"",'1a'!W48) -> 3428 | Z25: =IF('1a'!X48=0,"",'1a'!X48) -> 4703 | AA25: =IF('1a'!Y48=0,"",'1a'!Y48) -> 4537 | AB25: =IF('1a'!Z48=0,"",'1a'!Z48) -> 5093 | AC25: =IF('1a'!AA48=0,"",'1a'!AA48) -> 6599 | AD25: =IF('1a'!AB48=0,"",'1a'!AB48) -> 5094 | AE25: =IF('1a'!AC48=0,"",'1a'!AC48) -> 5094 | AF25: =AE25/CONTROL!I5 -> 5094 | AH25: =SUM(F25:AD25)/CONTROL!I3 -> 3250.72 | AJ25: ='1a'!AF48 -> 3394.083333
C26: Evidence Led Trials | D26: =SUMIFS(#REF!,#REF!,#REF!,#REF!,"NATIONAL") ->  | F26: =IF('1a'!D49=0,"",'1a'!D49) -> 5 | G26: =IF('1a'!E49=0,"",'1a'!E49) -> 9 | H26: =IF('1a'!F49=0,"",'1a'!F49) -> 24 | I26: =IF('1a'!G49=0,"",'1a'!G49) -> 79 | J26: =IF('1a'!H49=0,"",'1a'!H49) -> 283 | K26: =IF('1a'!I49=0,"",'1a'!I49) -> 440 | L26: =IF('1a'!J49=0,"",'1a'!J49) -> 479 | M26: =IF('1a'!K49=0,"",'1a'!K49) -> 491 | N26: =IF('1a'!L49=0,"",'1a'!L49) -> 399 | O26: =IF('1a'!M49=0,"",'1a'!M49) -> 176 | P26: =IF('1a'!N49=0,"",'1a'!N49) -> 86 | Q26: =IF('1a'!O49=0,"",'1a'!O49) -> 250 | R26: =IF('1a'!P49=0,"",'1a'!P49) -> 352 | S26: =IF('1a'!Q49=0,"",'1a'!Q49) -> 433 | T26: =IF('1a'!R49=0,"",'1a'!R49) -> 471 | U26: =IF('1a'!S49=0,"",'1a'!S49) -> 408 | V26: =IF('1a'!T49=0,"",'1a'!T49) -> 459 | W26: =IF('1a'!U49=0,"",'1a'!U49) -> 551 | X26: =IF('1a'!V49=0,"",'1a'!V49) -> 439 | Y26: =IF('1a'!W49=0,"",'1a'!W49) -> 385 | Z26: =IF('1a'!X49=0,"",'1a'!X49) -> 422 | AA26: =IF('1a'!Y49=0,"",'1a'!Y49) -> 427 | AB26: =IF('1a'!Z49=0,"",'1a'!Z49) -> 552 | AC26: =IF('1a'!AA49=0,"",'1a'!AA49) -> 604 | AD26: =IF('1a'!AB49=0,"",'1a'!AB49) -> 505 | AE26: =IF('1a'!AC49=0,"",'1a'!AC49) -> 505 | AF26: =AE26/CONTROL!I5 -> 505 | AH26: =SUM(F26:AD26)/CONTROL!I3 -> 349.16 | AJ26: ='1a'!AF49 -> 578.8333333
C27: Conversion rate TC to ELT | F27: =IFERROR(F26/F25,"") -> 0.006234413965 | G27: 0.02419354839 | H27: 0.1558441558 | I27: 0.2714776632 | J27: 0.120785318 | K27: 0.1416157065 | L27: 0.1493607733 | M27: 0.1426081905 | N27: 0.1291262136 | O27: 0.04625492773 | P27: =IFERROR(P26/P25,"") -> 0.1166892809 | Q27: 0.1054407423 | R27: =IFERROR(R26/R25,"") -> 0.1324802409 | S27: =IFERROR(S26/S25,"") -> 0.1365499842 | T27: 0.1211731412 | U27: =IFERROR(U26/U25,"") -> 0.09786519549 | V27: =IFERROR(V26/V25,"") -> 0.1020226717 | W27: =IFERROR(W26/W25,"") -> 0.1012309388 | X27: 0.1029067042 | Y27: =IFERROR(Y26/Y25,"") -> 0.1123103851 | Z27: 0.0897299596 | AA27: =IFERROR(AA26/AA25,"") -> 0.094115054 | AB27: 0.1083840565 | AC27: =IFERROR(AC26/AC25,"") -> 0.09152901955 | AD27: 0.09913623871 | AE27: =IFERROR(AE26/AE25,"") -> 0.09913623871 | AF27: =IFERROR(AF26/AF25,"") -> 0.09913623871 | AH27: =IFERROR(AH26/AH25,"") -> 0.1074100507 | AJ27: =IFERROR(AJ26/AJ25,"") -> 0.1705418743
C28: All cases concluded | D28: =SUMIFS(#REF!,#REF!,"NATIONAL",#REF!,#REF!) ->  | F28: =IF('1a'!D52=0,"",'1a'!D52) -> 429 | G28: =IF('1a'!E52=0,"",'1a'!E52) -> 744 | H28: =IF('1a'!F52=0,"",'1a'!F52) -> 1146 | I28: =IF('1a'!G52=0,"",'1a'!G52) -> 2227 | J28: =IF('1a'!H52=0,"",'1a'!H52) -> 4084 | K28: =IF('1a'!I52=0,"",'1a'!I52) -> 4759 | L28: =IF('1a'!J52=0,"",'1a'!J52) -> 4395 | M28: =IF('1a'!K52=0,"",'1a'!K52) -> 4244 | N28: =IF('1a'!L52=0,"",'1a'!L52) -> 3944 | O28: =IF('1a'!M52=0,"",'1a'!M52) -> 2071 | P28: =IF('1a'!N52=0,"",'1a'!N52) -> 1665 | Q28: =IF('1a'!O52=0,"",'1a'!O52) -> 2735 | R28: =IF('1a'!P52=0,"",'1a'!P52) -> 3466 | S28: =IF('1a'!Q52=0,"",'1a'!Q52) -> 4181 | T28: =IF('1a'!R52=0,"",'1a'!R52) -> 4547 | U28: =IF('1a'!S52=0,"",'1a'!S52) -> 4446 | V28: =IF('1a'!T52=0,"",'1a'!T52) -> 4654 | W28: =IF('1a'!U52=0,"",'1a'!U52) -> 5186 | X28: =IF('1a'!V52=0,"",'1a'!V52) -> 4099 | Y28: =IF('1a'!W52=0,"",'1a'!W52) -> 4162 | Z28: =IF('1a'!X52=0,"",'1a'!X52) -> 4410 | AA28: =IF('1a'!Y52=0,"",'1a'!Y52) -> 4126 | AB28: =IF('1a'!Z52=0,"",'1a'!Z52) -> 4995 | AC28: =IF('1a'!AA52=0,"",'1a'!AA52) -> 5929 | AD28: =IF('1a'!AB52=0,"",'1a'!AB52) -> 4987 | AE28: =IF('1a'!AC52=0,"",'1a'!AC52) -> 4987 | AF28: =AE28/CONTROL!I5 -> 4987 | AH28: =SUM(F28:AD28)/CONTROL!I3 -> 3665.24 | AJ28: ='1a'!AF52 -> 4771.333333
C29: Trial Complaints concluded | F29: 33 | G29: 34 | H29: 62 | I29: 204 | J29: 1199 | K29: 1657 | L29: 1742 | M29: 1934 | N29: 1611 | O29: 602 | P29: 177 | Q29: 677 | R29: 1212 | S29: 1656 | T29: 1863 | U29: 1935 | V29: 2154 | W29: 2747 | X29: 2170 | Y29: 1764 | Z29: 2316 | AA29: 1828 | AB29: 2741 | AC29: 3545 | AD29: 2828 | AE29: =AD29 -> 2828 | AF29: =AE29/CONTROL!I5 -> 2828 | AH29: =SUM(F29:AD29)/CONTROL!I3 -> 1547.64 | AJ29: =25101/12 -> 2091.75
C30: Ratio of Registered to Concluded | D30: =SUMIFS(#REF!,#REF!,#REF!,#REF!,"NATIONAL",#REF!,"3") ->  | F30: =IFERROR(F28/F24,"") -> 0.1422413793 | G30: 0.2291345858 | H30: 0.265954978 | I30: 0.3589041096 | J30: 0.6764949478 | K30: 0.8128095645 | L30: 0.9484246871 | M30: 0.9682865617 | N30: 0.996966633 | O30: 0.5464379947 | P30: =IFERROR(P28/P24,"") -> 0.4526916803 | Q30: 0.547 | R30: =IFERROR(R28/R24,"") -> 0.6908511062 | S30: =IFERROR(S28/S24,"") -> 0.9083206604 | T30: 1.000660211 | U30: 1.001351351 | V30: 0.9864349301 | W30: 1.164608129 | X30: =IFERROR(X28/X24,"") -> 0.9088691796 | Y30: =IFERROR(Y28/Y24,"") -> 0.8725366876 | Z30: 0.9074074074 | AA30: =IFERROR(AA28/AA24,"") -> 0.8942349371 | AB30: 1.246568505 | AC30: =IFERROR(AC28/AC24,"") -> 1.192957746 | AD30: 1.127515261 | AE30: =IFERROR(AE28/AE24,"") -> 1.127515261 | AF30: =AE30 -> 1.127515261 | AH30: =SUM(F30:AD30)/CONTROL!$I$3 -> 0.7939065294 | AJ30: =IFERROR(AJ28/AJ24,"") -> 0.8742708811
C31: Ratio of Trials concluded to All concluded | F31: =IFERROR(F29/F28,"") -> 0.07692307692 | G31: 0.04569892473 | H31: 0.05410122164 | I31: 0.09160305344 | J31: 0.2935847209 | K31: 0.3481823913 | L31: 0.3963594994 | M31: 0.4557021678 | N31: 0.4084685598 | O31: 0.2906808305 | P31: =IFERROR(P29/P28,"") -> 0.1063063063 | Q31: 0.2475319927 | R31: =IFERROR(R29/R28,"") -> 0.3496826313 | S31: =IFERROR(S29/S28,"") -> 0.3960774934 | T31: 0.409720695 | U31: 0.4352226721 | V31: 0.4628276751 | W31: 0.5296953336 | X31: =IFERROR(X29/X28,"") -> 0.529397414 | Y31: =IFERROR(Y29/Y28,"") -> 0.4238346949 | Z31: 0.525170068 | AA31: =IFERROR(AA29/AA28,"") -> 0.4430441105 | AB31: 0.5487487487 | AC31: =IFERROR(AC29/AC28,"") -> 0.5979085849 | AD31: 0.5670743934 | AE31: =IFERROR(AE29/AE28,"") -> 0.5670743934 | AF31: =AE31 -> 0.5670743934 | AH31: =SUM(F31:AD31)/CONTROL!$I$3 -> 0.3613418904 | AJ31: =IFERROR(AJ29/AJ28,"") -> 0.4383994691
C32: Intermediate diets concluded | F32: 71 | G32: 62 | H32: 138 | I32: 368 | J32: 1018 | K32: 1055 | L32: 948 | M32: 739 | N32: 854 | O32: 442 | P32: 603 | Q32: 791 | R32: 835 | S32: 884 | T32: 1005 | U32: 946 | V32: 1050 | W32: 1054 | X32: 585 | Y32: 984 | Z32: 754 | AA32: 912 | AB32: 906 | AC32: 943 | AD32: 752 | AE32: =AD32 -> 752 | AF32: =AE32/CONTROL!I5 -> 752 | AH32: =SUM(F32:AD32)/CONTROL!I3 -> 747.96 | AJ32: =11135/12 -> 927.9166667
C33: After Warrant Guilty Pleas | F33: 130 | G33: 103 | H33: 197 | I33: 245 | J33: 343 | K33: 466 | L33: 572 | M33: 721 | N33: 500 | O33: 458 | P33: 400 | Q33: 459 | R33: 408 | S33: 411 | T33: 468 | U33: 518 | V33: 503 | W33: 502 | X33: 603 | Y33: 507 | Z33: 526 | AA33: 535 | AB33: 501 | AC33: 558 | AD33: 619 | AE33: =AD33 -> 619 | AF33: =AE33/CONTROL!I5 -> 619 | AH33: =SUM(F33:AD33)/CONTROL!I3 -> 450.12 | AJ33: =10454/12 -> 871.1666667
C34: Scheduled Trials as at the end of the period | F34: 13967 | G34: 15854 | H34: 17818 | I34: 20929 | J34: 22932 | K34: 25146 | L34: 26370 | M34: ='1a'!K54 -> 27372 | N34: ='1a'!L54 -> 27723 | O34: ='1a'!M54 -> 28548 | P34: ='1a'!N54 -> 29324 | Q34: ='1a'!O54 -> 30645 | R34: ='1a'!P54 -> 31799 | S34: ='1a'!Q54 -> 32778 | T34: ='1a'!R54 -> 33598 | U34: ='1a'!S54 -> 33602 | V34: ='1a'!T54 -> 33369 | W34: ='1a'!U54 -> 32433 | X34: ='1a'!V54 -> 32488 | Y34: ='1a'!W54 -> 33015 | Z34: ='1a'!X54 -> 32394 | AA34: ='1a'!Y54 -> 32759 | AB34: ='1a'!Z54 -> 31904 | AC34: ='1a'!AA54 -> 30520 | AD34: ='1a'!AB54 -> 29793 | AE34: ='1a'!AC54 -> 29793 | AF34: =AVERAGE(R34:AC34) -> 32554.91667 | AH34: =SUM(F34:AD34)/CONTROL!$I$3 -> 28283.2 | AJ34: 13971
B36: Justice of the Peace Court | C36: Complaints Registered | D36: =SUMIFS(#REF!,#REF!,#REF!,#REF!,"NATIONAL") ->  | F36: =IF('1a'!D57=0,"",'1a'!D57) -> 1994 | G36: =IF('1a'!E57=0,"",'1a'!E57) -> 910 | H36: =IF('1a'!F57=0,"",'1a'!F57) -> 987 | I36: =IF('1a'!G57=0,"",'1a'!G57) -> 1823 | J36: =IF('1a'!H57=0,"",'1a'!H57) -> 1064 | K36: =IF('1a'!I57=0,"",'1a'!I57) -> 916 | L36: =IF('1a'!J57=0,"",'1a'!J57) -> 1717 | M36: =IF('1a'!K57=0,"",'1a'!K57) -> 1221 | N36: =IF('1a'!L57=0,"",'1a'!L57) -> 1426 | O36: =IF('1a'!M57=0,"",'1a'!M57) -> 1469 | P36: =IF('1a'!N57=0,"",'1a'!N57) -> 1345 | Q36: =IF('1a'!O57=0,"",'1a'!O57) -> 2060 | R36: =IF('1a'!P57=0,"",'1a'!P57) -> 1992 | S36: =IF('1a'!Q57=0,"",'1a'!Q57) -> 1731 | T36: =IF('1a'!R57=0,"",'1a'!R57) -> 2064 | U36: =IF('1a'!S57=0,"",'1a'!S57) -> 1717 | V36: =IF('1a'!T57=0,"",'1a'!T57) -> 2012 | W36: =IF('1a'!U57=0,"",'1a'!U57) -> 2133 | X36: =IF('1a'!V57=0,"",'1a'!V57) -> 2108 | Y36: =IF('1a'!W57=0,"",'1a'!W57) -> 2034 | Z36: =IF('1a'!X57=0,"",'1a'!X57) -> 1856 | AA36: =IF('1a'!Y57=0,"",'1a'!Y57) -> 1787 | AB36: =IF('1a'!Z57=0,"",'1a'!Z57) -> 1611 | AC36: =IF('1a'!AA57=0,"",'1a'!AA57) -> 2512 | AD36: =IF('1a'!AB57=0,"",'1a'!AB57) -> 1893 | AE36: =IF('1a'!AC57=0,"",'1a'!AC57) -> 1893 | AF36: =AE36/CONTROL!I5 -> 1893 | AH36: =SUM(F36:AD36)/CONTROL!I3 -> 1695.28 | AJ36: ='1a'!AF57 -> 2798.5
C37: Trials Called | D37: =SUMIFS(#REF!,#REF!,#REF!,#REF!,"NATIONAL") ->  | F37: =IF('1a'!D61=0,"",'1a'!D61) -> 126 | G37: =IF('1a'!E61=0,"",'1a'!E61) -> 71 | H37: =IF('1a'!F61=0,"",'1a'!F61) -> 7 | I37: =IF('1a'!G61=0,"",'1a'!G61) -> 23 | J37: =IF('1a'!H61=0,"",'1a'!H61) -> 308 | K37: =IF('1a'!I61=0,"",'1a'!I61) -> 698 | L37: =IF('1a'!J61=0,"",'1a'!J61) -> 658 | M37: =IF('1a'!K61=0,"",'1a'!K61) -> 738 | N37: =IF('1a'!L61=0,"",'1a'!L61) -> 653 | O37: =IF('1a'!M61=0,"",'1a'!M61) -> 860 | P37: =IF('1a'!N61=0,"",'1a'!N61) -> 111 | Q37: =IF('1a'!O61=0,"",'1a'!O61) -> 276 | R37: =IF('1a'!P61=0,"",'1a'!P61) -> 102 | S37: =IF('1a'!Q61=0,"",'1a'!Q61) -> 50 | T37: =IF('1a'!R61=0,"",'1a'!R61) -> 240 | U37: =IF('1a'!S61=0,"",'1a'!S61) -> 495 | V37: =IF('1a'!T61=0,"",'1a'!T61) -> 952 | W37: =IF('1a'!U61=0,"",'1a'!U61) -> 875 | X37: =IF('1a'!V61=0,"",'1a'!V61) -> 725 | Y37: =IF('1a'!W61=0,"",'1a'!W61) -> 638 | Z37: =IF('1a'!X61=0,"",'1a'!X61) -> 878 | AA37: =IF('1a'!Y61=0,"",'1a'!Y61) -> 681 | AB37: =IF('1a'!Z61=0,"",'1a'!Z61) -> 882 | AC37: =IF('1a'!AA61=0,"",'1a'!AA61) -> 1116 | AD37: =IF('1a'!AB61=0,"",'1a'!AB61) -> 964 | AE37: =IF('1a'!AC61=0,"",'1a'!AC61) -> 964 | AF37: =AE37/CONTROL!I5 -> 964 | AH37: =SUM(F37:AD37)/CONTROL!I3 -> 525.08 | AJ37: ='1a'!AF61 -> 838.4166667
C38: Evidence Led Trials | D38: =SUMIFS(#REF!,#REF!,#REF!,#REF!,"NATIONAL") ->  | F38: ='1a'!D62 -> 0 | G38: ='1a'!E62 -> 0 | H38: ='1a'!F62 -> 0 | I38: =IF('1a'!G62=0,"",'1a'!G62) -> 1 | J38: =IF('1a'!H62=0,"",'1a'!H62) -> 23 | K38: =IF('1a'!I62=0,"",'1a'!I62) -> 68 | L38: =IF('1a'!J62=0,"",'1a'!J62) -> 68 | M38: =IF('1a'!K62=0,"",'1a'!K62) -> 87 | N38: =IF('1a'!L62=0,"",'1a'!L62) -> 73 | O38: =IF('1a'!M62=0,"",'1a'!M62) -> 27 | P38: =IF('1a'!N62=0,"",'1a'!N62) -> 2 | Q38: ='1a'!O62 -> 0 | R38: ='1a'!P62 -> 0 | S38: ='1a'!Q62 -> 0 | T38: ='1a'!R62 -> 16 | U38: ='1a'!S62 -> 51 | V38: ='1a'!T62 -> 67 | W38: ='1a'!U62 -> 82 | X38: ='1a'!V62 -> 63 | Y38: ='1a'!W62 -> 45 | Z38: ='1a'!X62 -> 45 | AA38: ='1a'!Y62 -> 6 | AB38: ='1a'!Z62 -> 70 | AC38: ='1a'!AA62 -> 73 | AD38: ='1a'!AB62 -> 61 | AE38: ='1a'!AC62 -> 61 | AF38: =AE38/CONTROL!I5 -> 61 | AH38: =SUM(F38:AD38)/CONTROL!I3 -> 37.12 | AJ38: ='1a'!AF62 -> 128.5833333
C39: Conversion rate TC to ELT | F39: =IFERROR(F38/F37,"") -> 0 | G39: 0 | H39: 0 | I39: 0.04347826087 | J39: 0.07467532468 | K39: 0.09742120344 | L39: 0.103343465 | M39: =IFERROR(M38/M37,"") -> 0.1178861789 | N39: 0.1117917305 | O39: 0.03139534884 | P39: 0.01801801802 | Q39: 0 | R39: =IFERROR(R38/R37,"") -> 0 | S39: =IFERROR(S38/S37,"") -> 0 | T39: =IFERROR(T38/T37,"") -> 0.06666666667 | U39: =IFERROR(U38/U37,"") -> 0.103030303 | V39: 0.07037815126 | W39: =IFERROR(W38/W37,"") -> 0.09371428571 | X39: 0.08689655172 | Y39: =IFERROR(Y38/Y37,"") -> 0.07053291536 | Z39: 0.05125284738 | AA39: =IFERROR(AA38/AA37,"") -> 0.008810572687 | AB39: 0.07936507937 | AC39: =IFERROR(AC38/AC37,"") -> 0.06541218638 | AD39: 0.0632780083 | AE39: =IFERROR(AE38/AE37,"") -> 0.0632780083 | AF39: =IFERROR(AF38/AF37,"") -> 0.0632780083 | AH39: =IFERROR(AH38/AH37,"") -> 0.07069398949 | AJ39: =IFERROR(AJ38/AJ37,"") -> 0.1533644767
C40: All cases concluded | D40: =SUMIFS(#REF!,#REF!,"NATIONAL",#REF!,#REF!) ->  | F40: =IF('1a'!D65=0,"",'1a'!D65) -> 10 | G40: =IF('1a'!E65=0,"",'1a'!E65) -> 50 | H40: =IF('1a'!F65=0,"",'1a'!F65) -> 193 | I40: =IF('1a'!G65=0,"",'1a'!G65) -> 459 | J40: =IF('1a'!H65=0,"",'1a'!H65) -> 1389 | K40: =IF('1a'!I65=0,"",'1a'!I65) -> 1822 | L40: =IF('1a'!J65=0,"",'1a'!J65) -> 1651 | M40: =IF('1a'!K65=0,"",'1a'!K65) -> 1683 | N40: =IF('1a'!L65=0,"",'1a'!L65) -> 1624 | O40: =IF('1a'!M65=0,"",'1a'!M65) -> 627 | P40: =IF('1a'!N65=0,"",'1a'!N65) -> 135 | Q40: =IF('1a'!O65=0,"",'1a'!O65) -> 332 | R40: =IF('1a'!P65=0,"",'1a'!P65) -> 206 | S40: =IF('1a'!Q65=0,"",'1a'!Q65) -> 315 | T40: =IF('1a'!R65=0,"",'1a'!R65) -> 2017 | U40: =IF('1a'!S65=0,"",'1a'!S65) -> 3032 | V40: =IF('1a'!T65=0,"",'1a'!T65) -> 2797 | W40: =IF('1a'!U65=0,"",'1a'!U65) -> 2498 | X40: =IF('1a'!V65=0,"",'1a'!V65) -> 2022 | Y40: =IF('1a'!W65=0,"",'1a'!W65) -> 1921 | Z40: =IF('1a'!X65=0,"",'1a'!X65) -> 1781 | AA40: =IF('1a'!Y65=0,"",'1a'!Y65) -> 1513 | AB40: =IF('1a'!Z65=0,"",'1a'!Z65) -> 1741 | AC40: =IF('1a'!AA65=0,"",'1a'!AA65) -> 2215 | AD40: =IF('1a'!AB65=0,"",'1a'!AB65) -> 2093 | AE40: =IF('1a'!AC65=0,"",'1a'!AC65) -> 2093 | AF40: =AE40/CONTROL!I5 -> 2093 | AH40: =SUM(F40:AD40)/CONTROL!I3 -> 1365.04 | AJ40: ='1a'!AF65 -> 2557.166667
C41: Trial complaints concluded | F41: 1 | G41: 3 | H41: 3 | I41: 11 | J41: 131 | K41: 363 | L41: 349 | M41: 407 | N41: 346 | O41: 93 | P41: 6 | Q41: 2 | R41: 1 | S41: 0 | T41: 76 | U41: 279 | V41: 493 | W41: 495 | X41: 401 | Y41: 360 | Z41: 409 | AA41: 174 | AB41: 478 | AC41: 624 | AD41: 529 | AE41: =SUM(AD41) -> 529 | AF41: =AE41/CONTROL!I5 -> 529 | AH41: =SUM(F41:AD41)/CONTROL!I3 -> 241.36 | AJ41: =6234/12 -> 519.5
C42: Ratio of Registered to Concluded | D42: =SUMIFS(#REF!,#REF!,#REF!,#REF!,"NATIONAL",#REF!,"3") ->  | F42: =IFERROR(F40/F36,"") -> 0.005015045135 | G42: 0.05494505495 | H42: 0.1955420466 | I42: 0.2517827756 | J42: 1.305451128 | K42: 1.989082969 | L42: 0.961560862 | M42: =IFERROR(M40/M36,"") -> 1.378378378 | N42: 1.13884993 | O42: =IFERROR(O40/O36,"") -> 0.4268209666 | P42: 0.1003717472 | Q42: 0.1611650485 | R42: =IFERROR(R40/R36,"") -> 0.1034136546 | S42: =IFERROR(S40/S36,"") -> 0.1819757366 | T42: 0.9772286822 | U42: 1.765870705 | V42: 1.390159046 | W42: 1.171120488 | X42: =IFERROR(X40/X36,"") -> 0.9592030361 | Y42: =IFERROR(Y40/Y36,"") -> 0.9444444444 | Z42: 0.9595905172 | AA42: =IFERROR(AA40/AA36,"") -> 0.8466703973 | AB42: 1.08069522 | AC42: =IFERROR(AC40/AC36,"") -> 0.8817675159 | AD42: 1.105652404 | AE42: =IFERROR(AE40/AE36,"") -> 1.105652404 | AF42: =AE42 -> 1.105652404 | AH42: =SUM(F42:AD42)/CONTROL!$I$3 -> 0.8134703119 | AJ42: =IFERROR(AJ40/AJ36,"") -> 0.9137633256
C43: Ratio of Trials concluded to All concluded | F43: =IFERROR(F41/F40,"") -> 0.1 | G43: 0.06 | H43: 0.01554404145 | I43: 0.02396514161 | J43: 0.094312455 | K43: 0.1992316136 | L43: 0.2113870382 | M43: =IFERROR(M41/M40,"") -> 0.2418300654 | N43: 0.2130541872 | O43: =IFERROR(O41/O40,"") -> 0.1483253589 | P43: 0.04444444444 | Q43: 0.006024096386 | R43: =IFERROR(R41/R40,"") -> 0.004854368932 | S43: =IFERROR(S41/S40,"") -> 0 | T43: 0.03767972236 | U43: 0.09201846966 | V43: 0.1762602789 | W43: 0.1981585268 | X43: =IFERROR(X41/X40,"") -> 0.1983184965 | Y43: =IFERROR(Y41/Y40,"") -> 0.1874023946 | Z43: 0.2296462661 | AA43: =IFERROR(AA41/AA40,"") -> 0.1150033047 | AB43: 0.2745548535 | AC43: =IFERROR(AC41/AC40,"") -> 0.2817155756 | AD43: 0.2527472527 | AE43: =IFERROR(AE41/AE40,"") -> 0.2527472527 | AF43: =AE43 -> 0.2527472527 | AH43: =SUM(F43:AD43)/CONTROL!$I$3 -> 0.1362591181 | AJ43: =IFERROR(AJ41/AJ40,"") -> 0.203154533
C44: Intermediate diets concluded | F44: 6 | G44: 3 | H44: 15 | I44: 47 | J44: 220 | K44: 281 | L44: 226 | M44: 165 | N44: 180 | O44: 79 | P44: 33 | Q44: 8 | R44: 6 | S44: 25 | T44: 172 | U44: 211 | V44: 232 | W44: 272 | X44: 170 | Y44: 208 | Z44: 176 | AA44: 257 | AB44: 227 | AC44: 243 | AD44: 225 | AE44: =SUM(AD44) -> 225 | AF44: =SUM(AE44)/CONTROL!I5 -> 225 | AH44: =SUM(F44:AD44)/CONTROL!I3 -> 147.48 | AJ44: =3292/12 -> 274.3333333
C45: After Warrant Guilty Pleas | F45: 4 | G45: 3 | H45: 7 | I45: 30 | J45: 47 | K45: 74 | L45: 63 | M45: 85 | N45: 72 | O45: 30 | P45: 22 | Q45: 20 | R45: 29 | S45: 18 | T45: 28 | U45: 35 | V45: 58 | W45: 65 | X45: 81 | Y45: 93 | Z45: 69 | AA45: 71 | AB45: 87 | AC45: 88 | AD45: 76 | AE45: =SUM(AD45) -> 76 | AF45: =SUM(AE45)/CONTROL!I5 -> 76 | AH45: =SUM(F45:AD45)/CONTROL!I3 -> 50.2 | AJ45: =2619/12 -> 218.25
C46: Scheduled Trials as at the end of the period | F46: 3220 | G46: 3495 | H46: 3732 | I46: 4088 | J46: 4491 | K46: 4837 | L46: 5074 | M46: ='1a'!K67 -> 5189 | N46: ='1a'!L67 -> 5371 | O46: ='1a'!M67 -> 5213 | P46: ='1a'!N67 -> 5255 | Q46: ='1a'!O67 -> 5560 | R46: ='1a'!P67 -> 5999 | S46: ='1a'!Q67 -> 6321 | T46: ='1a'!R67 -> 6945 | U46: ='1a'!S67 -> 7730 | V46: ='1a'!T67 -> 7944 | W46: ='1a'!U67 -> 7890 | X46: ='1a'!V67 -> 7941 | Y46: ='1a'!W67 -> 8053 | Z46: ='1a'!X67 -> 7936 | AA46: ='1a'!Y67 -> 8101 | AB46: ='1a'!Z67 -> 7868 | AC46: ='1a'!AA67 -> 7569 | AD46: ='1a'!AB67 -> 7289 | AE46: ='1a'!AC67 -> 7289 | AF46: =AVERAGE(R46:AC46) -> 7524.75 | AH46: =SUM(F46:AD46)/CONTROL!$I$3 -> 6124.44 | AJ46: 3497
B49: Notes 1. These figures provide interim management information during the Coronavirus pandemic. Official Statistics with full commentary will be published by SCTS each quarter as normal. 2. All figures in columns S and U are monthly averages except for the rows showing Trials Scheduled where figures are as at the end of the period shown.

Sheet 2b (hidden)
B3: Back to Index

Sheet Business Trends Chart Data (hidden)
D2: Business Trends Chart Data
A3: charts 2b
C4: Conversion rate TC to ELT
C5: 2020-04-01 | D5: 2020-05-01 | E5: 2020-06-01 | F5: 2020-07-01 | G5: 2020-08-01 | H5: 2020-09-01 | I5: 2019/20 monthly average
B6: High Court | C6: ='Internal analytics'!F7 -> n/a | D6: ='Internal analytics'!G7 -> n/a | E6: ='Internal analytics'!H7 -> n/a | F6: ='Internal analytics'!I7 -> 1 | G6: ='Internal analytics'!J7 -> 1 | H6: ='Internal analytics'!K7 -> 0.6923076923 | I6: ='Internal analytics'!AJ7 -> 0.6133004926
B7: Sheriff Court - Solemn | C7: ='Internal analytics'!F17 -> 0 | D7: ='Internal analytics'!G17 -> 0 | E7: ='Internal analytics'!H17 -> 0 | F7: ='Internal analytics'!I17 -> 0 | G7: ='Internal analytics'!J17 -> 0 | H7: ='Internal analytics'!K17 -> 0 | I7: ='Internal analytics'!AJ17 -> 0.3609166136
B8: Sheriff Court - Summary | C8: ='Internal analytics'!F27 -> 0.006234413965 | D8: ='Internal analytics'!G27 -> 0.02419354839 | E8: ='Internal analytics'!H27 -> 0.1558441558 | F8: ='Internal analytics'!I27 -> 0.2714776632 | G8: ='Internal analytics'!J27 -> 0.120785318 | H8: ='Internal analytics'!K27 -> 0.1416157065 | I8: ='Internal analytics'!AJ27 -> 0.1705418743
B9: Justice of the Peace Court - Summary | C9: ='Internal analytics'!F39 -> 0 | D9: ='Internal analytics'!G39 -> 0 | E9: ='Internal analytics'!H39 -> 0 | F9: ='Internal analytics'!I39 -> 0.04347826087 | G9: ='Internal analytics'!J39 -> 0.07467532468 | H9: ='Internal analytics'!K39 -> 0.09742120344 | I9: ='Internal analytics'!AJ39 -> 0.1533644767
C13: Ratio of registered to concluded
C14: 2020-04-01 | D14: 2020-05-01 | E14: 2020-06-01 | F14: 2020-07-01 | G14: 2020-08-01 | H14: 2020-09-01 | I14: 2019/20 monthly average
B15: High Court | C15: ='Internal analytics'!F10 -> 0.09090909091 | D15: ='Internal analytics'!G10 -> 0.1058823529 | E15: ='Internal analytics'!H10 -> 0.2028985507 | F15: ='Internal analytics'!I10 -> 0.5079365079 | G15: ='Internal analytics'!J10 -> 0.7608695652 | H15: ='Internal analytics'!K10 -> 0.2941176471 | I15: ='Internal analytics'!AJ10 -> 0.787109375
B16: Sheriff Court - Solemn | C16: ='Internal analytics'!F20 -> 0.6392694064 | D16: ='Internal analytics'!G20 -> 0.3981191223 | E16: ='Internal analytics'!H20 -> 0.4676056338 | F16: ='Internal analytics'!I20 -> 0.3725910064 | G16: ='Internal analytics'!J20 -> 0.5725806452 | H16: ='Internal analytics'!K20 -> 0.7246963563 | I16: ='Internal analytics'!AJ20 -> 0.9455245781
B17: Sheriff Court - Summary | C17: ='Internal analytics'!F30 -> 0.1422413793 | D17: ='Internal analytics'!G30 -> 0.2291345858 | E17: ='Internal analytics'!H30 -> 0.265954978 | F17: ='Internal analytics'!I30 -> 0.3589041096 | G17: ='Internal analytics'!J30 -> 0.6764949478 | H17: ='Internal analytics'!K30 -> 0.8128095645 | I17: ='Internal analytics'!AJ30 -> 0.8742708811
B18: Justice of the Peace Court - Summary | C18: ='Internal analytics'!F42 -> 0.005015045135 | D18: ='Internal analytics'!G42 -> 0.05494505495 | E18: ='Internal analytics'!H42 -> 0.1955420466 | F18: ='Internal analytics'!I42 -> 0.2517827756 | G18: ='Internal analytics'!J42 -> 1.305451128 | H18: ='Internal analytics'!K42 -> 1.989082969 | I18: ='Internal analytics'!AJ42 -> 0.9137633256
C22: Ration of trials concluded to all concluded
C23: 2020-04-01 | D23: 2020-05-01 | E23: 2020-06-01 | F23: 2020-07-01 | G23: 2020-08-01 | H23: 2020-09-01 | I23: 2019/20 monthly average
B24: High Court | C24: ='Internal analytics'!F11 -> 0 | D24: ='Internal analytics'!G11 -> 0 | E24: ='Internal analytics'!H11 -> 0 | F24: ='Internal analytics'!I11 -> 0.125 | G24: ='Internal analytics'!J11 -> 0.3142857143 | H24: ='Internal analytics'!K11 -> 0.75 | I24: ='Internal analytics'!AJ11 -> 0.6265508685
B25: Sheriff Court - Solemn | C25: ='Internal analytics'!F21 -> 0.2071428571 | D25: ='Internal analytics'!G21 -> 0.09448818898 | E25: ='Internal analytics'!H21 -> 0.04819277108 | F25: ='Internal analytics'!I21 -> 0.04022988506 | G25: ='Internal analytics'!J21 -> 0.05633802817 | H25: ='Internal analytics'!K21 -> 0.03631284916 | I25: ='Internal analytics'!AJ21 -> 0.4564500485
B26: Sheriff Court - Summary | C26: ='Internal analytics'!F31 -> 0.07692307692 | D26: ='Internal analytics'!G31 -> 0.04569892473 | E26: ='Internal analytics'!H31 -> 0.05410122164 | F26: ='Internal analytics'!I31 -> 0.09160305344 | G26: ='Internal analytics'!J31 -> 0.2935847209 | H26: ='Internal analytics'!K31 -> 0.3481823913 | I26: ='Internal analytics'!AJ31 -> 0.4383994691
B27: Justice of the Peace Court - Summary | C27: ='Internal analytics'!F43 -> 0.1 | D27: ='Internal analytics'!G43 -> 0.06 | E27: ='Internal analytics'!H43 -> 0.01554404145 | F27: ='Internal analytics'!I43 -> 0.02396514161 | G27: ='Internal analytics'!J43 -> 0.094312455 | H27: ='Internal analytics'!K43 -> 0.1992316136 | I27: ='Internal analytics'!AJ43 -> 0.203154533

Sheet 2
B1: Back to Index
A2: Flowcharts showing showing how criminal cases move through Scotland's courts
E6: Continued Without Plea hearing
C8: Summary Case received and registered by the SCTS at either a Sheriff Court or a Justice of the Peace Court | E8: First Calling | G8: Intermediate Diet | I8: Trial Diet
C14: Section 76 hearing | E14: Continued First Diet
C16: Solemn Case received and registered by the SCTS at a Sheriff Court | E16: First Diet | G16: Trial Diet
C20: Section 76 hearing | E20: Continued Preliminary Hearing
C22: Solemn Case received and registered by the SCTS at the High Court of Justiciary | E22: Preliminary Hearing | G22: Trial Diet
A25: Back to Index

Sheet 3
A1: Back to Index
A2: Glossary
A3: Accused | B3: A person charged with breaking the law. The term defendant is not used in Scotland
A4: Adjournment | B4: An interruption to the proceedings when the court stops the hearing of the case for part of a day or for a longer period.
A5: Appeal | B5: An appeal is a re-hearing of a case by a higher court than the court which first heard the case. A re-hearing means re-consideration by the appellate court of the evidence led and the legal issues considered by the court below.
A6: Average time between pleading diet and evidence led trial, where evidence led trial occurred in the period shown (weeks) | B6: When an evidence led trial occurs, the trial date can be compared to the pleading diet date to obtain a measure of how long it has taken for the case to come to trial. Many factors can impact on the time between pleading diet and trial diet e.g. court programme capacity, adjournments due to lack of court time, witness availability, parties affected by COVID-19 etc. Where the value is marked as N/A, this means that there were no evidence led trials in the period therefore an average could not be constructed.
A7: Complaint | B7: A statement accusing someone of breaking the law.
A8: Continued First Diet | B8: A date on which an indictment calls in the sheriff court in solemn proceedings to determine whether the prosecutor and defence are ready to go to trial – continued from an earlier First Diet.
A9: Continued Preliminary Hearing | B9: A hearing in the High Court of Justiciary in solemn proceedings to decide if the case is ready to go for trial – continued from an earlier Preliminary Hearing. Preliminary legal or factual issues may be determined before trial at a Continued preliminary hearing.
A10: Continued without Plea | B10: A further opportunity for a summary case to call in court following no plea having been entered at first calling.
A11: Diet | B11: The date for a case, for instance, to hear a plea of guilty or not guilty, at an intermediate stage or for a trial.
A12: Disposed | B12: The complaint or indictment has been concluded.
A13: First calling | B13: The first time a summary case is called in court.
A14: First Diet | B14: A date on which an indictment calls in the sheriff court in solemn proceedings to determine whether the prosecutor and defence are ready to go to trial.
A15: First Instance | B15: The court in which the case was first heard or tried as distinct from second instance which is where a case is appealed.
A16: Hearing | B16: Any part of a trial that takes place in a court.
A17: Indictment | B17: A document setting out the charge(s) of crimes or offences against an accused in more serious cases. A case on indictment is tried by judge sitting with a jury in the High Court (in the most serious cases), or the sheriff court. Cases tried on indictment are known as solemn proceedings.
A18: Intermediate diet | B18: A hearing in summary criminal proceedings which allows the court to check whether the case is likely to proceed on the date assigned for trial. The purpose is to minimise inconvenience to witnesses etc. if the trial is adjourned.
A19: Jury | B19: A group of lay persons chosen to decide upon issues of fact in legal proceedings. In criminal proceedings, a jury has 15 jurors.
A20: Justice of the peace | B20: A lay magistrate who sits in the justice of the peace court.
A21: Lack of Court Time | B21: Cases that are continued to another sitting day due to the sitting day having ended.
A22: Petition | B22: In criminal proceedings, the Crown (the prosecutor) may begin proceedings by petition before deciding whether to prosecute on indictment or by summary complaint. Only serious cases are begun by petition.
A23: Plea | B23: The answer the accused gives to the court at the pre-trial hearings or at the beginning of a trial when asked if he or she is guilty or not guilty.
A24: Pleading Diet | B24: Date assigned for a criminal case to call and for plea to be given, e.g., guilty or not guilty.
A25: Preliminary hearing | B25: A hearing in the High Court of Justiciary in solemn proceedings to decide if the case is ready to go for trial. Also preliminary legal or factual issues may be determined before trial at a preliminary hearing.
A26: Provisional | B26: A marking applied to statistical data to alert users that the data may be revised in the future and should not be considered as final data.
A27: Second Instance | B27: The court in which an appeal is heard as distinct from first instance which is where a case originated.
A28: Section 76 | B28: An accused person charged with a serious offence may give notice in writing that he intends to plead guilty to an indictment under section 76 of the Criminal Procedure (Scotland) Act 1995.
A29: Sheriff | B29: The name for a judge in the sheriff court.
A30: Sheriff and jury | B30: Cases heard in the sheriff court by a sheriff and jury.
A31: Solemn case | B31: Serious criminal case before a judge and jury in the High Court or sheriff and jury in the sheriff court.
A32: Summary case | B32: Less serious criminal case before a sheriff or justice of the peace, without a jury.
A33: Sustained appeal | B33: An appeal that is upheld or granted.
A34: Trial | B34: The legal action in a criminal court case.
A35: Trials called | B35: All trials that have commenced or ‘called’ in court. Some trials will conclude due to a guilty plea being entered before evidence is heard/seen; some trials will be adjourned to a later date and some trials will proceed to hear or see evidence.
A36: Trials called where evidence was led | B36: A subset of ‘Trials called’ where witnesses give evidence and productions are seen.
A37: Trials scheduled | B37: The count of complaints or indictments that have a trial diet assigned but are yet to call in court.
B38: Back to Index

Sheet 4
B2: Back to Index

Sheet Sheriffdom Look up (hidden)
A1: Court Code | B1: Court Name | C1: Court Type | D1: Sheriffdom Code | E1: Sheriffdom Name | G1: This data is only for The Scottish Courts and Tribunals Service Internal use. Please go to the index tab and navigate as required.
A2: 9701 | B2: ABERDEEN | C2: Sheriff | D2: 2 | E2: Grampian, Highland & Islands
A3: 9702 | B3: AIRDRIE | C3: Sheriff | D3: 5 | E3: South Strathclyde, Dumfries & Galloway
A4: 9703 | B4: ALLOA | C4: Sheriff | D4: 6 | E4: Tayside, Central & Fife
A5: 9704 | B5: AYR | C5: Sheriff | D5: 5 | E5: South Strathclyde, Dumfries & Galloway
A6: 9705 | B6: ARBROATH | C6: Sheriff | D6: 6 | E6: Tayside, Central & Fife
A7: 9711 | B7: BANFF | C7: Sheriff | D7: 2 | E7: Grampian, Highland & Islands
A8: 9716 | B8: CAMPBELTOWN | C8: Sheriff | D8: 4 | E8: North Strathclyde | F8: NEW COURTS post 14-dec-09
A9: 9717 | B9: CUPAR | C9: Sheriff | D9: 6 | E9: Tayside, Central & Fife
A10: 9721 | B10: DINGWALL | C10: Sheriff | D10: 2 | E10: Grampian, Highland & Islands
A11: 9722 | B11: DORNOCH | C11: Sheriff | D11: 2 | E11: Grampian, Highland & Islands
A12: 9723 | B12: DUMBARTON | C12: Sheriff | D12: 4 | E12: North Strathclyde
A13: 9724 | B13: DUMFRIES | C13: Sheriff | D13: 5 | E13: South Strathclyde, Dumfries & Galloway
A14: 9726 | B14: DUNDEE | C14: Sheriff | D14: 6 | E14: Tayside, Central & Fife
A15: 9727 | B15: DUNFERMLINE | C15: Sheriff | D15: 6 | E15: Tayside, Central & Fife
A16: 9728 | B16: DUNOON | C16: Sheriff | D16: 4 | E16: North Strathclyde
A17: 9729 | B17: DUNS | C17: Sheriff | D17: 3 | E17: Lothian & Borders
A18: 9741 | B18: EDINBURGH | C18: Sheriff | D18: 3 | E18: Lothian & Borders
A19: 9742 | B19: ELGIN | C19: Sheriff | D19: 2 | E19: Grampian, Highland & Islands
A20: 9751 | B20: FALKIRK | C20: Sheriff | D20: 6 | E20: Tayside, Central & Fife
A21: 9752 | B21: FORFAR | C21: Sheriff | D21: 6 | E21: Tayside, Central & Fife
A22: 9753 | B22: FORT WILLIAM | C22: Sheriff | D22: 2 | E22: Grampian, Highland & Islands
A23: 9761 | B23: GLASGOW | C23: Sheriff | D23: 1 | E23: Glasgow & Strathkelvin
A24: 9762 | B24: GREENOCK | C24: Sheriff | D24: 4 | E24: North Strathclyde
A25: 9771 | B25: HADDINGTON | C25: Sheriff | D25: 3 | E25: Lothian & Borders
A26: 9772 | B26: HAMILTON | C26: Sheriff | D26: 5 | E26: South Strathclyde, Dumfries & Galloway
A27: 9781 | B27: INVERNESS | C27: Sheriff | D27: 2 | E27: Grampian, Highland & Islands
A28: 9791 | B28: JEDBURGH | C28: Sheriff | D28: 3 | E28: Lothian & Borders
A29: 9801 | B29: KILMARNOCK | C29: Sheriff | D29: 4 | E29: North Strathclyde
A30: 9803 | B30: KIRKCALDY | C30: Sheriff | D30: 6 | E30: Tayside, Central & Fife
A31: 9804 | B31: KIRKCUDBRIGHT | C31: Sheriff | D31: 5 | E31: South Strathclyde, Dumfries & Galloway
A32: 9805 | B32: KIRKWALL | C32: Sheriff | D32: 2 | E32: Grampian, Highland & Islands
A33: 9811 | B33: LANARK | C33: Sheriff | D33: 5 | E33: South Strathclyde, Dumfries & Galloway
A34: 9812 | B34: LERWICK | C34: Sheriff | D34: 2 | E34: Grampian, Highland & Islands
A35: 9814 | B35: LOCHMADDY | C35: Sheriff | D35: 2 | E35: Grampian, Highland & Islands
A36: 9815 | B36: LIVINGSTON | C36: Sheriff | E36: Lothian & Borders
A37: 9841 | B37: OBAN | C37: Sheriff | D37: 4 | E37: North Strathclyde
A38: 9851 | B38: PAISLEY | C38: Sheriff | D38: 4 | E38: North Strathclyde
A39: 9852 | B39: PEEBLES | C39: Sheriff | D39: 3 | E39: Lothian & Borders
A40: 9853 | B40: PERTH | C40: Sheriff | D40: 6 | E40: Tayside, Central & Fife
A41: 9854 | B41: PETERHEAD | C41: Sheriff | D41: 2 | E41: Grampian, Highland & Islands
A42: 9855 | B42: PORTREE | C42: Sheriff | D42: 2 | E42: Grampian, Highland & Islands
A43: 9861 | B43: ROTHESAY | C43: Sheriff | D43: 4 | E43: North Strathclyde
A44: 9871 | B44: SELKIRK | C44: Sheriff | D44: 3 | E44: Lothian & Borders
A45: 9872 | B45: STIRLING | C45: Sheriff | D45: 6 | E45: Tayside, Central & Fife
A46: 9873 | B46: STONEHAVEN | C46: Sheriff | D46: 2 | E46: Grampian, Highland & Islands
A47: 9874 | B47: STORNOWAY | C47: Sheriff | D47: 2 | E47: Grampian, Highland & Islands
A48: 9875 | B48: STRANRAER | C48: Sheriff | D48: 5 | E48: South Strathclyde, Dumfries & Galloway
A49: 9881 | B49: TAIN | C49: Sheriff | D49: 2 | E49: Grampian, Highland & Islands
A50: 9891 | B50: WICK | C50: Sheriff | D50: 2 | E50: Grampian, Highland & Islands
A51: 9251 | B51: ABERDEEN | C51: JP | D51: 2 | E51: Grampian, Highland & Islands
A52: 9240 | B52: ALLOA | C52: JP | D52: 6 | E52: Tayside, Central & Fife
A53: 9245 | B53: ANNAN | C53: JP | D53: 5 | E53: South Strathclyde, Dumfries & Galloway
A54: 9263 | B54: ARBROATH | C54: JP | D54: 6 | E54: Tayside, Central & Fife
A55: 9360 | B55: AYR | C55: JP | D55: 5 | E55: South Strathclyde, Dumfries & Galloway
A56: 9252 | B56: BANFF | C56: JP | D56: 2 | E56: Grampian, Highland & Islands
A57: 9289 | B57: CAMPBELTOWN | C57: JP | D57: 4 | E57: North Strathclyde
A58: 9355 | B58: AIRDRIE | C58: JP | D58: 5 | E58: South Strathclyde, Dumfries & Galloway
A59: 9356 | B59: CUMBERNAULD | C59: JP | D59: 5 | E59: South Strathclyde, Dumfries & Galloway
A60: 9285 | B60: CUPAR | C60: JP | D60: 6 | E60: Tayside, Central & Fife
A61: 9343 | B61: DINGWALL | C61: JP | D61: 2 | E61: Grampian, Highland & Islands
A62: 9344 | B62: DORNOCH | C62: JP | D62: 2 | E62: Grampian, Highland & Islands
A63: 9376 | B63: DUMBARTON | C63: JP | D63: 4 | E63: North Strathclyde
A64: 9246 | B64: DUMFRIES | C64: JP | D64: 5 | E64: South Strathclyde, Dumfries & Galloway
A65: 9256 | B65: DUNDEE | C65: JP | D65: 6 | E65: Tayside, Central & Fife
A66: 9286 | B66: DUNFERMLINE | C66: JP | D66: 6 | E66: Tayside, Central & Fife
A67: 9290 | B67: DUNOON | C67: JP | D67: 4 | E67: North Strathclyde
A68: 9350 | B68: DUNS | C68: JP | D68: 3 | E68: Lothian & Borders
A69: 9278 | B69: EDINBURGH | C69: JP | D69: 3 | E69: Lothian & Borders
A70: 9341 | B70: ELGIN | C70: JP | D70: 2 | E70: Grampian, Highland & Islands
A71: 9282 | B71: FALKIRK | C71: JP | D71: 6 | E71: Tayside, Central & Fife
A72: 9264 | B72: FORFAR | C72: JP | D72: 6 | E72: Tayside, Central & Fife
A73: 9345 | B73: FORT WILLIAM | C73: JP | D73: 2 | E73: Grampian, Highland & Islands
A74: 9295 | B74: GLASGOW | C74: JP | D74: 1 | E74: Glasgow & Strathkelvin
A75: 9340 | B75: GREENOCK | C75: JP | D75: 4 | E75: North Strathclyde
A76: 9270 | B76: HADDINGTON | C76: JP | D76: 3 | E76: Lothian & Borders
A77: 9366 | B77: HAMILTON | C77: JP | D77: 5 | E77: South Strathclyde, Dumfries & Galloway
A78: 9346 | B78: INVERNESS | C78: JP | D78: 2 | E78: Grampian, Highland & Islands
A79: 9354 | B79: IRVINE | C79: JP | D79: 4 | E79: North Strathclyde
A80: 9351 | B80: JEDBURGH | C80: JP | D80: 3 | E80: Lothian & Borders
A81: 9261 | B81: KILMARNOCK | C81: JP | D81: 4 | E81: North Strathclyde
A82: 9287 | B82: KIRKCALDY | C82: JP | D82: 6 | E82: Tayside, Central & Fife
A83: 9247 | B83: KIRKCUDBRIGHT | C83: JP | D83: 5 | E83: South Strathclyde, Dumfries & Galloway
A84: 9367 | B84: LANARK | C84: JP | D84: 5 | E84: South Strathclyde, Dumfries & Galloway
A85: 9380 | B85: LIVINGSTON | C85: JP | D85: 3 | E85: Lothian & Borders
A86: 9292 | B86: LOCHGILPHEAD | C86: JP | D86: 4 | E86: North Strathclyde
A87: 9357 | B87: MOTHERWELL | C87: JP | D87: 5 | E87: South Strathclyde, Dumfries & Galloway
A88: 9293 | B88: OBAN | C88: JP | D88: 4 | E88: North Strathclyde
A89: 9342 | B89: PAISLEY | C89: JP | D89: 4 | E89: North Strathclyde
A90: 9352 | B90: PEEBLES | C90: JP | D90: 3 | E90: Lothian & Borders
A91: 9358 | B91: PERTH | C91: JP | D91: 6 | E91: Tayside, Central & Fife
A92: 9253 | B92: PETERHEAD | C92: JP | D92: 2 | E92: Grampian, Highland & Islands
A93: 9347 | B93: PORTREE | C93: JP | D93: 2 | E93: Grampian, Highland & Islands
A94: 9353 | B94: SELKIRK | C94: JP | D94: 3 | E94: Lothian & Borders
A95: 9372 | B95: STIRLING | C95: JP | D95: 6 | E95: Tayside, Central & Fife
A96: 9254 | B96: STONEHAVEN | C96: JP | D96: 2 | E96: Grampian, Highland & Islands
A97: 9384 | B97: STORNOWAY | C97: JP | D97: 2 | E97: Grampian, Highland & Islands
A98: 9250 | B98: STRANRAER | C98: JP | D98: 5 | E98: South Strathclyde, Dumfries & Galloway
A99: 9348 | B99: TAIN | C99: JP | D99: 2 | E99: Grampian, Highland & Islands
A100: 9349 | B100: WICK | C100: JP | D100: 2 | E100: Grampian, Highland & Islands
A101: 1 | B101: National | C101: JP | E101: National JP
A102: 0 | B102: National | C102: SC | E102: National SC
